Workbook

Sheet Quick Link
A1: Tab # | B1: Manufacturer | C1: Model
A2: 65 | B2: Blaze King Industries Inc | C2: Ashford AF20.2, Chinook CK20.2, and Sirocco SC20.2
A3: 64 | B3: Blaze King Industries Inc | C3: Princess PE32
A4: 67 | B4: Blaze King Industries Inc. | C4: Sirocco SC25, Ashford AF25, Boxer 24 (BX24)
A5: 63 | B5: Blaze King Industries, Inc. | C5: King KE40
A6: 89 | B6: Energy Distribution | C6: Invicta Group: Kazan, Kazan GA, Kiara, and Kiara GA
A7: 4 | B7: FPI / Regency Fireplace Products | C7: F2500
A8: 74 | B8: Hearthstone Quality Home Heating Products Inc. | C8: Castleton I 8031
A9: 71 | B9: Hearthstone Quality Home Heating Products Inc. | C9: Green Mountain 40 (8640), Craftsbury 2 (8392), Hipster 14
A10: 72 | B10: Hearthstone Quality Home Heating Products Inc. | C10: Green Mountain 60 8660, Hipster 20
A11: 73 | B11: Hearthstone Quality Home Heating Products Inc. | C11: Green Mountain 80 8680
A12: 76 | B12: Hearthstone Quality Home Heating Products Inc. | C12: Heritage 8024
A13: 75 | B13: Hearthstone Quality Home Heating Products Inc. | C13: Manchester 8362
A14: 105 | B14: Hearthstone Quality Home Products Inc./Hase Kaminofenbau | C14: Bari, Bari Plus 8171 Hybrid
A15: 58 | B15: HHT/Hearth & Home Technologies | C15: Quadra Fire Expedition II and Vermont Castings Montpelier II
A16: 57 | B16: HHT/Hearth & Home Technology | C16: Vermont Castings Defiant 1975-CAT-C
A17: 100 | B17: HHT/Hearth and Home Tech | C17: 21M-ACC-C, Discovery-1-
A18: 126 | B18: HHT/Hearth and Home Technologies | C18: Intrepid Flexburn 2115 CAT
A19: 99 | B19: HHT/Hearth and Home Technologies | C19: Quadra Fire 43M-ACC-C, 43ST-ACC-C, Discovery-III-C
A20: 91 | B20: HHT/Hearth and Home Technologies | C20: QuadraFire 31M-ACC-C and QuadraFire Discovery-II-C
A21: 55 | B21: HHT/Vermont Casting | C21: Encore 2040-CAT-C
A22: 69 | B22: Jotul North America | C22: F500 V3
A23: 79 | B23: MFFire | C23: Cataylst
A24: 59 | B24: Morso Jernstoberi A/S | C24: 1410B, 1440B, and 1450B
A25: 85 | B25: Pacific Energy Fireplace Products | C25: Summit LE, Summit Classic LE, Alderlea T6 LE, and Summit Insert LE
A26: 87 | B26: Pacific Energy Fireplace Products | C26: True North 10
A27: 84 | B27: Pacific Energy Fireplace Products | C27: Vista LE, Vista Classic LE, NEO 1.6 LE, Neostone 1.6 LE, Alderlea T4 LE (Freestanding), NEO 1.6 LE
A28: 116 | B28: RSF / Industrial Chimney Company, Incorporated | C28: Delta Fusion
A29: 114 | B29: RSF / Industrial Chimney Company, Incorporated | C29: Focus 320SBR and Onyx SBR
A30: 62 | B30: RSF / Industrial Chimney Company, Incorporated | C30: OPEL PLUS Series: Opel+ 2C, Open+ 3C, Opel+ 4C, Opel+ Keystone
A31: 93 | B31: Stuv America | C31: 30 Compact, 30 Compact-H, 30 Compact-one
A32: 98 | B32: United States Stove Company | C32: US 1269e

Sheet Ashford AF20.2, Chinook CK20.2,
A1: Summary of Review
A2: Manufacturer | B2: Blaze King Industries Inc | I2: 2021-03-31
A3: Model | B3: Ashford AF20.2, Chinook CK20.2, and Sirocco SC20.2 | F3: Control approach | I3: Catalytic
A4: Prelim review recomm. | B4: Requires a more thorough review | I4: All models noted match EPA listing
A5: Red flags | B5: 6 | C5: Orange flags | E5: 7 | F5: Yellow flags | H5: 8
A6: Final Determination | B6: Pending - Major | F6: Date: 9/1/2020 | I6: Basis: MD, IDU, IR, NR
A7: AK List Status | B7: Approved List - Pending
A8: Testing Information | B8: Determination | I8: Notes
A9: Test method | B9: EPA M28R
A10: Test Lab | B10: OMNI | I10: performed at manufacturers facility
A11: Third-party certifier | B11: OMNI
A12: Report certified | B12: Omni
A13: Test Report Elements | B13: Determination | I13: Notes
A14: Wght Avg PM emissions (g/hr) | B14: 0.73 | D14: PM Highest 1-hr (g/hr) | G14: 2.41
A15: Wght Avg HHV Efficiency (%) | B15: 77.4 | I15: 77
A16: Wght Avg CO (g/hr) | B16: =IFERROR(G16*60,"Not reported") -> 44.4 | D16: Wght Avg CO (g/min) | G16: 0.74
A17: Max heat output (Btu/hr) | B17: 29785 | I17: 39000
A18: Manufacturers Instructions to lab | B18: Reported | I18: Lab used OM
A19: Firebox vol. test report | B19: 1.82 | I19: 1.8
A20: Firebox dimensions | B20: Reported | D20: Longest dim. (in) | F20: 16.525 | G20: Firebox dimension | I20: Longest dimension is from manufacturer calcs and does not include lip
A21: Firebox calculations | B21: Reported/matched
A22: Efficiency calculations | B22: Reported
A23: Burn rate calculations | B23: Reported
A24: Raw data sheets | B24: Reported
A25: Conditioning completed by | B25: Not reported | I25: completed by Charlie Bishop, run 1 on 8/22, reviewer is not aware of who CB works for.
A26: Conditioning data | B26: Partially reported | I26: unable to confirm med burn requirement as data lacks residual fuel weights on hours when fuel is loaded
A27: Lab technician notes | B27: Reported
A28: Doc. of run appropriateness | B28: Reported
A29: Doc. of run validity | B29: Reported
A30: Doc. of run anomolies | B30: Reported
A31: Doc. of run burn rates | B31: Reported
A32: Photos of the fuel loaded | B32: Reported
A33: Test Run Data | B33: Determination | I33: Notes
A34: Run # | C34: 1 | D34: 2 | E34: 3 | F34: 4 | G34: 5 | H34: 6 | I34: Run 7 - CAT I
A35: Run Category | C35: II | D35: III | E35: IV | F35: I | G35: II | H35: IV
A36: Burn rate (kg/hr) | C36: 1.04 | D36: 1.54 | E36: 2.26 | F36: 0.6 | G36: 1.18 | H36: 2.26
A37: PM emissions by run (g/hr) | C37: 0.58 | D37: 0.96 | E37: 1.53 | F37: 0.22 | G37: 0.55 | H37: 1.91
A38: PM 1-hr filter pull (g/hr) | C38: 1.12 | D38: 1.55 | E38: 2.41 | F38: 0.4 | G38: 1.41 | H38: 2
A39: Filter data | C39: yes | D39: yes | E39: yes | F39: yes | G39: yes | H39: yes
A40: Train precision (%) | C40: 1.62 | D40: 8.76 | E40: 15.81 | F40: 8.13 | G40: 5.41 | H40: 1.85 | I40: run 7 = 11.69
A41: Negative weights | C41: yes | D41: yes | E41: yes | F41: yes | G41: yes | H41: yes | I41: run 7 also negative filter values
A42: Negs handled appropriately | B42: No | I42: negative filter values are subtacted from total catch. Method requires negatives be treated as zero.
A43: Heat output by run (Btu/hr) | C43: 15450 | D43: 22295 | E43: 29785 | F43: 8900 | G43: 16254 | H43: 28562
A44: CO by run (g/hr) | C44: 27.6 | D44: 64.2 | E44: 84 | F44: 23.4 | G44: 33.6 | H44: 85.8
A45: HHV efficiency (%) | C45: 78.99 | D45: 7.09 | E45: 70.35 | F45: 79.12 | G45: 73.57 | H45: 67.92
A46: Lowest burn rate tested | B46: Cannot be determined | I46: OM & Test state lower setting is achievable and may be necessary depending on installation
A47: All run data | B47: Reported
A48: Appliance Fueling | B48: Determination | I48: Notes
A49: Fuel species | B49: Douglas Fir
A50: Log length (in) | C50: 13 | D50: 13 | E50: 13 | F50: 13 | G50: 13 | H50: 13 | I50: 16
A51: Direction of longest dimension | B51: East-West | I51: according to manufacturer calcs
A52: Log direction for testing | B52: East-West
A53: Squared (ASTM test only) | B53: N/A (Crib)
A54: Debarked (ASTM test only) | B54: N/A (Crib)
A55: Load density (lb/ft3) | C55: 7.06 | D55: 6.65 | E55: 7.14 | F55: 6.7 | G55: 6.54 | H55: 6.59 | I55: B avg density 6.78
A56: Fuel moisture content load (%wb) | C56: 21.65 | D56: 20.21 | E56: 22.41 | F56: 21.41 | G56: 22.41 | H56: 22.41 | I56: B avg moisture content 21.8%
A57: Fuel piece configuration | B57: Within specified limit
A58: Owners Manual Req. | B58: Determination | I58: Notes
A59: Stack height | B59: Included
A60: Location recommendation | B60: Included
A61: Guidance on proper draft | B61: Included
A62: Fuel loading & reloading | B62: Included
A63: Fuel selection recomm. | B63: Included
A64: Improper fuels warnings | B64: Included
A65: Fire starting procedures | B65: Included
A66: Proper use of air controls | B66: Included
A67: Proper operation low | B67: Included
A68: Ash removal procedures | B68: Included
A69: Replacement parts | B69: Included
A70: Federal warning (C or NC) | B70: Included
A71: Warranty rights | B71: Included
A72: Catalytst operation | B72: Included
A73: Cat maintenance procedures | B73: Included
A74: Determining catalyst det. or failure | B74: Included
A75: Reporting | B75: Determination | I75: Notes
A76: Summary tables complete | B76: All reported | I76: Flag in line 46 - though information was provided reviewer is unable to determine if lowest setting was used.
A77: All run data submitted | B77: All reported
A78: Test report complete | B78: Partially reported major | I78: Flags in lines 25,26,41,42
A79: Owner manual complete | B79: All reported
A80: Test dates | B80: 8/22-27/2017 | I80: 8/18-24/17
A81: 30 Day notice submitted to EPA | B81: Cannot be determined
A82: Tested on the proposed date | B82: Cannot Be Determined
A83: Tested in consecutive days | B83: Yes
A84: 60 Day report to EPA | B84: Cannot be determined
A85: EPA additional Review Elements | B85: Determination | I85: Notes
A86: Test location | B86: Manufacturer | I86: 146 A St., in Walla Walla Washington
A87: date lab received the unit | B87: 2017-08-22
A88: date first day of conditioning | B88: Not reported
A89: date first day of testing | B89: 2017-08-22
A90: first hour PM emissions reported for all runs | B90: yes
A91: first hour PM emissions reported in grams per hour | B91: yes
A92: first hour PM emissions zero or negative | B92: no
A93: first hour PM emissions measured with front and back filter | B93: no
A94: Zero CO emission reported | B94: no
A95: Any incomplete runs | B95: no
A96: Preburn data reported (SU/High-3053, preburn M28R) | B96: yes
A97: filter changes during test run | B97: no
A98: filter plugged during test run | B98: no
A99: What type of filter used | B99: not reported
A100: Back and front filter weighed together (3053 only)
A101: Negative probe weight >5% of PM | B101: no negative values
A102: Negative probe value | B102: no negative values
A103: Negative room air values | B103: no negative values
A104: Ambient background filter data | B104: no negative values
A105: Proportional sampling | B105: yes with allowable deviations
A106: Leak check - pre-test leak check reported | B106: not reported
A107: Leak check - any filter change | B107: not reported
A108: Leak check - post leak check reported | B108: Meets Specification
A109: Dilution tunnel schematic meets ASTM 2515 requirements | B109: not reported
A110: Firebox measurements confirmed with schematic | B110: yes | I110: Calcs did not include lip by door
A111: number of conditioning hours reported in summary | B111: 50
A112: number of conditioning hours with data | B112: 50 | I112: 100 hrs of conditioning were done with 2 different catalysts
A113: number of hours at correct conditioning conditions | B113: Cannot be determined | I113: supplied information does not give residual fuel wieght at time fuel additions, from what is give it seems only 22 hrs are at or close to med burn rate and 9 hours are undetermined due to fuel loading leaving 19 hours outside the med burn requirement
A114: used lowest air settings for low burn (ASTM 3053) or Cat 1(M28R) | B114: no | I114: OM & Test state lower setting is achievable
A115: Air setting data | B115: Cat 1/Low | C115: Cat 2/Med | D115: Cat 3 | E115: Cat 4/High | F115: FC | G115: CV | H115: CV2
B116: 0 deg from horizontal | C116: 9 deg from horizontal | D116: 36 deg from horizontal | E116: 90 deg from horizontal | F116: 36 deg from horizontal | G116: 90 deg from horizontal | H116: 0 deg from horizontal
A117: Total number of runs | B117: 7
A118: run averaging done correctly
A119: which SU/H run used for calculating emissions
A120: Fuel data for all SU/H runs (ASTM 3053)
A121: Multiple fuel lengths used | B121: no
A122: Specific gravity of fuel used (ASTM 3053 only) | E122: Value
A123: M28 fuel loaded longest dimension | B123: yes | I123: Loaded in longest calculated direction, if used full firebox including lip this stove would be considered North/South
A124: Calibration data | B124: yes

Sheet Princess PE32
A1: Summary of Review
A2: Manufacturer | B2: Blaze King Industries Inc | I2: 2021-03-31
A3: Model | B3: Princess PE32 | F3: Control approach | I3: Catalytic
A4: Prelim review recomm. | B4: Pending Major | I4: Listed models match EPA listing
A5: Red flags | C5: Orange flags | F5: Yellow flags
A6: Final Determination | F6: Date: 10/4/2020 | I6: Basis:
A7: AK List Status | B7: Approved List - Pending
A8: Testing Information | B8: Determination | I8: Notes
A9: Test method | B9: EPA M28R
A10: Test Lab | B10: PFS-TECO
A11: Third-party certifier | B11: PFS-TECO
A12: Report certified | B12: PFS-TECO
A13: Test Report Elements | B13: Determination | I13: Notes
A14: Wght Avg PM emissions (g/hr) | B14: 0.4 | D14: PM Highest 1-hr (g/hr) | G14: 3.03
A15: Wght Avg HHV Efficiency (%) | B15: 79.9 | I15: 80
A16: Wght Avg CO (g/hr) | B16: =IFERROR(G16*60,"Not reported") -> 30 | D16: Wght Avg CO (g/min) | G16: 0.5
A17: Max heat output (Btu/hr) | B17: 31478 | I17: 51000
A18: Manufacturers Instructions to lab | B18: Reported | I18: OM and Instructions contradict as the OM says to open bypass during loading and instructions to lab say to leave closed.
A19: Firebox vol. test report | B19: 2.91 | I19: 2.91
A20: Firebox dimensions | B20: Reported | D20: Longest dim. (in) | F20: 19.875 | G20: Firebox dimension
A21: Firebox calculations | B21: Reported/matched
A22: Efficiency calculations | B22: Reported
A23: Burn rate calculations | B23: Reported
A24: Raw data sheets | B24: Reported
A25: Conditioning completed by | B25: Manufacturer
A26: Conditioning data | B26: Partially reported | I26: 1) Did not report dates and when fuel added per method. 2) Only 7` hours out of 50 hours at medium burn rate (1.25 kg/hr, +/-0.5 kg/hr) based on med burn from test report.
A27: Lab technician notes | B27: Reported
A28: Doc. of run appropriateness | B28: Reported
A29: Doc. of run validity | B29: Reported
A30: Doc. of run anomolies | B30: Partially reported | I30: summary does not note negative filter values
A31: Doc. of run burn rates | B31: Reported
A32: Photos of the fuel loaded | B32: Partially reported | I32: photos do not appear to be taken during test per method.
A33: Test Run Data | B33: Determination | I33: Notes
A34: Run # | C34: 1 | D34: 2 | E34: 3 | F34: 4 | G34: 5 | H34: 6 | I34: Runs 7&8 were catalyst equivalency tests
A35: Run Category | C35: Category II | D35: Category I | E35: Category III | F35: Category IV | G35: Category II | H35: Category II | I35: Run 5 listed as Fan Confirmation
A36: Burn rate (kg/hr) | C36: 0.8 | D36: 0.66 | E36: 1.63 | F36: 2.2 | G36: 1.38 | H36: 1.17
A37: PM emissions by run (g/hr) | C37: 0.21 | D37: 0.27 | E37: 1.11 | F37: 3.03 | G37: 1.28 | H37: 0.68
A38: PM 1-hr filter pull (g/hr) | C38: 0.57 | D38: 0.27 | E38: 1.11 | F38: 3.03 | G38: 0.36 | H38: 0.85
A39: Filter data | C39: yes | D39: yes | E39: yes | F39: yes | G39: yes | H39: yes
A40: Train precision (%) | C40: NR | D40: NR | E40: NR | F40: NR | G40: NR | H40: NR | I40: Train precision % is required
A41: Negative weights | C41: no | D41: yes | E41: yes | F41: yes | G41: yes | H41: yes
A42: Negs handled appropriately | B42: No | I42: negative filter values are subtacted from total catch. Method requires negatives be treated as zero.
A43: Heat output by run (Btu/hr) | C43: 12026 | D43: 10200 | E43: 24163 | F43: 3148 | G43: 19145 | H43: 16679
A44: CO by run (g/hr) | C44: =0.29*60 -> 17.4 | D44: =0.09*60 -> 5.4 | E44: =0.31*60 -> 18.6 | F44: =1.48*60 -> 88.8 | G44: =1.72*60 -> 103.2 | H44: =0.98*60 -> 58.8
A45: HHV efficiency (%) | C45: 12026 | D45: 10200 | E45: 24163 | F45: 3148 | G45: 19145 | H45: 16679
A46: Lowest burn rate tested | B46: Cannot be determined | I46: Was not tested at lowest air setting but rather the lowest air setting that could maintain a fire under test lab conditions.
A47: All run data | B47: Not reported | I47: Train precision % is not reported
A48: Appliance Fueling | B48: Determination | I48: Notes
A49: Fuel species | B49: Douglas Fir
A50: Log length (in) | C50: 17 | D50: 17 | E50: 17 | F50: 17 | G50: 17 | H50: 17 | I50: 19
A51: Direction of longest dimension | B51: East-West
A52: Log direction for testing | B52: East-West
A53: Squared (ASTM test only) | B53: N/A (Crib)
A54: Debarked (ASTM test only) | B54: N/A (Crib)
A55: Load density (lb/ft3) | C55: 6.45 | D55: 6.53 | E55: 6.43 | F55: 6.49 | G55: 6.3 | H55: 6.5
A56: Fuel moisture content load (%db) | C56: 23.2 | D56: 21.9 | E56: 22.1 | F56: 23.3 | G56: 22.4 | H56: 23.2
A57: Fuel piece configuration | B57: Within specified limit
A58: Owners Manual Req. | B58: Determination | I58: Notes
A59: Stack height | B59: Included
A60: Location recommendation | B60: Included
A61: Guidance on proper draft | B61: Included
A62: Fuel loading & reloading | B62: Included
A63: Fuel selection recomm. | B63: Included
A64: Improper fuels warnings | B64: Included
A65: Fire starting procedures | B65: Included
A66: Proper use of air controls | B66: Included
A67: Proper operation low | B67: Insufficient data
A68: Ash removal procedures | B68: Included
A69: Replacement parts | B69: Included
A70: Federal warning (C or NC) | B70: Included
A71: Warranty rights | B71: Included
A72: Catalytst operation | B72: Included
A73: Cat maintenance procedures | B73: Included
A74: Determining catalyst det. or failure | B74: Included
A75: Reporting | B75: Determination | I75: Notes
A76: Summary tables complete | B76: Partially reported | I76: Flags in lines 36 & 46
A77: All run data submitted | B77: Partially reported | I77: Flag in line 47
A78: Test report complete | B78: Partially reported minor | I78: Flags in lines 26,40,42,47
A79: Owner manual complete | B79: Partially reported minor | I79: Flag in line 67
A80: Test dates | B80: 10/8-24/2018
A81: 30 Day notice submitted to EPA | B81: Yes | I81: did not submit form but an email, should request form.
A82: Tested on the proposed date | B82: Yes
A83: Tested in consecutive days | B83: Yes
A84: 60 Day report to EPA | B84: Yes | I84: 2018-10-31
A85: EPA additional Review Elements | B85: Determination | I85: Notes
A86: Test location | B86: Manufacturer | I86: 146 A Street Walla Walla WA 99362
A87: date lab received the unit | B87: 2018-10-08
A88: date first day of conditioning | B88: 2018-08-27 | I88: 2 catalysts were conditioned - second one 10/9/2018
A89: date first day of testing | B89: 2018-10-08
A90: first hour PM emissions reported for all runs | B90: yes
A91: first hour PM emissions reported in grams per hour | B91: yes
A92: first hour PM emissions zero or negative | B92: no
A93: first hour PM emissions measured with front and back filter | B93: no
A94: Zero CO emission reported | B94: no
A95: Any incomplete runs | B95: no
A96: Preburn data reported (SU/High-3053, preburn M28R) | B96: yes
A97: filter changes during test run | B97: no
A98: filter plugged during test run | B98: no
A99: What type of filter used | B99: not reported
A100: Back and front filter weighed together (3053 only)
A101: Negative probe weight >5% of PM | B101: no negative values
A102: Negative probe value | B102: no negative values
A103: Negative room air values | B103: no negative values
A104: Ambient background filter data | B104: no negative values
A105: Proportional sampling | B105: yes with allowable deviations
A106: Leak check - pre-test leak check reported | B106: not reported
A107: Leak check - any filter change | B107: not reported
A108: Leak check - post leak check reported | B108: Meets Specification
A109: Dilution tunnel schematic meets ASTM 2515 requirements
A110: Firebox measurements confirmed with schematic | B110: yes
A111: number of conditioning hours reported in summary | B111: 50
A112: number of conditioning hours with data | B112: 50
A113: number of hours at correct conditioning conditions | B113: 7
A114: used lowest air settings for low burn (ASTM 3053) or Cat 1(M28R) | B114: not reported
A115: Air setting data | B115: Cat 1/Low | C115: Cat 2/Med | D115: Cat 3 | E115: Cat 4/High | F115: FC | G115: CV
B116: 70 deg from open | C116: 76 deg from open | D116: 75 deg from open | E116: fully open
A117: Total number of runs | B117: 8
A118: run averaging done correctly
A119: which SU/H run used for calculating emissions
A120: Fuel data for all SU/H runs (ASTM 3053)
A121: Multiple fuel lengths used | B121: yes | I121: runs 1-6 used 17" wood 7&8 used 16"
A122: Specific gravity of fuel used (ASTM 3053 only) | E122: Value
A123: M28 fuel loaded longest dimension | B123: yes
A124: Calibration data | B124: partially reported | I124: Several of the calibrations were outside the 6 month window.

Sheet Sirocco SC25, Ashford AF25, Box
A1: Summary of Review
A2: Manufacturer | B2: Blaze King Industries Inc. | I2: 2021-03-31
A3: Model | B3: Sirocco SC25, Ashford AF25, Boxer 24 (BX24) | F3: Control approach | I3: Catalytic
A4: Prelim review recomm. | B4: Requires a more thorough review | I4: Models match those listed on EPA database
A5: Red flags | B5: 6 | C5: Orange flags | E5: 7 | F5: Yellow flags | H5: 8
A6: Final Determination | B6: Pending - Major | F6: Date: 9/1/2020 | I6: Basis: MD, IDU, IR, NR
A7: AK List Status | B7: Approved List - Pending
A8: Testing Information | B8: Determination | I8: Notes
A9: Test method | B9: EPA M28R
A10: Test Lab | B10: OMNI | I10: performed at manufacturer facility
A11: Third-party certifier | B11: OMNI
A12: Report certified | B12: Omni
A13: Test Report Elements | B13: Determination | I13: Notes
A14: Wght Avg PM emissions (g/hr) | B14: 0.9 | D14: PM Highest 1-hr (g/hr) | G14: 5.25
A15: Wght Avg HHV Efficiency (%) | B15: 77 | I15: 77
A16: Wght Avg CO (g/hr) | B16: =I44/4 -> 21.2 | D16: Wght Avg CO (g/min) | G16: =B16/60 -> 0.3533333333
A17: Max heat output (Btu/hr) | B17: 26290 | I17: 40000
A18: Manufacturers Instructions to lab | B18: Reported | I18: Lab used OM
A19: Firebox vol. test report | B19: 2.26 | I19: 2.3
A20: Firebox dimensions | B20: Reported | D20: Longest dim. (in) | F20: 22.75 | G20: Firebox dimension
A21: Firebox calculations | B21: Reported/matched
A22: Efficiency calculations | B22: Reported
A23: Burn rate calculations | B23: Reported
A24: Raw data sheets | B24: Reported
A25: Conditioning completed by | B25: Lab
A26: Conditioning data | B26: Partially reported | I26: Missing data per test method requirements, requires fuel addition data and data to confirm medium burn rate requirement met.
A27: Lab technician notes | B27: Reported
A28: Doc. of run appropriateness | B28: Reported
A29: Doc. of run validity | B29: Reported
A30: Doc. of run anomolies | B30: Reported
A31: Doc. of run burn rates | B31: Reported
A32: Photos of the fuel loaded | B32: Reported
A33: Test Run Data | B33: Determination | I33: Notes
A34: Run # | C34: 1 | D34: 2 | E34: 3 | F34: 4
A35: Run Category | C35: III | D35: II | E35: I | F35: IV
A36: Burn rate (kg/hr) | C36: 1.59 | D36: 0.9 | E36: 0.66 | F36: 1.89
A37: PM emissions by run (g/hr) | C37: 1.48 | D37: 0.33 | E37: 0.31 | F37: 1.93
A38: PM 1-hr filter pull (g/hr) | C38: 3.44 | D38: 1.73 | E38: 1.71 | F38: 5.25
A39: Filter data | C39: yes | D39: yes | E39: yes | F39: yes
A40: Train precision (%) | C40: 1.65 | D40: 12.55 | E40: 7.51 | F40: 1.2 | I40: Run 3 - .07 g/kg, Run 2 - .09 g/kg
A41: Negative weights | C41: yes | D41: yes | E41: yes | F41: yes
A42: Negs handled appropriately | B42: No | I42: negative filter values are subtacted from total catch. Method requires all negative filter weights to be treated as zero.
A43: Heat output by run (Btu/hr) | C43: 21541 | D43: 13816 | E43: 10097 | F43: 26290
A44: CO by run (g/hr) | C44: 25.75 | D44: 34.2 | E44: 6.73 | F44: 18.12 | I44: =SUM(C44:H44) -> 84.8
A45: HHV efficiency (%) | C45: 72.6 | D45: 79.3 | E45: 81.9 | F45: 74.6
A46: Lowest burn rate tested | B46: Cannot be determined | I46: Run 2 & 3 exact same air settings
A47: All run data | B47: Reported
A48: Appliance Fueling | B48: Determination | I48: Notes
A49: Fuel species | B49: Douglas Fir
A50: Log length (in) | C50: 16.75 | D50: 17 | E50: 17 | F50: 17 | I50: 18.96=5/6
A51: Direction of longest dimension | B51: East-West
A52: Log direction for testing | B52: East-West
A53: Squared (ASTM test only) | B53: N/A (Crib)
A54: Debarked (ASTM test only) | B54: N/A (Crib)
A55: Load density (lb/ft3) | C55: 6.95 | D55: 6.77 | E55: 6.81 | F55: 6.73 | G55: =SUM(C55:F55) -> 27.26 | H55: =G55/4 -> 6.815 | I55: B avg density 6.82
A56: Fuel moisture content load (%db) | C56: 23.01 | D56: 21.39 | E56: 20.54 | F56: 22.58 | G56: =SUM(C56:F56) -> 87.52 | H56: =G56/4 -> 21.88 | I56: B avg moisture 21.8%
A57: Fuel piece configuration | B57: Within specified limit
A58: Owners Manual Req. | B58: Determination | I58: Notes
A59: Stack height | B59: Included
A60: Location recommendation | B60: Included
A61: Guidance on proper draft | B61: Included
A62: Fuel loading & reloading | B62: Included
A63: Fuel selection recomm. | B63: Included
A64: Improper fuels warnings | B64: Included
A65: Fire starting procedures | B65: Included
A66: Proper use of air controls | B66: Included
A67: Proper operation low | B67: Included
A68: Ash removal procedures | B68: Included
A69: Replacement parts | B69: Included
A70: Federal warning (C or NC) | B70: Included
A71: Warranty rights | B71: Included
A72: Catalytst operation | B72: Included
A73: Cat maintenance procedures | B73: Included
A74: Determining catalyst det. or failure | B74: Included
A75: Reporting | B75: Determination | I75: Notes
A76: Summary tables complete | B76: All reported | I76: Flag in 46, though information was provided reveiewer unable to determine lowest burn setting used.
A77: All run data submitted | B77: All reported
A78: Test report complete | B78: Partially reported major | I78: Flags in lines 26 &42
A79: Owner manual complete | B79: All reported
A80: Test dates | B80: 10/20-23/2015 | I80: aging on 10/12-19/15
A81: 30 Day notice submitted to EPA | B81: Cannot be determined
A82: Tested on the proposed date | B82: Cannot Be Determined
A83: Tested in consecutive days | B83: Yes
A84: 60 Day report to EPA | B84: Cannot be determined
A85: EPA additional Review Elements | B85: Determination | I85: Notes
A86: Test location | B86: Lab
A87: date lab received the unit | B87: 2015-10-12
A88: date first day of conditioning | B88: 2015-10-12 | I88: date was given in range 10/12-10/19
A89: date first day of testing | B89: 2015-10-20
A90: first hour PM emissions reported for all runs | B90: yes
A91: first hour PM emissions reported in grams per hour | B91: yes
A92: first hour PM emissions zero or negative | B92: no
A93: first hour PM emissions measured with front and back filter | B93: yes
A94: Zero CO emission reported | B94: no
A95: Any incomplete runs | B95: no
A96: Preburn data reported (SU/High-3053, preburn M28R) | B96: not reported
A97: filter changes during test run | B97: no
A98: filter plugged during test run | B98: no
A99: What type of filter used | B99: not reported
A100: Back and front filter weighed together (3053 only)
A101: Negative probe weight >5% of PM | B101: no negative values
A102: Negative probe value | B102: no negative values
A103: Negative room air values | B103: no negative values
A104: Ambient background filter data | B104: no negative values
A105: Proportional sampling | B105: yes with allowable deviations
A106: Leak check - pre-test leak check reported | B106: not reported
A107: Leak check - any filter change | B107: not reported
A108: Leak check - post leak check reported | B108: Meets Specification
A109: Dilution tunnel schematic meets ASTM 2515 requirements | B109: not reported
A110: Firebox measurements confirmed with schematic | B110: yes
A111: number of conditioning hours reported in summary | B111: 50
A112: number of conditioning hours with data | B112: 50
A113: number of hours at correct conditioning conditions | B113: Cannot be determined | I113: Fuel weights prior to fuel additions not reported therefore unable to determine conformance with med burn rate requirement
A114: used lowest air settings for low burn (ASTM 3053) or Cat 1(M28R) | B114: not reported | I114: See line 46
A115: Air setting data | B115: Cat 1/Low | C115: Cat 2/Med | D115: Cat 3 | E115: Cat 4/High | F115: FC | G115: CV
B116: neg 10 deg from horizontal | C116: neg 10 deg from horizontal | D116: neg 35 deg from horizontal | E116: 0 deg from vertical
A117: Total number of runs | B117: 4
A118: run averaging done correctly
A119: which SU/H run used for calculating emissions
A120: Fuel data for all SU/H runs (ASTM 3053)
A121: Multiple fuel lengths used | B121: yes | I121: Run 1 .25 inches shorter than rest of runs
A122: Specific gravity of fuel used (ASTM 3053 only) | E122: Value
A123: M28 fuel loaded longest dimension | B123: yes
A124: Calibration data | B124: partially reported | I124: Supplied certificates mostly outside 6 month requirement.

Sheet King KE40
A1: Summary of Review
A2: Manufacturer | B2: Blaze King Industries, Inc. | I2: 2021-03-31
A3: Model | B3: King KE40 | F3: Control approach | I3: Catalytic
A4: Prelim review recomm. | B4: Requires a more thorough review | I4: Models listed on report matches EPA listing
A5: Red flags | B5: 16 | C5: Orange flags | E5: 13 | F5: Yellow flags | H5: 5
A6: Final Determination | B6: Pending - Major | F6: Date: 9/1/2020 | I6: Basis: IR
A7: AK List Status | B7: Approved List - Pending | I7: No current report posted on manufacturer website
A8: Testing Information | B8: Determination | I8: Notes
A9: Test method | B9: EPA M28R
A10: Test Lab | B10: PFS-TECO | I10: performed at manufacturer facility
A11: Third-party certifier | B11: PFS-TECO
A12: Report certified | B12: PFS-TECO
A13: Test Report Elements | B13: Determination | I13: Notes
A14: Wght Avg PM emissions (g/hr) | B14: 1.1 | D14: PM Highest 1-hr (g/hr) | G14: 3.18
A15: Wght Avg HHV Efficiency (%) | B15: 80.8 | I15: 81
A16: Wght Avg CO (g/hr) | B16: =IFERROR(G16*60,"Not reported") -> 36 | D16: Wght Avg CO (g/min) | G16: 0.6
A17: Max heat output (Btu/hr) | B17: 34985 | I17: 57000
A18: Manufacturers Instructions to lab | B18: Reported | I18: instructions to lab contradict OM in that the LI say to leave bypass closed during loading
A19: Firebox vol. test report | B19: 4.35 | I19: 4.35
A20: Firebox dimensions | B20: Reported | D20: Longest dim. (in) | F20: 24.75 | G20: Firebox dimension
A21: Firebox calculations | B21: Reported/matched
A22: Efficiency calculations | B22: Reported
A23: Burn rate calculations | B23: Reported
A24: Raw data sheets | B24: Reported
A25: Conditioning completed by | B25: Lab | I25: Reported aging took place 2/27-3/5/2019 by lab. Report states lab didn't receive appliance until 7/29/2019.
A26: Conditioning data | B26: Partially reported | I26: 1) Did not report actual aging dates and did not report fuel information per the method. 2) Only ~15 out of 50 hours at medium burn rate (1.17 kg/hr, +/-0.5 kg/hr) based on med burn from test report.
A27: Lab technician notes | B27: Reported
A28: Doc. of run appropriateness | B28: Reported
A29: Doc. of run validity | B29: Reported
A30: Doc. of run anomolies | B30: Reported
A31: Doc. of run burn rates | B31: Reported
A32: Photos of the fuel loaded | B32: Reported
A33: Test Run Data | B33: Determination | I33: Notes
A34: Run # | C34: 1 | D34: 2 | E34: 3 | F34: 4 | G34: 5 | H34: 6
A35: Run Category | C35: IV | D35: I | E35: II | F35: III | G35: II | H35: IV
A36: Burn rate (kg/hr) | C36: 2.48 | D36: 0.75 | E36: 0.92 | F36: 1.55 | G36: 1.05 | H36: 2.54
A37: PM emissions by run (g/hr) | C37: 2.51 | D37: 0.42 | E37: 0.65 | F37: 1.41 | G37: 0.67 | H37: 2.77
A38: PM 1-hr filter pull (g/hr) | C38: 2.88 | D38: 0.95 | E38: 2.41 | F38: 3.18 | G38: 1.93 | H38: 4.15
A39: Filter data | C39: Yes | D39: Yes | E39: Yes | F39: Yes | G39: Yes | H39: Yes
A40: Train precision (%) | C40: NR | D40: NR | E40: NR | F40: NR | G40: NR | H40: NR | I40: Train precision % is required
A41: Negative weights | C41: No | D41: No | E41: No | F41: No | G41: No | H41: No
A42: Negs handled appropriately | B42: Yes
A43: Heat output by run (Btu/hr) | C43: 34985 | D43: 11690 | E43: 14350 | F43: 23101 | G43: 16134 | H43: 35856
A44: CO by run (g/hr) | C44: 86.26 | D44: 12.49 | E44: 22.91 | F44: 19.76 | G44: 6.23 | H44: 115.34
A45: HHV efficiency (%) | C45: 75.3 | D45: 83.6 | E45: 82.9 | F45: 79.5 | G45: 82 | H45: 75.4
A46: Lowest burn rate tested | B46: Not reported | I46: Test report does not indicate for any test run that the air control was fully closed.
A47: All run data | B47: Not reported | I47: Missing train precision data
A48: Appliance Fueling | B48: Determination | I48: Notes
A49: Fuel species | B49: Doug Fir
A50: Log length (in) | C50: 17.75 | D50: 17.75 | E50: 17.75 | F50: 17.75 | G50: 17.75 | H50: 17.75 | I50: 22
A51: Direction of longest dimension | B51: East-West
A52: Log direction for testing | B52: East-West
A53: Squared (ASTM test only) | B53: N/A (Crib)
A54: Debarked (ASTM test only) | B54: N/A (Crib)
A55: Load density (lb/ft3) | C55: 6.44 | D55: 6.42 | E55: 6.49 | F55: 6.41 | G55: 6.31 | H55: 6.54
A56: Fuel moisture content load (%wb) | C56: 23.4 | D56: 20.1 | E56: 20.2 | F56: 23.3 | G56: 21.2 | H56: 22.9
A57: Fuel piece configuration | B57: Within specified limit
A58: Owners Manual Req. | B58: Determination | I58: Notes
A59: Stack height | B59: Included
A60: Location recommendation | B60: Included
A61: Guidance on proper draft | B61: Included
A62: Fuel loading & reloading | B62: Included
A63: Fuel selection recomm. | B63: Included
A64: Improper fuels warnings | B64: Included
A65: Fire starting procedures | B65: Included
A66: Proper use of air controls | B66: Included
A67: Proper operation low | B67: Insufficient data | I67: Reviewer found that manual does not adequately address operation at low setting.
A68: Ash removal procedures | B68: Included
A69: Replacement parts | B69: Included
A70: Federal warning (C or NC) | B70: Included
A71: Warranty rights | B71: Included
A72: Catalytst operation | B72: Included
A73: Cat maintenance procedures | B73: Included
A74: Determining catalyst det. or failure | B74: Included
A75: Reporting | B75: Determination | I75: Notes
A76: Summary tables complete | B76: Partially reported | I76: Flag in line 46
A77: All run data submitted | B77: Not reported | I77: Flag in line 47
A78: Test report complete | B78: Partially reported minor | I78: Flags in line 26,40,47
A79: Owner manual complete | B79: Partially reported minor
A80: Test dates | B80: 7/29 - 8/2/2019 | I80: received 7/29/2019
A81: 30 Day notice submitted to EPA | B81: Yes
A82: Tested on the proposed date | B82: Yes | I82: determined from email chain provided.
A83: Tested in consecutive days | B83: Yes
A84: 60 Day report to EPA | B84: Yes
A85: EPA additional Review Elements | B85: Determination | I85: Notes
A86: Test location | B86: Manufacturer | I86: Walla Walla, WA
A87: date lab received the unit | B87: 2019-07-26
A88: date first day of conditioning | B88: 2019-02-27 | I88: Date range given 2/27-3/5
A89: date first day of testing | B89: 2019-07-29 | I89: 7/29-8/2
A90: first hour PM emissions reported for all runs | B90: yes
A91: first hour PM emissions reported in grams per hour | B91: yes
A92: first hour PM emissions zero or negative | B92: no
A93: first hour PM emissions measured with front and back filter | B93: no
A94: Zero CO emission reported | B94: no
A95: Any incomplete runs | B95: no
A96: Preburn data reported (SU/High-3053, preburn M28R) | B96: yes
A97: filter changes during test run | B97: no
A98: filter plugged during test run | B98: no
A99: What type of filter used | B99: not reported
A100: Back and front filter weighed together (3053 only)
A101: Negative probe weight >5% of PM | B101: no negative values
A102: Negative probe value | B102: no negative values
A103: Negative room air values | B103: no negative values
A104: Ambient background filter data | B104: no negative values
A105: Proportional sampling | B105: yes with allowable deviations
A106: Leak check - pre-test leak check reported | B106: not reported
A107: Leak check - any filter change | B107: not reported
A108: Leak check - post leak check reported | B108: Meets Specification
A109: Dilution tunnel schematic meets ASTM 2515 requirements | B109: Meets Specification
A110: Firebox measurements confirmed with schematic | B110: yes
A111: number of conditioning hours reported in summary | B111: 50
A112: number of conditioning hours with data | B112: 50
A113: number of hours at correct conditioning conditions | B113: cannot be determined | I113: residual weights for hours with added fuel not provided, therefore unable to determine conformance with the med burn rate requirement
A114: used lowest air settings for low burn (ASTM 3053) or Cat 1(M28R)
A115: Air setting data | B115: Cat 1/Low | C115: Cat 2/Med | D115: Cat 3 | E115: Cat 4/High | F115: FC | G115: CV
B116: 88 deg from open | C116: 80 deg from open | D116: 50 deg from open | E116: fully open | F116: 72 deg from open | G116: fully open
A117: Total number of runs | B117: 7
A118: run averaging done correctly
A119: which SU/H run used for calculating emissions
A120: Fuel data for all SU/H runs (ASTM 3053)
A121: Multiple fuel lengths used | B121: no
A122: Specific gravity of fuel used (ASTM 3053 only) | E122: Value
A123: M28 fuel loaded longest dimension | B123: yes
A124: Calibration data | B124: not reported

Sheet Invicta Group Kazan
A1: Summary of Review
A2: Manufacturer | B2: Energy Distribution
A3: Model | B3: Invicta Group: Kazan, Kazan GA, Kiara, and Kiara GA | F3: Control approach | I3: Non-Catalytic single burnrate stove
A4: Prelim review recomm. | I4: Models match those listed on EPA database
A5: Red flags | B5: 4 | C5: Orange flags | E5: =SUMPRODUCT((B15="NR")+(B15="Not reported")+(G16="NR")+(G16="Not reported")+(B17="NR")+(B17="Not reported"))+COUNTIF(B18:H32,"=Partially reported")+COUNTIF(B34:B38,"=Not reported")+COUNTIF(B40:B41,"=Not reported")+COUNTIF(B43:B45,"=Not reported")+COUNTIF(B46,"=Cannot be determined")+COUNTIF(B39,"=Partially reported")+COUNTIF(B49,"=NR")+COUNTIF(B49,"=Not reported")+COUNTIF(B51:B57,"=Not reported")+COUNTIF(B50,"=Partially reported")+IF(AND(C50<>"",F20<>"",C50<5/6*F20),1,0)+IF(AND(D50<>"",F20<>"",D50<5/6*F20),1,0)+IF(AND(E50<>"",F20<>"",E50<5/6*F20),1,0)+IF(AND(F50<>"",F20<>"",F50<5/6*F20),1,0)+IF(AND(G50<>"",F20<>"",G50<5/6*F20),1,0)+IF(AND(H50<>"",F20<>"",H50<5/6*F20),1,0)+COUNTIF(B59:B74,"=Not included")+COUNTIF(B76:B80,"Not reported")+COUNTIF(B76:B80,"=NR")+COUNTIF(B76:B80,"Partially reported major")+COUNTIF(B81:B84,"=No") -> 4 | F5: Yellow flags | H5: 4
A6: Final Determination | B6: Pending - Major | F6: Date: 9/1/2020 | I6: Basis: IDU, IR, NR
A7: AK List Status | B7: Approved List - Pending
A8: Testing Information | B8: Determination | I8: Notes
A9: Test method | B9: EPA M28R
A10: Test Lab | B10: Polytests Inc.
A11: Third-party certifier | B11: CSA Group
A12: Report certified | B12: Not reported
A13: Test Report Elements | B13: Determination | I13: Notes
A14: Wght Avg PM emissions (g/hr) | B14: 1.76 | D14: PM Highest 1-hr (g/hr) | G14: 2.95
A15: Wght Avg HHV Efficiency (%) | B15: 63.4 | I15: 63.4
A16: Wght Avg CO (g/hr) | B16: =IFERROR(G16*60,"Not reported") -> 117 | D16: Wght Avg CO (g/min) | G16: 1.95
A17: Max heat output (Btu/hr) | B17: 23830 | I17: 42000
A18: Manufacturers Instructions to lab | B18: Not reported | I18: MI are infact lab notes and not instruction to lab.
A19: Firebox vol. test report | B19: 1.53
A20: Firebox dimensions | B20: Reported | D20: Longest dim. (in) | F20: 24.375 | G20: Firebox dimension
A21: Firebox calculations | B21: Reported/matched
A22: Efficiency calculations | B22: Reported
A23: Burn rate calculations | B23: Reported
A24: Raw data sheets | B24: Reported
A25: Conditioning completed by | B25: Lab
A26: Conditioning data | B26: Partially reported | I26: cannot confirm conformance to medium burn rate requirement. Data does not include required fuel data per the test method.
A27: Lab technician notes | B27: Reported
A28: Doc. of run appropriateness | B28: Partially reported | I28: updated report did not address -Summary data nor test run description provided a reason why there was a day in between test runs.
A29: Doc. of run validity | B29: Reported
A30: Doc. of run anomolies | B30: Reported
A31: Doc. of run burn rates | B31: Reported
A32: Photos of the fuel loaded | B32: Reported
A33: Test Run Data | B33: Determination | I33: Notes
A34: Run # | C34: 1 | D34: 2
A35: Run Category | C35: IV | D35: IV
A36: Burn rate (kg/hr) | C36: 1.967 | D36: 1.968
A37: PM emissions by run (g/hr) | C37: 1.38 | D37: 2.14
A38: PM 1-hr filter pull (g/hr) | C38: 1.97 | D38: 2.95
A39: Filter data | C39: yes | D39: yes
A40: Train precision (%) | C40: 2.74 | D40: 0.73
A41: Negative weights | C41: yes | D41: yes
A42: Negs handled appropriately | B42: No | I42: negative filter values are subtacted from total catch. Method requires all negative filter weights to be treated as zero.
A43: Heat output by run (Btu/hr) | C43: 23830 | D43: 23070
A44: CO by run (g/hr) | C44: 108.85 | D44: 124.88
A45: HHV efficiency (%) | C45: 64.5 | D45: 62.3
A46: Lowest burn rate tested | B46: Reported
A47: All run data | B47: Not reported | I47: Missing data from pretests.
A48: Appliance Fueling | B48: Determination | I48: Notes
A49: Fuel species | B49: Douglas Fir
A50: Log length (in) | C50: 19.5 | D50: 19.5 | I50: 22
A51: Direction of longest dimension | B51: East-West
A52: Log direction for testing | B52: East-West
A53: Squared (ASTM test only) | B53: N/A (Crib)
A54: Debarked (ASTM test only) | B54: N/A (Crib)
A55: Load density (lb/ft3) | C55: 6.55 | D55: 6.61 | E55: =SUM(C55:D55) -> 13.16 | F55: =E55/2 -> 6.58 | I55: A avg density 6.58
A56: Fuel moisture content load (%wb) | C56: 21.15 | D56: 20.11 | E56: =SUM(C56:D56) -> 41.26 | F56: =E56/2 -> 20.63 | I56: B avg density 20.6%
A57: Fuel piece configuration | B57: Within specified limit
A58: Owners Manual Req. | B58: Determination | I58: Notes
A59: Stack height | B59: Included
A60: Location recommendation | B60: Included
A61: Guidance on proper draft | B61: Included
A62: Fuel loading & reloading | B62: Included
A63: Fuel selection recomm. | B63: Included
A64: Improper fuels warnings | B64: Included
A65: Fire starting procedures | B65: Included
A66: Proper use of air controls | B66: Included
A67: Proper operation low | B67: Included
A68: Ash removal procedures | B68: Included
A69: Replacement parts | B69: Included
A70: Federal warning (C or NC) | B70: Included
A71: Warranty rights | B71: Included
A72: Catalytst operation | I72: NA
A73: Cat maintenance procedures | I73: NA
A74: Determining catalyst det. or failure | I74: NA
A75: Reporting | B75: Determination | I75: Notes
A76: Summary tables complete | B76: Partially reported | I76: Flag in line 28
A77: All run data submitted | B77: Partially reported | I77: Flag in line 47
A78: Test report complete | B78: Partially reported minor | I78: Flags in lines 12,18,26,42,47
A79: Owner manual complete | B79: All reported
A80: Test dates | B80: 2/26-27/2019
A81: 30 Day notice submitted to EPA | B81: Yes
A82: Tested on the proposed date | B82: Yes | I82: Although 30 day notice only lists Feburary 26, 2019 as test date.
A83: Tested in consecutive days | B83: Yes
A84: 60 Day report to EPA | B84: Cannot be determined | I84: report date 4/9/2019
A85: EPA additional Review Elements | B85: Determination | I85: Notes
A86: Test location | B86: Lab | I86: 695-B Gaudette St-jean-sur-Richelieu QC, Canada J3B 7S7
A87: date lab received the unit | B87: first week in December 2018 | I87: no exact date given
A88: date first day of conditioning | B88: Cannot be determined | I88: no date given
A89: date first day of testing | B89: 2019-02-26
A90: first hour PM emissions reported for all runs | B90: yes
A91: first hour PM emissions reported in grams per hour | B91: yes
A92: first hour PM emissions zero or negative | B92: no
A93: first hour PM emissions measured with front and back filter | B93: yes
A94: Zero CO emission reported | B94: no
A95: Any incomplete runs | B95: no
A96: Preburn data reported (SU/High-3053, preburn M28R) | B96: no
A97: filter changes during test run | B97: no
A98: filter plugged during test run | B98: no
A99: What type of filter used | B99: not reported
A100: Back and front filter weighed together (3053 only)
A101: Negative probe weight >5% of PM | B101: reported and handled correctly
A102: Negative probe value | B102: no negative values
A103: Negative room air values | B103: no negative values
A104: Ambient background filter data | B104: no negative values
A105: Proportional sampling | B105: yes with allowable deviations
A106: Leak check - pre-test leak check reported | B106: Meets Specification
A107: Leak check - any filter change
A108: Leak check - post leak check reported | B108: Meets Specification
A109: Dilution tunnel schematic meets ASTM 2515 requirements | B109: Does not meet specification | I109: photos and schematic include dilution tunnel
A110: Firebox measurements confirmed with schematic | B110: no | I110: no schematic included in report
A111: number of conditioning hours reported in summary | B111: 50
A112: number of conditioning hours with data | B112: 50
A113: number of hours at correct conditioning conditions | B113: Cannot be determined | I113: see line 26
A114: used lowest air settings for low burn (ASTM 3053) or Cat 1(M28R) | I114: Single burnrate device
A115: Air setting data | B115: Cat 1/Low | C115: Cat 2/Med | D115: Cat 3 | E115: Cat 4/High | F115: FC | G115: CV | I115: Both runs had a burnrate of 1.97 kg/hr
A117: Total number of runs | B117: 2
A118: run averaging done correctly
A119: which SU/H run used for calculating emissions
A120: Fuel data for all SU/H runs (ASTM 3053)
A121: Multiple fuel lengths used | B121: no
A122: Specific gravity of fuel used (ASTM 3053 only) | E122: Value
A123: M28 fuel loaded longest dimension | B123: yes
A124: Calibration data | B124: partially reported | I124: Although calibration data is reported most certificates are outside the 6 month window

Sheet F2500
A1: Summary of Review
A2: Manufacturer | B2: FPI / Regency Fireplace Products | I2: 2021-03-31
A3: Model | B3: F2500 | F3: Control approach | I3: Catalytic
A4: Prelim review recomm. | B4: Disapproved | I4: Models match EPA database listing
A5: Red flags | B5: 7 | C5: Orange flags | E5: 12 | F5: Yellow flags | H5: 8
A6: Final Determination | B6: Pending - Major | F6: Date: 9/1/2020 | I6: Basis: IR, IDU
A7: AK List Status | B7: Approved List - Pending
A8: Testing Information | B8: Determination | I8: Notes
A9: Test method | B9: ASTM E3053 | I9: ATM must be approved by ADEC (18 AAC 50.077(c)(3)(A)(ii).
A10: Test Lab | B10: PFS-TECO | I10: performed at PFS facility
A11: Third-party certifier | B11: PFS-TECO
A12: Report certified | B12: PFS-TECO
A13: Test Report Elements | B13: Determination | I13: Notes
A14: Wght Avg PM emissions (g/hr) | B14: 1 | D14: PM Highest 1-hr (g/hr) | G14: 5.14 | I14: 1
A15: Wght Avg HHV Efficiency (%) | B15: 76 | I15: 81
A16: Wght Avg CO (g/hr) | B16: =IFERROR(G16*60,"Not reported") -> 28.8 | D16: Wght Avg CO (g/min) | G16: 0.48
A17: Max heat output (Btu/hr) | B17: 50439 | I17: 78000
A18: Manufacturers Instructions to lab | B18: Reported | I18: pg. 209
A19: Firebox vol. test report | B19: 2.24 | I19: 2.3
A20: Firebox dimensions | B20: Reported | D20: Longest dim. (in) | F20: 18.5 | G20: Firebox dimension
A21: Firebox calculations | B21: Reported/matched | I21: 2.24 ft3
A22: Efficiency calculations | B22: Reported
A23: Burn rate calculations | B23: Partially reported | I23: burn rates are not reported consistently
A24: Raw data sheets | B24: Reported
A25: Conditioning completed by | B25: Manufacturer | I25: pg 4 of report states 50 hrs of conditioning was conducted by "FPI lab staff"
A26: Conditioning data | B26: Reported | I26: Conditioning data denotes SJB as Tech who performed conditioning. Sebastian J Button who is a PFS employee. This contradicts above reported information regarding the manufacturers completion of conditioning.
A27: Lab technician notes | B27: Reported
A28: Doc. of run appropriateness | B28: Partially reported | I28: did not discuss why SU/H was run completed as a third test day rather than using the SU/H test runs for day 1 or 2.
A29: Doc. of run validity | B29: Partially reported | I29: did not report run outside of method precision, even if other criteria was used this should have been reported in the summary narative.
A30: Doc. of run anomolies | B30: Partially reported | I30: did not report anomolies, data suggest they exist
A31: Doc. of run burn rates | B31: Partially reported | I31: different burn rates used for the same run
A32: Photos of the fuel loaded | B32: Partially reported | I32: photos added to updated report are not from actual test as they are labeled as "Typical" loads.
A33: Test Run Data | B33: Determination | I33: Notes
A34: Run # | C34: 1 | D34: 2 | E34: 3
A35: Run Category | C35: Startup & High | D35: Low | E35: Medium | I35: TM doesn't require kg/hr - basis but
A36: Burn rate (kg/hr) | C36: 3.5 | D36: 1.04 | E36: 1.16 | I36: essentially the same heat output. Why
A37: PM emissions by run (g/hr) | C37: 2.82 | D37: 0.67 | E37: 0.5 | I37: wasn't a higher air setting used.
A38: PM 1-hr filter pull (g/hr) | C38: 5.14 | D38: 4.54 | E38: 1.37 | I38: H: 2.114" open
A39: Filter data | C39: yes | D39: yes | E39: yes | I39: M: 1.244" open
A40: Train precision (%) | C40: 0.8 | D40: 0.7 | E40: -8 | I40: L: 0.707" open
A41: Negative weights | C41: no | D41: no | E41: no
A42: Negs handled appropriately | B42: Yes
A43: Heat output by run (Btu/hr) | C43: 50349 | D43: 14944 | E43: 16746
A44: CO by run (g/hr) | C44: 25.2 | D44: 45 | E44: 17.4
A45: HHV efficiency (%) | C45: 74.3 | D45: 76.3 | E45: 76.6
A46: Lowest burn rate tested | B46: Cannot be determined
A47: All run data | B47: Not reported | I47: missing data to confirm SU/H completed correctly before two testing days
A48: Appliance Fueling | B48: Determination | I48: Notes
A49: Fuel species | B49: Maple
A50: Log length (in) | C50: 16 | D50: 16 | E50: 16 | I50: Catalytic
A51: Direction of longest dimension | B51: North-South
A52: Log direction for testing | B52: North-South
A53: Squared (ASTM test only) | B53: Less than 50% | I53: Based on photos supplied, no run # reported.
A54: Debarked (ASTM test only) | B54: More than 50%
A55: Load density (lb/ft3) | C55: 9.8 | D55: 11.73 | E55: 11.67
A56: Fuel moisture content load (%wb) | C56: 20.2 | D56: 20.2 | E56: 21.6 | I56: B avg moisture content 20.7%
A57: Fuel piece configuration | B57: Within specified limit
A58: Owners Manual Req. | B58: Determination | I58: Notes
A59: Stack height | B59: Included
A60: Location recommendation | B60: Included
A61: Guidance on proper draft | B61: Included
A62: Fuel loading & reloading | B62: Included
A63: Fuel selection recomm. | B63: Included
A64: Improper fuels warnings | B64: Included
A65: Fire starting procedures | B65: Included
A66: Proper use of air controls | B66: Included
A67: Proper operation low | B67: Included
A68: Ash removal procedures | B68: Included
A69: Replacement parts | B69: Included
A70: Federal warning (C or NC) | B70: Included
A71: Warranty rights | B71: Included
A72: Catalytst operation | B72: Included
A73: Cat maintenance procedures | B73: Included
A74: Determining catalyst det. or failure | B74: Included
A75: Reporting | B75: Determination | I75: Notes
A76: Summary tables complete | B76: Partially reported | I76: flags in 28,29,30,31,46
A77: All run data submitted | B77: Partially reported | I77: flag in 47 & 96
A78: Test report complete | B78: Partially reported major | I78: flags in 23,47,54
A79: Owner manual complete | B79: All reported
A80: Test dates | B80: 6/25-27/2018
A81: 30 Day notice submitted to EPA | B81: Yes | I81: week of June 25th
A82: Tested on the proposed date | B82: Yes
A83: Tested in consecutive days | B83: Yes
A84: 60 Day report to EPA | B84: Yes
A85: EPA additional Review Elements | B85: Determination | I85: Notes
A86: Test location | B86: Lab | I86: PFS-TECO Portland Laboratory, 11785 SE HWY 212 - Suite 305, Clackamas, OR 97015
A87: date lab received the unit | B87: 2018-06-21
A88: date first day of conditioning | B88: 2018-06-01 | I88: 6/1-6/18
A89: date first day of testing | B89: 2018-06-25
A90: first hour PM emissions reported for all runs | B90: yes
A91: first hour PM emissions reported in grams per hour | B91: yes
A92: first hour PM emissions zero or negative | B92: no
A93: first hour PM emissions measured with front and back filter | B93: no
A94: Zero CO emission reported | B94: no
A95: Any incomplete runs | B95: no
A96: Preburn data reported (SU/High-3053, preburn M28R) | B96: no
A97: filter changes during test run | B97: no
A98: filter plugged during test run | B98: no
A99: What type of filter used | B99: other | I99: Pall Type TX40
A100: Back and front filter weighed together (3053 only) | B100: yes
A101: Negative probe weight >5% of PM | B101: no negative values
A102: Negative probe value | B102: no negative values
A103: Negative room air values | B103: no negative values
A104: Ambient background filter data | B104: no negative values
A105: Proportional sampling | B105: yes with allowable deviations
A106: Leak check - pre-test leak check reported | B106: not reported
A107: Leak check - any filter change
A108: Leak check - post leak check reported | B108: Meets Specification
A109: Dilution tunnel schematic meets ASTM 2515 requirements | B109: Meets Specification
A110: Firebox measurements confirmed with schematic | B110: no
A111: number of conditioning hours reported in summary | B111: 50
A112: number of conditioning hours with data | B112: 50
A113: number of hours at correct conditioning conditions | B113: Cannot be determined | I113: hours where fuel is loaded does not provide residual fuel weights, therefore med burn requirement cannot be confirmed.
A114: used lowest air settings for low burn (ASTM 3053) or Cat 1(M28R) | B114: no | I114: .707" from fully closed
A115: Air setting data | B115: Cat 1/Low | C115: Cat 2/Med | D115: Cat 3 | E115: Cat 4/High | F115: FC | G115: CV
B116: .707" from fully closed | C116: 1..244" from fully closed | E116: 2.114" from fully closed
A117: Total number of runs | B117: 5
A118: run averaging done correctly
A119: which SU/H run used for calculating emissions | B119: first run
A120: Fuel data for all SU/H runs (ASTM 3053) | B120: no
A121: Multiple fuel lengths used | B121: no
A122: Specific gravity of fuel used (ASTM 3053 only) | B122: yes | E122: Value | G122: 0.6
A123: M28 fuel loaded longest dimension
A124: Calibration data | B124: not reported | I124: Submitted report did not include appendix C - Equipment Calibration Records

Sheet Castleton I 8031
A1: Summary of Review
A2: Manufacturer | B2: Hearthstone Quality Home Heating Products Inc. | I2: 2021-03-31
A3: Model | B3: Castleton I 8031 | F3: Control approach | I3: Hybrid
A4: Prelim review recomm. | B4: Requires a more thorough review
A5: Red flags | B5: 7 | C5: Orange flags | E5: 4 | F5: Yellow flags | H5: 6
A6: Final Determination | B6: Pending - Major | F6: Date: 9/1/2020 | I6: Basis: IDU, IR, NR
A7: AK List Status | B7: Approved List - Pending
A8: Testing Information | B8: Determination | I8: Notes
A9: Test method | B9: EPA M28R
A10: Test Lab | B10: Polytests Inc. | I10: performed at Polytest facility
A11: Third-party certifier | B11: PFS-TECO | I11: as Dirigo
A12: Report certified | B12: PFS-TECO
A13: Test Report Elements | B13: Determination | I13: Notes
A14: Wght Avg PM emissions (g/hr) | B14: 0.69 | D14: PM Highest 1-hr (g/hr) | G14: 3.93
A15: Wght Avg HHV Efficiency (%) | B15: 77 | I15: 77
A16: Wght Avg CO (g/hr) | B16: =IFERROR(G16*60,"Not reported") -> 43.2 | D16: Wght Avg CO (g/min) | G16: 0.72
A17: Max heat output (Btu/hr) | B17: 24292 | I17: 45000
A18: Manufacturers Instructions to lab | B18: Reported | I18: pg. 352
A19: Firebox vol. test report | B19: 1.9 | I19: 1.9
A20: Firebox dimensions | B20: Reported | D20: Longest dim. (in) | F20: 18.8 | G20: Firebox dimension
A21: Firebox calculations | B21: Reported/matched
A22: Efficiency calculations | B22: Reported
A23: Burn rate calculations | B23: Reported
A24: Raw data sheets | B24: Reported
A25: Conditioning completed by | B25: Manufacturer | I25: report states lab did test runs to ensure repeatability. No data for these runs included in the report.
A26: Conditioning data | B26: Partially reported | I26: data insufficient to derermine conformance to medium burn rate requirements.
A27: Lab technician notes | B27: Reported
A28: Doc. of run appropriateness | B28: Reported
A29: Doc. of run validity | B29: Reported | I29: manufacturer noted in updated report pg. 13 that "Test failed due to temperature differential greater than 126°F (ASTM 2780 Section 9.5.10 Wood heater thermal equilibrium)."
A30: Doc. of run anomolies | B30: Reported
A31: Doc. of run burn rates | B31: Reported
A32: Photos of the fuel loaded | B32: Reported
A33: Test Run Data | B33: Determination | I33: Notes
A34: Run # | C34: 1 | D34: 2 | E34: 3 | F34: 4 | G34: 5 | H34: 6
A35: Run Category | C35: II | D35: III | E35: IV | F35: II | G35: I | H35: I
A36: Burn rate (kg/hr) | C36: 0.963 | D36: 1.486 | E36: 1.771 | F36: 0.95 | G36: 0.816 | H36: 0.934
A37: PM emissions by run (g/hr) | C37: 0.5 | D37: 0.5 | E37: 1.5 | F37: 0.5 | G37: 0.4 | H37: 0.4
A38: PM 1-hr filter pull (g/hr) | C38: 2.19 | D38: 1.47 | E38: 3.93 | F38: 2.18 | G38: 2.09 | H38: 1.69
A39: Filter data | C39: yes | D39: yes | E39: yes | F39: yes | G39: yes | H39: yes
A40: Train precision (%) | C40: 2.95 | D40: 1.57 | E40: 0.47 | F40: 4.77 | G40: 3.84 | H40: 1.51
A41: Negative weights | C41: yes | D41: yes | E41: yes | F41: yes | G41: yes | H41: yes
A42: Negs handled appropriately | B42: No | I42: negative filter values are subtacted from total catch. Method requires all negative filter weights to be treated as zero.
A43: Heat output by run (Btu/hr) | C43: 14115 | D43: 21033 | E43: 24292 | F43: 13781 | G43: 12041 | H43: 13442
A44: CO by run (g/hr) | C44: 28.411 | D44: 36.106 | E44: 92.96 | F44: 33.94 | G44: 18.14 | H44: 27.92
A45: HHV efficiency (%) | C45: 79.41 | D45: 76.04 | E45: 72.97 | F45: 78.56 | G45: 78.51 | H45: 78.04
A46: Lowest burn rate tested | B46: Cannot be determined
A47: All run data | B47: Reported
A48: Appliance Fueling | B48: Determination | I48: Notes
A49: Fuel species | B49: Douglas Fir
A50: Log length (in) | C50: 13.25 | D50: 13.5 | E50: 13.5 | F50: 13.63 | G50: 13 | H50: 13.5 | I50: 18
A51: Direction of longest dimension | B51: East-West | I51: Requires further explanation, 5 inch from max log length noted.
A52: Log direction for testing | B52: East-West
A53: Squared (ASTM test only) | B53: N/A (Crib)
A54: Debarked (ASTM test only) | B54: N/A (Crib)
A55: Load density (lb/ft3) | C55: 6.891 | D55: 6.937 | E55: 6.957 | F55: 6.988 | G55: 6.951 | H55: 6.999 | I55: B avg density 6.95
A56: Fuel moisture content load (%wb) | C56: 20.5 | D56: 20.67 | E56: 20.91 | F56: 20.79 | G56: 21.02 | H56: 20.72 | I56: B avg moisture 20.8
A57: Fuel piece configuration | B57: Within specified limit
A58: Owners Manual Req. | B58: Determination | I58: Notes
A59: Stack height | B59: Included
A60: Location recommendation | B60: Included
A61: Guidance on proper draft | B61: Included
A62: Fuel loading & reloading | B62: Included
A63: Fuel selection recomm. | B63: Included
A64: Improper fuels warnings | B64: Included
A65: Fire starting procedures | B65: Included
A66: Proper use of air controls | B66: Included
A67: Proper operation low | B67: Included
A68: Ash removal procedures | B68: Included
A69: Replacement parts | B69: Included
A70: Federal warning (C or NC) | B70: Included
A71: Warranty rights | B71: Included
A72: Catalytst operation | B72: Included
A73: Cat maintenance procedures | B73: Included
A74: Determining catalyst det. or failure | B74: Included
A75: Reporting | B75: Determination | I75: Notes
A76: Summary tables complete | B76: Partially reported | I76: Flag in line 46
A77: All run data submitted | B77: Partially reported | I77: Flag in line 96
A78: Test report complete | B78: Partially reported minor | I78: Flag in lines 26,42
A79: Owner manual complete | B79: All reported
A80: Test dates | B80: 7/17-25/2017
A81: 30 Day notice submitted to EPA | B81: Yes
A82: Tested on the proposed date | B82: Yes
A83: Tested in consecutive days | B83: Yes
A84: 60 Day report to EPA | B84: Cannot be determined | I84: report date 7/31/2017
A85: EPA additional Review Elements | B85: Determination | I85: Notes
A86: Test location | B86: Lab | I86: 695-B Gaudette St-jean-sur-Richelieu QC, Canada J3B 7S7
A87: date lab received the unit | B87: First week in July | I87: No specific date provided
A88: date first day of conditioning | B88: 2017-06-29
A89: date first day of testing | B89: 2017-07-17
A90: first hour PM emissions reported for all runs | B90: yes
A91: first hour PM emissions reported in grams per hour | B91: yes
A92: first hour PM emissions zero or negative | B92: no
A93: first hour PM emissions measured with front and back filter | B93: yes
A94: Zero CO emission reported | B94: no
A95: Any incomplete runs | B95: no
A96: Preburn data reported (SU/High-3053, preburn M28R) | B96: no
A97: filter changes during test run | B97: no
A98: filter plugged during test run | B98: no
A99: What type of filter used | B99: not reported
A100: Back and front filter weighed together (3053 only)
A101: Negative probe weight >5% of PM | B101: no negative values
A102: Negative probe value | B102: no negative values
A103: Negative room air values | B103: no negative values
A104: Ambient background filter data | B104: no negative values
A105: Proportional sampling | B105: yes with allowable deviations
A106: Leak check - pre-test leak check reported | B106: Meets Specification
A107: Leak check - any filter change
A108: Leak check - post leak check reported | B108: Meets Specification
A109: Dilution tunnel schematic meets ASTM 2515 requirements | B109: Does not meet specification | I109: Generic photos show correct config, however schematic on pg 314 includes mixing baffle.
A110: Firebox measurements confirmed with schematic | B110: no
A111: number of conditioning hours reported in summary | B111: 50
A112: number of conditioning hours with data | B112: 50
A113: number of hours at correct conditioning conditions | B113: Cannot be determined | I113: report doesn't include residual weights on times with fuel is added and is not provided at hourly intervals.
A114: used lowest air settings for low burn (ASTM 3053) or Cat 1(M28R) | B114: no
A115: Air setting data | B115: Cat 1/Low | C115: Cat 2/Med | D115: Cat 3 | E115: Cat 4/High | F115: FC | G115: CV
A117: Total number of runs | B117: 6
A118: run averaging done correctly
A119: which SU/H run used for calculating emissions
A120: Fuel data for all SU/H runs (ASTM 3053)
A121: Multiple fuel lengths used | B121: yes | I121: slight differences of less than 1"
A122: Specific gravity of fuel used (ASTM 3053 only) | E122: Value
A123: M28 fuel loaded longest dimension | B123: yes
A124: Calibration data | B124: partially reported | I124: Though provided some calibrations are beyond 6 months

Sheet Green Mountain 40 (8640), Craft
A1: Summary of Review
A2: Manufacturer | B2: Hearthstone Quality Home Heating Products Inc. | I2: 2021-03-31
A3: Model | B3: Green Mountain 40 (8640), Craftsbury 2 (8392), Hipster 14 | F3: Control approach | I3: Catalytic- hybrid
A4: Prelim review recomm. | B4: Requires a more thorough review | I4: models match epa database list
A5: Red flags | B5: 11 | C5: Orange flags | E5: =SUMPRODUCT((B15="NR")+(B15="Not reported")+(G16="NR")+(G16="Not reported")+(B17="NR")+(B17="Not reported"))+COUNTIF(B18:H32,"=Partially reported")+COUNTIF(B34:B38,"=Not reported")+COUNTIF(B40:B41,"=Not reported")+COUNTIF(B43:B45,"=Not reported")+COUNTIF(B46,"=Cannot be determined")+COUNTIF(B39,"=Partially reported")+COUNTIF(B49,"=NR")+COUNTIF(B49,"=Not reported")+COUNTIF(B51:B57,"=Not reported")+COUNTIF(B50,"=Partially reported")+IF(AND(C50<>"",F20<>"",C50<5/6*F20),1,0)+IF(AND(D50<>"",F20<>"",D50<5/6*F20),1,0)+IF(AND(E50<>"",F20<>"",E50<5/6*F20),1,0)+IF(AND(F50<>"",F20<>"",F50<5/6*F20),1,0)+IF(AND(G50<>"",F20<>"",G50<5/6*F20),1,0)+IF(AND(H50<>"",F20<>"",H50<5/6*F20),1,0)+COUNTIF(B59:B74,"=Not included")+COUNTIF(B76:B80,"Not reported")+COUNTIF(B76:B80,"=NR")+COUNTIF(B76:B80,"Partially reported major")+COUNTIF(B81:B84,"=No") -> 7 | F5: Yellow flags | H5: 6
A6: Final Determination | B6: Pending - Major | F6: Date: 9/1/2020 | I6: Basis: IDU, IR
A7: AK List Status | B7: Approved List - Pending
A8: Testing Information | B8: Determination | I8: Notes
A9: Test method | B9: EPA M28R
A10: Test Lab | B10: Polytests Inc. | I10: performed at polytest facility
A11: Third-party certifier | B11: PFS-TECO | I11: Dirigo 3rd party
A12: Report certified | B12: PFS-TECO
A13: Test Report Elements | B13: Determination | I13: Notes
A14: Wght Avg PM emissions (g/hr) | B14: 1.07 | D14: PM Highest 1-hr (g/hr) | G14: 4.09
A15: Wght Avg HHV Efficiency (%) | B15: 79 | I15: 79
A16: Wght Avg CO (g/hr) | B16: =IFERROR(G16*60,"Not reported") -> 31.2 | D16: Wght Avg CO (g/min) | G16: 0.52
A17: Max heat output (Btu/hr) | B17: 31581 | I17: 40000
A18: Manufacturers Instructions to lab | B18: Reported | I18: pg 375
A19: Firebox vol. test report | B19: 1.31 | I19: 1.32
A20: Firebox dimensions | B20: Reported | D20: Longest dim. (in) | F20: 17.5 | G20: Firebox dimension | I20: pg 373
A21: Firebox calculations | B21: Reported/matched
A22: Efficiency calculations | B22: Reported
A23: Burn rate calculations | B23: Reported
A24: Raw data sheets | B24: Reported
A25: Conditioning completed by | B25: Manufacturer | I25: report states lab did test runs to ensure repeatability. No data for these runs included in the report.
A26: Conditioning data | B26: Partially reported | I26: data insufficient to derermine conformance to medium burn rate requirements.
A27: Lab technician notes | B27: Reported
A28: Doc. of run appropriateness | B28: Reported
A29: Doc. of run validity | B29: Reported
A30: Doc. of run anomolies | B30: Reported
A31: Doc. of run burn rates | B31: Reported
A32: Photos of the fuel loaded | B32: Reported
A33: Test Run Data | B33: Determination | I33: Notes
A34: Run # | C34: 1 | D34: 2 | E34: 3 | F34: 4 | G34: 5 | H34: 6 | I34: Data has been corrected to reflect 2019 report.
A35: Run Category | C35: I | D35: III | E35: IV | F35: I | G35: II | H35: I
A36: Burn rate (kg/hr) | C36: 1.029 | D36: 1.773 | E36: 2.269 | F36: 1.167 | G36: 1.077 | H36: 0.92
A37: PM emissions by run (g/hr) | C37: 0.45 | D37: 1.67 | E37: 2.78 | F37: 0.61 | G37: 0.41 | H37: 0.61
A38: PM 1-hr filter pull (g/hr) | C38: 1.39 | D38: 3.11 | E38: 4.09 | F38: 1.27 | G38: 1.3 | H38: 1.82
A39: Filter data | C39: yes | D39: yes | E39: yes | F39: yes | G39: yes | H39: yes
A40: Train precision (%) | C40: 1.53 | D40: 5.11 | E40: 4.54 | F40: 3.54 | G40: 2.16 | H40: 1.82
A41: Negative weights | C41: yes | D41: yes | E41: yes | F41: yes | G41: yes | H41: yes
A42: Negs handled appropriately | B42: No | I42: negative filter values are subtacted from total catch. Method requires all negative filter weights to be treated as zero.
A43: Heat output by run (Btu/hr) | C43: 15640 | D43: 25443 | E43: 31581 | F43: 17805 | G43: 15764 | H43: 13876
A44: CO by run (g/hr) | C44: 29.14 | D44: 8.56 | E44: 60.1 | F44: 16.33 | G44: 44.02 | H44: 40.67
A45: HHV efficiency (%) | C45: 80.83 | D45: 76.5 | E45: 73.6 | F45: 80.89 | G45: 77.89 | H45: 80.22
A46: Lowest burn rate tested | B46: Reported
A47: All run data | B47: Reported
A48: Appliance Fueling | B48: Determination | I48: Notes
A49: Fuel species | B49: Doug Fir
A50: Log length (in) | C50: 13.5 | D50: 13.5 | E50: 13.5 | F50: 13.5 | G50: 13.5 | I50: 16
A51: Direction of longest dimension | B51: East-West
A52: Log direction for testing | B52: East-West
A53: Squared (ASTM test only) | B53: N/A (Crib)
A54: Debarked (ASTM test only) | B54: N/A (Crib)
A55: Load density (lb/ft3) | C55: 7.3 | D55: 7.2 | E55: 7.2 | F55: 7.1 | G55: 7.2
A56: Fuel moisture content load (%wb) | C56: 20.39 | D56: 20.45 | E56: 20.45 | F56: 20.033 | G56: 20.03
A57: Fuel piece configuration | B57: Within specified limit
A58: Owners Manual Req. | B58: Determination | I58: Notes
A59: Stack height | B59: Included
A60: Location recommendation | B60: Included
A61: Guidance on proper draft | B61: Included
A62: Fuel loading & reloading | B62: Included
A63: Fuel selection recomm. | B63: Included
A64: Improper fuels warnings | B64: Included
A65: Fire starting procedures | B65: Included
A66: Proper use of air controls | B66: Included
A67: Proper operation low | B67: Included
A68: Ash removal procedures | B68: Included
A69: Replacement parts | B69: Included
A70: Federal warning (C or NC) | B70: Included
A71: Warranty rights | B71: Included
A72: Catalytst operation | B72: Included
A73: Cat maintenance procedures | B73: Included
A74: Determining catalyst det. or failure | B74: Included
A75: Reporting | B75: Determination | I75: Notes
A76: Summary tables complete | B76: All reported
A77: All run data submitted | B77: Partially reported | I77: Flag in line 96
A78: Test report complete | B78: Partially reported major | I78: Flags in lines 26&42
A79: Owner manual complete | B79: All reported
A80: Test dates | B80: 3/18-26, 2019
A81: 30 Day notice submitted to EPA | B81: Yes | I81: pg 298
A82: Tested on the proposed date | B82: Yes
A83: Tested in consecutive days | B83: Yes
A84: 60 Day report to EPA | B84: Cannot be determined | I84: report date 6/9/2017
A85: EPA additional Review Elements | B85: Determination | I85: Notes
A86: Test location | B86: Lab
A87: date lab received the unit | B87: First week of May | I87: no specific date given
A88: date first day of conditioning | B88: 2019-01-30
A89: date first day of testing | B89: 2019-03-18
A90: first hour PM emissions reported for all runs | B90: yes
A91: first hour PM emissions reported in grams per hour | B91: yes
A92: first hour PM emissions zero or negative | B92: no
A93: first hour PM emissions measured with front and back filter | B93: yes
A94: Zero CO emission reported | B94: no
A95: Any incomplete runs | B95: no
A96: Preburn data reported (SU/High-3053, preburn M28R) | B96: no
A97: filter changes during test run | B97: no
A98: filter plugged during test run | B98: no
A99: What type of filter used | B99: not reported
A100: Back and front filter weighed together (3053 only)
A101: Negative probe weight >5% of PM | B101: no negative values
A102: Negative probe value | B102: no negative values
A103: Negative room air values | B103: no negative values
A104: Ambient background filter data | B104: no negative values
A105: Proportional sampling | B105: yes with allowable deviations
A106: Leak check - pre-test leak check reported | B106: Meets Specification
A107: Leak check - any filter change
A108: Leak check - post leak check reported | B108: Meets Specification
A109: Dilution tunnel schematic meets ASTM 2515 requirements | B109: Does not meet specification | I109: Mixing baffle shown in schematic and photo
A110: Firebox measurements confirmed with schematic | B110: no
A111: number of conditioning hours reported in summary | B111: 50
A112: number of conditioning hours with data | B112: 50
A113: number of hours at correct conditioning conditions | B113: Cannot be determined | I113: data insufficient to derermine conformance to medium burn rate requirements.
A114: used lowest air settings for low burn (ASTM 3053) or Cat 1(M28R) | B114: yes
A115: Air setting data | B115: Cat 1/Low | C115: Cat 2/Med | D115: Cat 3 | E115: Cat 4/High | F115: FC | G115: CV
B116: .065" | C116: 0.07" | D116: .25" | E116: open
A117: Total number of runs | B117: 6
A118: run averaging done correctly
A119: which SU/H run used for calculating emissions
A120: Fuel data for all SU/H runs (ASTM 3053)
A121: Multiple fuel lengths used | B121: no
A122: Specific gravity of fuel used (ASTM 3053 only) | E122: Value
A123: M28 fuel loaded longest dimension | B123: yes
A124: Calibration data | B124: partially reported | I124: although calibration data is provided some certifications are beyond the 6 month requirement.

Sheet Green Mountain 60 8660, Hipster
A1: Summary of Review
A2: Manufacturer | B2: Hearthstone Quality Home Heating Products Inc. | I2: 2021-03-31
A3: Model | B3: Green Mountain 60 8660, Hipster 20, Shelburne 8372 | F3: Control approach | I3: Catalytic
A4: Prelim review recomm. | B4: Requires a more thorough review | I4: models match epa database list
A5: Red flags | B5: =3+SUMPRODUCT((B14="NR")+(B14="Not reported")+(G14="NR")+(G14="Not reported"))+COUNTIF(B18:H32,"=Not reported")+COUNTIF(B18:H32,"=NR")+COUNTIF(B14,">2")+COUNTIF(G14,">6")+COUNTIF(B21,"=Reported/not matched")+COUNTIF(B39,"=Not reported")+COUNTIF(B42,"=No")+COUNTIF(B46:B47,"=Not reported")+COUNTIF(B49,"=NR")+COUNTIF(B49,"=Not reported")+COUNTIF(B50,"=Not reported")+COUNTIF(B53,"=All")+COUNTIF(B53,"=More than 50%")+COUNTIF(B54,"=More than 50%")+COUNTIF(B55:B57,"=Not within specified limit") -> 4 | C5: Orange flags | E5: 4 | F5: Yellow flags | H5: 4
A6: Final Determination | B6: Pending - Major | F6: Date: 9/1/2020 | I6: Basis: IDU, IR
A7: AK List Status | B7: Approved List - Pending
A8: Testing Information | B8: Determination | I8: Notes
A9: Test method | B9: EPA M28R
A10: Test Lab | B10: Polytests Inc. | I10: performed at Polytest facility
A11: Third-party certifier | B11: PFS-TECO
A12: Report certified | B12: PFS-TECO
A13: Test Report Elements | B13: Determination | I13: Notes
A14: Wght Avg PM emissions (g/hr) | B14: 0.62 | D14: PM Highest 1-hr (g/hr) | G14: 4.38
A15: Wght Avg HHV Efficiency (%) | B15: 79.2 | I15: 79
A16: Wght Avg CO (g/hr) | B16: =IFERROR(G16*60,"Not reported") -> 23.4 | D16: Wght Avg CO (g/min) | G16: 0.39
A17: Max heat output (Btu/hr) | B17: 33576 | I17: 60000
A18: Manufacturers Instructions to lab | B18: Reported | I18: pg 293
A19: Firebox vol. test report | B19: 2.03 | I19: 2
A20: Firebox dimensions | B20: Reported | D20: Longest dim. (in) | F20: 20 | G20: Firebox dimension
A21: Firebox calculations | B21: Reported/matched
A22: Efficiency calculations | B22: Reported
A23: Burn rate calculations | B23: Reported
A24: Raw data sheets | B24: Reported
A25: Conditioning completed by | B25: Manufacturer | I25: report states lab did test runs to ensure repeatability. No data for these runs included in the report.
A26: Conditioning data | B26: Partially reported | I26: data insufficient to determine conformance to medium burn rate requirements.
A27: Lab technician notes | B27: Reported
A28: Doc. of run appropriateness | B28: Reported
A29: Doc. of run validity | B29: Reported
A30: Doc. of run anomolies | B30: Reported
A31: Doc. of run burn rates | B31: Reported
A32: Photos of the fuel loaded | B32: Reported
A33: Test Run Data | B33: Determination | I33: Notes
A34: Run # | C34: 1 | D34: 2 | E34: 3 | F34: 4 | G34: 5
A35: Run Category | C35: I | D35: II | E35: II | F35: III | G35: IV
A36: Burn rate (kg/hr) | C36: 0.834 | D36: 1.239 | E36: 1.17 | F36: 1.604 | G36: 2.37 | I36: 5 runs, 4 CT, R3 FC
A37: PM emissions by run (g/hr) | C37: 0.39 | D37: 0.2 | E37: 0.27 | F37: 0.78 | G37: 2.15
A38: PM 1-hr filter pull (g/hr) | C38: 1.53 | D38: 0.41 | E38: 0.98 | F38: 2.35 | G38: 4.38
A39: Filter data | C39: yes | D39: yes | E39: yes | F39: yes | G39: yes
A40: Train precision (%) | C40: 4.82 | D40: 0.77 | E40: 4.97 | F40: 6.91 | G40: 5.95
A41: Negative weights | C41: yes | D41: yes | E41: yes | F41: yes | G41: yes
A42: Negs handled appropriately | B42: No | I42: negative filter values are subtacted from total catch. Method requires all negative filter weights to be treated as zero.
A43: Heat output by run (Btu/hr) | C43: 12608 | D43: 18702 | E43: 17403 | F43: 23468 | G43: 33576
A44: CO by run (g/hr) | C44: 8.88 | D44: 21.14 | E44: 23.79 | F44: 32.83 | G44: 51.43
A45: HHV efficiency (%) | C45: 80.42 | D45: 80.29 | E45: 80.09 | F45: 77.81 | G45: 75.37
A46: Lowest burn rate tested | B46: Cannot be determined
A47: All run data | B47: Reported
A48: Appliance Fueling | B48: Determination | I48: Notes
A49: Fuel species | B49: Douglas Fir
A50: Log length (in) | C50: 17.25 | D50: 17.5 | E50: 17.25 | F50: 17.25 | G50: 17 | I50: 18
A51: Direction of longest dimension | B51: East-West
A52: Log direction for testing | B52: East-West
A53: Squared (ASTM test only) | B53: N/A (Crib)
A54: Debarked (ASTM test only) | B54: N/A (Crib)
A55: Load density (lb/ft3) | C55: 6.439 | D55: 6.547 | E55: 6.45 | F55: 6.54 | G55: 6.694 | I55: A avg density 6.53
A56: Fuel moisture content load (%wb) | C56: 20.5 | D56: 20.6 | E56: 30.37 | F56: 20.45 | G56: 20.03 | I56: C avg moisture 22.39
A57: Fuel piece configuration | B57: Within specified limit
A58: Owners Manual Req. | B58: Determination | I58: Notes
A59: Stack height | B59: Included
A60: Location recommendation | B60: Included
A61: Guidance on proper draft | B61: Included
A62: Fuel loading & reloading | B62: Included
A63: Fuel selection recomm. | B63: Included
A64: Improper fuels warnings | B64: Included
A65: Fire starting procedures | B65: Included
A66: Proper use of air controls | B66: Included
A67: Proper operation low | B67: Included
A68: Ash removal procedures | B68: Included
A69: Replacement parts | B69: Included
A70: Federal warning (C or NC) | B70: Included
A71: Warranty rights | B71: Included
A72: Catalytst operation | B72: Included
A73: Cat maintenance procedures | B73: Included
A74: Determining catalyst det. or failure | B74: Included
A75: Reporting | B75: Determination | I75: Notes
A76: Summary tables complete | B76: All reported | I76: Flag in line 46
A77: All run data submitted | B77: Partially reported | I77: Flag in line 96
A78: Test report complete | B78: Partially reported minor | I78: Flags in lines 26,42
A79: Owner manual complete | B79: All reported
A80: Test dates | B80: 1/15-22/2018
A81: 30 Day notice submitted to EPA | B81: Yes
A82: Tested on the proposed date | B82: Yes
A83: Tested in consecutive days | B83: Yes
A84: 60 Day report to EPA | B84: Cannot be determined | I84: report date 2/6/2018
A85: EPA additional Review Elements | B85: Determination | I85: Notes
A86: Test location | B86: Lab | I86: 695-B Gaudette St-jean-sur-Richelieu QC, Canada J3B 7S7
A87: date lab received the unit | B87: First week of January
A88: date first day of conditioning | B88: 2017-11-27
A89: date first day of testing | B89: 2018-01-15
A90: first hour PM emissions reported for all runs | B90: yes
A91: first hour PM emissions reported in grams per hour | B91: yes
A92: first hour PM emissions zero or negative | B92: no
A93: first hour PM emissions measured with front and back filter | B93: yes
A94: Zero CO emission reported | B94: no
A95: Any incomplete runs | B95: no
A96: Preburn data reported (SU/High-3053, preburn M28R) | B96: no
A97: filter changes during test run | B97: no
A98: filter plugged during test run | B98: no
A99: What type of filter used | B99: not reported
A100: Back and front filter weighed together (3053 only)
A101: Negative probe weight >5% of PM | B101: no negative values
A102: Negative probe value | B102: no negative values
A103: Negative room air values | B103: no negative values
A104: Ambient background filter data | B104: no negative values
A105: Proportional sampling | B105: yes with allowable deviations
A106: Leak check - pre-test leak check reported | B106: Meets Specification
A107: Leak check - any filter change
A108: Leak check - post leak check reported | B108: Meets Specification
A109: Dilution tunnel schematic meets ASTM 2515 requirements | B109: Does not meet specification | I109: Mixing Baffle shown in diagram
A110: Firebox measurements confirmed with schematic | B110: not reported
A111: number of conditioning hours reported in summary | B111: 50
A112: number of conditioning hours with data | B112: 50
A113: number of hours at correct conditioning conditions | B113: Cannot be determined | I113: see line 26
A114: used lowest air settings for low burn (ASTM 3053) or Cat 1(M28R)
A115: Air setting data | B115: Cat 1/Low | C115: Cat 2/Med | D115: Cat 3 | E115: Cat 4/High | F115: FC | G115: CV
B116: .099" or closed | C116: 0.188" | D116: .438" | E116: full open
A117: Total number of runs | B117: 5
A118: run averaging done correctly
A119: which SU/H run used for calculating emissions
A120: Fuel data for all SU/H runs (ASTM 3053)
A121: Multiple fuel lengths used | B121: yes | I121: Fuel length varies per run by up to .5"
A122: Specific gravity of fuel used (ASTM 3053 only) | E122: Value
A123: M28 fuel loaded longest dimension | B123: yes
A124: Calibration data | B124: partially reported | I124: although calibration data is provided some certifications are beyond the 6 month requirement.

Sheet Green Mountain 80 8680
A1: Summary of Review
A2: Manufacturer | B2: Hearthstone Quality Home Heating Products Inc. | I2: 2021-03-31
A3: Model | B3: Green Mountain 80 8680 | F3: Control approach | I3: Catalytic
A4: Prelim review recomm. | B4: Requires a more thorough review | I4: models match epa database list
A5: Red flags | B5: 8 | C5: Orange flags | E5: 4 | F5: Yellow flags | H5: 7
A6: Final Determination | B6: Pending - Major | F6: Date: 9/1/2020 | I6: Basis: IDU, IR
A7: AK List Status | B7: Approved List - Pending
A8: Testing Information | B8: Determination | I8: Notes
A9: Test method | B9: EPA M28R
A10: Test Lab | B10: Polytests Inc. | I10: performed at Polytest facility
A11: Third-party certifier | B11: PFS-TECO
A12: Report certified | B12: PFS-TECO
A13: Test Report Elements | B13: Determination | I13: Notes
A14: Wght Avg PM emissions (g/hr) | B14: 0.67 | D14: PM Highest 1-hr (g/hr) | G14: 2.991
A15: Wght Avg HHV Efficiency (%) | B15: 81 | I15: 81
A16: Wght Avg CO (g/hr) | B16: =IFERROR(G16*60,"Not reported") -> 13.8 | D16: Wght Avg CO (g/min) | G16: 0.23
A17: Max heat output (Btu/hr) | B17: 33396 | I17: 80000
A18: Manufacturers Instructions to lab | B18: Reported
A19: Firebox vol. test report | B19: 3.16 | I19: 3.1
A20: Firebox dimensions | B20: Reported | D20: Longest dim. (in) | F20: 23.9 | G20: Firebox dimension
A21: Firebox calculations | B21: Reported/matched
A22: Efficiency calculations | B22: Reported
A23: Burn rate calculations | B23: Reported
A24: Raw data sheets | B24: Reported
A25: Conditioning completed by | B25: Manufacturer | I25: report states lab did test runs to ensure repeatability. No data for these runs included in the report.
A26: Conditioning data | B26: Partially reported | I26: data insufficient to determine conformance to medium burn rate requirements.
A27: Lab technician notes | B27: Reported
A28: Doc. of run appropriateness | B28: Reported
A29: Doc. of run validity | B29: Reported
A30: Doc. of run anomolies | B30: Reported
A31: Doc. of run burn rates | B31: Reported
A32: Photos of the fuel loaded | B32: Reported
A33: Test Run Data | B33: Determination | I33: Notes
A34: Run # | C34: 1 | D34: 2 | E34: 3 | F34: 4 | G34: 5 | H34: 6
A35: Run Category | C35: I | D35: I | E35: I | F35: II | G35: III | H35: IV
A36: Burn rate (kg/hr) | C36: 0.761 | D36: 1.002 | E36: 0.986 | F36: 1.068 | G36: 1.721 | H36: 2.281
A37: PM emissions by run (g/hr) | C37: 0.21 | D37: 0.71 | E37: 0.25 | F37: 0.67 | G37: 0.93 | H37: 0.65
A38: PM 1-hr filter pull (g/hr) | C38: 1 | D38: 2.66 | E38: 1.174 | F38: 2.886 | G38: 2.991 | H38: 1.023
A39: Filter data | C39: yes | D39: yes | E39: yes | F39: yes | G39: yes | H39: yes
A40: Train precision (%) | C40: 4.12 | D40: 5.11 | E40: 1.7 | F40: 0.73 | G40: 1.01 | H40: 0.57
A41: Negative weights | C41: yes | D41: yes | E41: yes | F41: yes | G41: yes | H41: yes
A42: Negs handled appropriately | B42: No | I42: negative filter values are subtacted from total catch. Method requires all negative filter weights to be treated as zero.
A43: Heat output by run (Btu/hr) | C43: NR | D43: 15423 | E43: 15069 | F43: NR | G43: 25752 | H43: 33396
A44: CO by run (g/hr) | C44: NR | D44: 13.97 | E44: 12.857 | F44: 27.08 | G44: 9.859 | H44: 17.943
A45: HHV efficiency (%) | C45: NR | D45: 82.3 | E45: 81.9 | F45: NR | G45: 79.7 | H45: 78.7 | I45: Rule requires all run data be reported.
A46: Lowest burn rate tested | B46: Cannot be determined
A47: All run data | B47: Partially reported | I47: Runs conducted for repeatability need to be included in report
A48: Appliance Fueling | B48: Determination | I48: Notes
A49: Fuel species | B49: Douglas Fir
A50: Log length (in) | C50: 19.75 | D50: 21 | E50: 20.25 | F50: 20.5 | G50: 20.5 | H50: 21.25 | I50: 23
A51: Direction of longest dimension | B51: East-West
A52: Log direction for testing | B52: East-West
A53: Squared (ASTM test only) | B53: N/A (Crib)
A54: Debarked (ASTM test only) | B54: N/A (Crib)
A55: Load density (lb/ft3) | C55: 6.434 | D55: 6.8 | E55: 6.626 | F55: 6.656 | G55: 6.617 | H55: 6.677 | I55: A avg density is 6.64
A56: Fuel moisture content load (%wb) | C56: 20.71 | D56: 20.86 | E56: 21.12 | F56: 21.21 | G56: 21.54 | H56: 21.03 | I56: B avg density is 21.1%
A57: Fuel piece configuration | B57: Within specified limit
A58: Owners Manual Req. | B58: Determination | I58: Notes
A59: Stack height | B59: Included
A60: Location recommendation | B60: Included
A61: Guidance on proper draft | B61: Included
A62: Fuel loading & reloading | B62: Included
A63: Fuel selection recomm. | B63: Included
A64: Improper fuels warnings | B64: Included
A65: Fire starting procedures | B65: Included
A66: Proper use of air controls | B66: Included
A67: Proper operation low | B67: Included
A68: Ash removal procedures | B68: Included
A69: Replacement parts | B69: Included
A70: Federal warning (C or NC) | B70: Included
A71: Warranty rights | B71: Included
A72: Catalytst operation | B72: Included
A73: Cat maintenance procedures | B73: Included
A74: Determining catalyst det. or failure | B74: Included
A75: Reporting | B75: Determination | I75: Notes
A76: Summary tables complete | B76: Partially reported | I76: Flags in lines 43,44,45,46
A77: All run data submitted | B77: Partially reported | I77: flags in lines 47&96
A78: Test report complete | B78: Partially reported minor | I78: Flags in lines 26,42,47
A79: Owner manual complete | B79: All reported
A80: Test dates | B80: 9/19-27/2018
A81: 30 Day notice submitted to EPA | B81: Yes
A82: Tested on the proposed date | B82: Yes | I82: Testing ran over 1 day from the proposed dates.
A83: Tested in consecutive days | B83: Yes
A84: 60 Day report to EPA | B84: Cannot be determined | I84: report date 10/9/2018
A85: EPA additional Review Elements | B85: Determination | I85: Notes
A86: Test location | B86: Lab | I86: 695-B Gaudette St-jean-sur-Richelieu QC, Canada J3B 7S7
A87: date lab received the unit | B87: First week of September 2018 | I87: no specific date listed in report
A88: date first day of conditioning | B88: 2018-08-24
A89: date first day of testing | B89: 2018-09-19
A90: first hour PM emissions reported for all runs | B90: yes
A91: first hour PM emissions reported in grams per hour | B91: yes
A92: first hour PM emissions zero or negative | B92: no
A93: first hour PM emissions measured with front and back filter | B93: yes
A94: Zero CO emission reported | B94: no
A95: Any incomplete runs | B95: no
A96: Preburn data reported (SU/High-3053, preburn M28R) | B96: no
A97: filter changes during test run | B97: no
A98: filter plugged during test run | B98: no
A99: What type of filter used | B99: not reported
A100: Back and front filter weighed together (3053 only)
A101: Negative probe weight >5% of PM | B101: no negative values
A102: Negative probe value | B102: no negative values
A103: Negative room air values | B103: no negative values
A104: Ambient background filter data | B104: no negative values
A105: Proportional sampling | B105: yes with deviation issues | I105: pg 175 of report shows pr1 & pr2 with negative data for multiple entries
A106: Leak check - pre-test leak check reported | B106: Meets Specification
A107: Leak check - any filter change
A108: Leak check - post leak check reported | B108: Meets Specification
A109: Dilution tunnel schematic meets ASTM 2515 requirements | B109: Does not meet specification | I109: mixing baffle is shown in diagram and photos
A110: Firebox measurements confirmed with schematic | B110: no
A111: number of conditioning hours reported in summary | B111: 50
A112: number of conditioning hours with data | B112: 50
A113: number of hours at correct conditioning conditions | B113: Cannot be determined | I113: see line 26
A114: used lowest air settings for low burn (ASTM 3053) or Cat 1(M28R) | B114: no
A115: Air setting data | B115: Cat 1/Low | C115: Cat 2/Med | D115: Cat 3 | E115: Cat 4/High | F115: FC | G115: CV
B116: .62" | C116: .155" | D116: .625" | E116: open
A117: Total number of runs | B117: 6
A118: run averaging done correctly
A119: which SU/H run used for calculating emissions
A120: Fuel data for all SU/H runs (ASTM 3053)
A121: Multiple fuel lengths used | B121: yes | I121: fuel length varies by upto an inch
A122: Specific gravity of fuel used (ASTM 3053 only) | E122: Value
A123: M28 fuel loaded longest dimension | B123: yes
A124: Calibration data | B124: partially reported | I124: although calibration data is provided some certifications are beyond the 6 month requirement.

Sheet Heritage 8024
A1: Summary of Review
A2: Manufacturer | B2: Hearthstone Quality Home Heating Products Inc. | I2: 2021-03-31
A3: Model | B3: Heritage 8024 | F3: Control approach | I3: Hybrid
A4: Prelim review recomm. | B4: Requires a more thorough review | I4: models match epa database list
A5: Red flags | B5: 10 | C5: Orange flags | E5: 3 | F5: Yellow flags | H5: 5
A6: Final Determination | B6: Pending - Major | F6: Date: 9/1/2020 | I6: Basis: IDU, IR, NR
A7: AK List Status | B7: Approved List - Pending
A8: Testing Information | B8: Determination | I8: Notes
A9: Test method | B9: EPA M28R
A10: Test Lab | B10: Polytests Inc. | I10: performed at Polytest facility
A11: Third-party certifier | B11: PFS-TECO
A12: Report certified | B12: PFS-TECO
A13: Test Report Elements | B13: Determination | I13: Notes
A14: Wght Avg PM emissions (g/hr) | B14: 0.54 | D14: PM Highest 1-hr (g/hr) | G14: 2.89
A15: Wght Avg HHV Efficiency (%) | B15: 77.1 | I15: 77.1
A16: Wght Avg CO (g/hr) | B16: =IFERROR(G16*60,"Not reported") -> 68.4 | D16: Wght Avg CO (g/min) | G16: 1.14
A17: Max heat output (Btu/hr) | B17: 35845 | I17: 60000
A18: Manufacturers Instructions to lab | B18: Reported
A19: Firebox vol. test report | B19: 2.18 | I19: 2.2
A20: Firebox dimensions | B20: Reported | D20: Longest dim. (in) | F20: 21.7 | G20: Firebox dimension
A21: Firebox calculations | B21: Reported/matched
A22: Efficiency calculations | B22: Reported
A23: Burn rate calculations | B23: Reported
A24: Raw data sheets | B24: Reported
A25: Conditioning completed by | B25: Manufacturer | I25: report states lab did test runs to ensure repeatability. No data for these runs included in the report.
A26: Conditioning data | B26: Partially reported | I26: data insufficient to determine conformance to medium burn rate requirements.
A27: Lab technician notes | B27: Reported
A28: Doc. of run appropriateness | B28: Reported
A29: Doc. of run validity | B29: Reported
A30: Doc. of run anomolies | B30: Reported
A31: Doc. of run burn rates | B31: Reported
A32: Photos of the fuel loaded | B32: Reported
A33: Test Run Data | B33: Determination | I33: Notes
A34: Run # | C34: 1 | D34: 2 | E34: 3 | F34: 4 | G34: 5
A35: Run Category | C35: Cat I | D35: Cat II | E35: Cat III | F35: Cat II | G35: Cat IV | I35: 5 runs, 4 CT, 1FC-R4
A36: Burn rate (kg/hr) | C36: 0.866 | D36: 0.964 | E36: 1.428 | F36: 1.027 | G36: 2.724
A37: PM emissions by run (g/hr) | C37: 0.47 | D37: 0.24 | E37: 0.23 | F37: 0.5 | G37: 1.76
A38: PM 1-hr filter pull (g/hr) | C38: 1.463 | D38: 0.956 | E38: 0.977 | F38: 2.086 | G38: 2.89
A39: Filter data | C39: yes | D39: yes | E39: yes | F39: yes | G39: yes
A40: Train precision (%) | C40: 4.12 | D40: 0.96 | E40: 1.28 | F40: 4.65 | G40: 1.74
A41: Negative weights | C41: yes | D41: yes | E41: yes | F41: yes | G41: yes
A42: Negs handled appropriately | B42: No | I42: negative filter values are subtacted from total catch. Method requires all negative filter weights to be treated as zero.
A43: Heat output by run (Btu/hr) | C43: 12317 | D43: 14475 | E43: 20482 | F43: 15931 | G43: 35842
A44: CO by run (g/hr) | C44: 6.624 | D44: 14.906 | E44: 5.867 | F44: 11.378 | G44: 247.195
A45: HHV efficiency (%) | C45: 80.1 | D45: 79.8 | E45: 76.6 | F45: 79.08 | G45: 70.6
A46: Lowest burn rate tested | B46: Reported
A47: All run data | B47: Reported
A48: Appliance Fueling | B48: Determination | I48: Notes
A49: Fuel species | B49: Douglas Fir
A50: Log length (in) | C50: 16 | D50: 17 | E50: 17 | F50: 17 | G50: 17 | I50: 21
A51: Direction of longest dimension | B51: East-West | I51: Requires further explanation, 4 inch from max log length noted.
A52: Log direction for testing | B52: East-West
A53: Squared (ASTM test only) | B53: N/A (Crib)
A54: Debarked (ASTM test only) | B54: N/A (Crib)
A55: Load density (lb/ft3) | C55: 6.703 | D55: 7.053 | E55: 6.993 | F55: 7.045 | G55: 7.027 | H55: =SUM(C55:G55) -> 34.821 | I55: B avg density 6.96
A56: Fuel moisture content load (%wb) | C56: 21.17 | D56: 21.3 | E56: 21.58 | F56: 21.27 | G56: 21.46 | H56: =SUM(C56:G56) -> 106.78 | I56: B avg moisture is 21.4%
A57: Fuel piece configuration | B57: Within specified limit
A58: Owners Manual Req. | B58: Determination | I58: Notes
A59: Stack height | B59: Included
A60: Location recommendation | B60: Included
A61: Guidance on proper draft | B61: Included
A62: Fuel loading & reloading | B62: Included
A63: Fuel selection recomm. | B63: Included
A64: Improper fuels warnings | B64: Included | I64: 5
A65: Fire starting procedures | B65: Included
A66: Proper use of air controls | B66: Included
A67: Proper operation low | B67: Included
A68: Ash removal procedures | B68: Included
A69: Replacement parts | B69: Included
A70: Federal warning (C or NC) | B70: Included
A71: Warranty rights | B71: Included
A72: Catalytst operation | B72: Included
A73: Cat maintenance procedures | B73: Included
A74: Determining catalyst det. or failure | B74: Included
A75: Reporting | B75: Determination | I75: Notes
A76: Summary tables complete | B76: All reported
A77: All run data submitted | B77: Partially reported | I77: Flag in line 96
A78: Test report complete | B78: Partially reported minor | I78: Flags in lines 26&42
A79: Owner manual complete | B79: All reported
A80: Test dates | B80: 9/10-14/2018
A81: 30 Day notice submitted to EPA | B81: Yes
A82: Tested on the proposed date | B82: Yes
A83: Tested in consecutive days | B83: Yes
A84: 60 Day report to EPA | B84: Cannot be determined | I84: report date 9/25/2018
A85: EPA additional Review Elements | B85: Determination | I85: Notes
A86: Test location | B86: Lab | I86: 695-B Gaudette St-jean-sur-Richelieu QC, Canada J3B 7S7
A87: date lab received the unit | B87: First week of September 2018 | I87: No specific date listed in report
A88: date first day of conditioning | B88: 2018-08-22
A89: date first day of testing | B89: 2018-10-09
A90: first hour PM emissions reported for all runs | B90: yes
A91: first hour PM emissions reported in grams per hour | B91: yes
A92: first hour PM emissions zero or negative | B92: no
A93: first hour PM emissions measured with front and back filter | B93: yes
A94: Zero CO emission reported | B94: no
A95: Any incomplete runs | B95: no
A96: Preburn data reported (SU/High-3053, preburn M28R) | B96: no
A97: filter changes during test run | B97: no
A98: filter plugged during test run | B98: no
A99: What type of filter used | B99: not reported
A100: Back and front filter weighed together (3053 only)
A101: Negative probe weight >5% of PM | B101: no negative values
A102: Negative probe value | B102: no negative values
A103: Negative room air values | B103: no negative values
A104: Ambient background filter data | B104: no negative values
A105: Proportional sampling | B105: yes with allowable deviations
A106: Leak check - pre-test leak check reported | B106: Meets Specification
A107: Leak check - any filter change
A108: Leak check - post leak check reported | B108: Meets Specification
A109: Dilution tunnel schematic meets ASTM 2515 requirements | B109: Does not meet specification | I109: Mixing Baffle shown in diagram and photos
A110: Firebox measurements confirmed with schematic | B110: no
A111: number of conditioning hours reported in summary | B111: 60.75
A112: number of conditioning hours with data | B112: 60.75
A113: number of hours at correct conditioning conditions | B113: Cannot be determined | I113: see line 26
A114: used lowest air settings for low burn (ASTM 3053) or Cat 1(M28R) | B114: no
A115: Air setting data | B115: Cat 1/Low | C115: Cat 2/Med | D115: Cat 3 | E115: Cat 4/High | F115: FC | G115: CV
B116: 1/8" | C116: 3/16" | D116: 1/2" | E116: 1-1/2"
A117: Total number of runs | B117: 5
A118: run averaging done correctly
A119: which SU/H run used for calculating emissions
A120: Fuel data for all SU/H runs (ASTM 3053)
A121: Multiple fuel lengths used | B121: yes | I121: see line 50
A122: Specific gravity of fuel used (ASTM 3053 only) | E122: Value
A123: M28 fuel loaded longest dimension | B123: yes
A124: Calibration data | B124: partially reported | I124: although calibration data is provided some certifications are beyond the 6 month requirement.

Sheet Manchester 8362
A1: Summary of Review
A2: Manufacturer | B2: Hearthstone Quality Home Heating Products Inc. | I2: 2021-03-31
A3: Model | B3: Manchester 8362 | F3: Control approach | I3: Hybrid
A4: Prelim review recomm. | B4: Requires a more thorough review | I4: models match epa database list
A5: Red flags | B5: 7 | C5: Orange flags | E5: 2 | F5: Yellow flags | H5: 5
A6: Final Determination | B6: Pending - Major | F6: Date: 9/1/2020 | I6: Basis: IDU, IR
A7: AK List Status | B7: Approved List - Pending
A8: Testing Information | B8: Determination | I8: Notes
A9: Test method | B9: EPA M28R
A10: Test Lab | B10: Polytests Inc. | I10: tested at Polytest facility
A11: Third-party certifier | B11: PFS-TECO
A12: Report certified | B12: PFS-TECO
A13: Test Report Elements | B13: Determination | I13: Notes
A14: Wght Avg PM emissions (g/hr) | B14: 0.65 | D14: PM Highest 1-hr (g/hr) | G14: 2.37
A15: Wght Avg HHV Efficiency (%) | B15: 77.8 | I15: 78
A16: Wght Avg CO (g/hr) | B16: =IFERROR(G16*60,"Not reported") -> 52.2 | D16: Wght Avg CO (g/min) | G16: 0.87
A17: Max heat output (Btu/hr) | B17: 33038 | I17: 75000
A18: Manufacturers Instructions to lab | B18: Reported
A19: Firebox vol. test report | B19: 2.45 | I19: 2.45
A20: Firebox dimensions | B20: Reported | D20: Longest dim. (in) | F20: 24 | G20: Firebox dimension
A21: Firebox calculations | B21: Reported/matched
A22: Efficiency calculations | B22: Reported
A23: Burn rate calculations | B23: Reported
A24: Raw data sheets | B24: Reported
A25: Conditioning completed by | B25: Manufacturer | I25: report states lab did test runs to ensure repeatability. No data for these runs included in the report.
A26: Conditioning data | B26: Partially reported | I26: data insufficient to determine conformance to medium burn rate requirements.
A27: Lab technician notes | B27: Reported
A28: Doc. of run appropriateness | B28: Reported
A29: Doc. of run validity | B29: Reported
A30: Doc. of run anomolies | B30: Reported
A31: Doc. of run burn rates | B31: Reported
A32: Photos of the fuel loaded | B32: Reported
A33: Test Run Data | B33: Determination | I33: Notes
A34: Run # | C34: 1 | D34: 2 | E34: 3 | F34: 4 | G34: 5
A35: Run Category | C35: I | D35: I | E35: III | F35: IV | G35: II
A36: Burn rate (kg/hr) | C36: 1.07 | D36: 0.95 | E36: 1.55 | F36: 2.416 | G36: 0.994
A37: PM emissions by run (g/hr) | C37: 0.49 | D37: 0.32 | E37: 0.76 | F37: 1.36 | G37: 0.67
A38: PM 1-hr filter pull (g/hr) | C38: 2.37 | D38: 1.45 | E38: 1.68 | F38: 1.7 | G38: 2.26
A39: Filter data | C39: yes | D39: yes | E39: yes | F39: yes | G39: yes
A40: Train precision (%) | C40: 5.55 | D40: 1.29 | E40: 5.85 | F40: 5.83 | G40: 0.7
A41: Negative weights | C41: yes | D41: yes | E41: yes | F41: yes | G41: yes
A42: Negs handled appropriately | B42: No | I42: negative filter values are subtacted from total catch. Method requires all negative filter weights to be treated as zero.
A43: Heat output by run (Btu/hr) | C43: 16177 | D43: 14111 | E43: 22127 | F43: 33038 | G43: NR
A44: CO by run (g/hr) | C44: 40.46 | D44: 37.04 | E44: 63.46 | F44: 79.038 | G44: 34.6
A45: HHV efficiency (%) | C45: 80.8 | D45: 79.4 | E45: 76 | F45: 72.8 | G45: NR
A46: Lowest burn rate tested | B46: Reported | I46: negative filter values are subtacted from total catch. Method requires all negative filter weights to be treated as zero.
A47: All run data | B47: Not reported | I47: All data must be reported and runs should be explained in summary.
A48: Appliance Fueling | B48: Determination | I48: Notes
A49: Fuel species | B49: Doug Fir
A50: Log length (in) | C50: 21.5 | D50: 20.75 | E50: 21 | F50: 21.25 | G50: 21.5 | I50: 24
A51: Direction of longest dimension | B51: East-West
A52: Log direction for testing | B52: East-West
A53: Squared (ASTM test only) | B53: N/A (Crib)
A54: Debarked (ASTM test only) | B54: N/A (Crib)
A55: Load density (lb/ft3) | C55: 6.7 | D55: 6.789 | E55: 6.789 | F55: 6.744 | G55: 6.72 | H55: =SUM(C55:G55) -> 33.742 | I55: B avg density is 6.75
A56: Fuel moisture content load (%wb) | C56: 21.44 | D56: 20.17 | E56: 20.5 | F56: 20.31 | G56: 21.1 | H56: =SUM(C56:G56) -> 103.52 | I56: B avg moisture is 20.7%
A57: Fuel piece configuration | B57: Within specified limit
A58: Owners Manual Req. | B58: Determination | I58: Notes
A59: Stack height | B59: Included
A60: Location recommendation | B60: Included
A61: Guidance on proper draft | B61: Included
A62: Fuel loading & reloading | B62: Included
A63: Fuel selection recomm. | B63: Included
A64: Improper fuels warnings | B64: Included
A65: Fire starting procedures | B65: Included
A66: Proper use of air controls | B66: Included
A67: Proper operation low | B67: Included
A68: Ash removal procedures | B68: Included
A69: Replacement parts | B69: Included
A70: Federal warning (C or NC) | B70: Included
A71: Warranty rights | B71: Included
A72: Catalytst operation | B72: Included
A73: Cat maintenance procedures | B73: Included
A74: Determining catalyst det. or failure | B74: Included
A75: Reporting | B75: Determination | I75: Notes
A76: Summary tables complete | B76: All reported
A77: All run data submitted | B77: Partially reported | I77: Flags in lines 47&96
A78: Test report complete | B78: Partially reported minor | I78: Flags in lines 26,42,47
A79: Owner manual complete | B79: All reported
A80: Test dates | B80: 7/30-8/3/2018
A81: 30 Day notice submitted to EPA | B81: Yes
A82: Tested on the proposed date | B82: Yes
A83: Tested in consecutive days | B83: Yes
A84: 60 Day report to EPA | B84: Cannot be determined | I84: report date 8/8/2018
A85: EPA additional Review Elements | B85: Determination | I85: Notes
A86: Test location | B86: Lab | I86: 695-B Gaudette St-jean-sur-Richelieu QC, Canada J3B 7S7
A87: date lab received the unit | B87: First week of July 2018 | I87: no specific date listed in report
A88: date first day of conditioning | B88: 2018-07-16
A89: date first day of testing | B89: 2018-07-30
A90: first hour PM emissions reported for all runs | B90: yes
A91: first hour PM emissions reported in grams per hour | B91: yes
A92: first hour PM emissions zero or negative | B92: no
A93: first hour PM emissions measured with front and back filter | B93: yes
A94: Zero CO emission reported | B94: no
A95: Any incomplete runs | B95: no
A96: Preburn data reported (SU/High-3053, preburn M28R) | B96: no
A97: filter changes during test run | B97: no
A98: filter plugged during test run | B98: no
A99: What type of filter used | B99: not reported
A100: Back and front filter weighed together (3053 only)
A101: Negative probe weight >5% of PM | B101: no negative values
A102: Negative probe value | B102: no negative values
A103: Negative room air values | B103: no negative values
A104: Ambient background filter data | B104: no negative values
A105: Proportional sampling | B105: yes with deviation issues | I105: pg 156 shows multiple entries with negative values for pr2
A106: Leak check - pre-test leak check reported | B106: Meets Specification
A107: Leak check - any filter change
A108: Leak check - post leak check reported | B108: Meets Specification
A109: Dilution tunnel schematic meets ASTM 2515 requirements | B109: Does not meet specification | I109: Mixing baffle shown in diagram and photos
A110: Firebox measurements confirmed with schematic | B110: no
A111: number of conditioning hours reported in summary | B111: 54
A112: number of conditioning hours with data | B112: 54
A113: number of hours at correct conditioning conditions | B113: Cannot be determined | I113: See line 26
A114: used lowest air settings for low burn (ASTM 3053) or Cat 1(M28R) | B114: no
A115: Air setting data | B115: Cat 1/Low | C115: Cat 2/Med | D115: Cat 3 | E115: Cat 4/High | F115: FC | G115: CV
B116: 1/16" | C116: 1/16" | D116: 3/4" | E116: open
A117: Total number of runs | B117: 5
A118: run averaging done correctly
A119: which SU/H run used for calculating emissions
A120: Fuel data for all SU/H runs (ASTM 3053)
A121: Multiple fuel lengths used | B121: yes | I121: see line 50
A122: Specific gravity of fuel used (ASTM 3053 only) | E122: Value
A123: M28 fuel loaded longest dimension | B123: yes
A124: Calibration data | B124: partially reported | I124: some calibrations were done post test

Sheet Bari, Bari Plus 8171 Hybrid
A1: Summary of Review
A2: Manufacturer | B2: Hearthstone Quality Home Products Inc./Hase Kaminofenbau | I2: 2021-03-31
A3: Model | B3: Bari, Bari Plus 8171 Hybrid | F3: Control approach | I3: Non-Catalytic
A4: Prelim review recomm. | B4: Requires a more thorough review | I4: models match epa database list
A5: Red flags | B5: 8 | C5: Orange flags | E5: =SUMPRODUCT((B15="NR")+(B15="Not reported")+(G16="NR")+(G16="Not reported")+(B17="NR")+(B17="Not reported"))+COUNTIF(B18:H32,"=Partially reported")+COUNTIF(B34:B38,"=Not reported")+COUNTIF(B40:B41,"=Not reported")+COUNTIF(B43:B45,"=Not reported")+COUNTIF(B46,"=Cannot be determined")+COUNTIF(B39,"=Partially reported")+COUNTIF(B49,"=NR")+COUNTIF(B49,"=Not reported")+COUNTIF(B51:B57,"=Not reported")+COUNTIF(B50,"=Partially reported")+IF(AND(C50<>"",F20<>"",C50<5/6*F20),1,0)+IF(AND(D50<>"",F20<>"",D50<5/6*F20),1,0)+IF(AND(E50<>"",F20<>"",E50<5/6*F20),1,0)+IF(AND(F50<>"",F20<>"",F50<5/6*F20),1,0)+IF(AND(G50<>"",F20<>"",G50<5/6*F20),1,0)+IF(AND(H50<>"",F20<>"",H50<5/6*F20),1,0)+COUNTIF(B59:B74,"=Not included")+COUNTIF(B76:B80,"Not reported")+COUNTIF(B76:B80,"=NR")+COUNTIF(B76:B80,"Partially reported major")+COUNTIF(B81:B84,"=No") -> 10 | F5: Yellow flags | H5: 5
A6: Final Determination | B6: Pending - Major | F6: Date: 9/1/2020 | I6: Basis: IDU, IR, NR
A7: AK List Status | B7: No Determination List
A8: Testing Information | B8: Determination | I8: Notes
A9: Test method | B9: EPA M28R
A10: Test Lab | B10: Polytests Inc. | I10: tested at polytest
A11: Third-party certifier | B11: PFS-TECO
A12: Report certified | B12: Not reported
A13: Test Report Elements | B13: Determination | I13: Notes
A14: Wght Avg PM emissions (g/hr) | B14: 0.94 | D14: PM Highest 1-hr (g/hr) | G14: 2.83
A15: Wght Avg HHV Efficiency (%) | B15: 75.9 | I15: 76
A16: Wght Avg CO (g/hr) | B16: =IFERROR(G16*60,"Not reported") -> 4.2 | D16: Wght Avg CO (g/min) | G16: 0.07
A17: Max heat output (Btu/hr) | B17: 26036 | I17: 35000
A18: Manufacturers Instructions to lab | B18: Reported | I18: pg 348
A19: Firebox vol. test report | B19: 1.25 | I19: 1.4
A20: Firebox dimensions | B20: Reported | D20: Longest dim. (in) | F20: 17 | G20: Max log length | I20: Although firebox diagrams were provided the model on the diagram is identified as Sila not Bari
A21: Firebox calculations | B21: Partially reported | I21: volume calculation provided is clipped from a design program and doesn't show actual calculation to include dimensions used in calc.
A22: Efficiency calculations | B22: Reported
A23: Burn rate calculations | B23: Reported
A24: Raw data sheets | B24: Reported
A25: Conditioning completed by | B25: Manufacturer
A26: Conditioning data | B26: Partially reported | I26: burn rate data not provided. Cannot confirm conformance with medium burn rate requirement.
A27: Lab technician notes | B27: Reported
A28: Doc. of run appropriateness | B28: Reported
A29: Doc. of run validity | B29: Reported
A30: Doc. of run anomolies | B30: Reported
A31: Doc. of run burn rates | B31: Reported
A32: Photos of the fuel loaded | B32: Partially reported
A33: Test Run Data | B33: Determination | I33: Notes
A34: Run # | C34: 1 | D34: 2 | E34: 3 | F34: 4 | G34: 5 | H34: 6
A35: Run Category | C35: 4 | D35: 2 | E35: 2 | F35: 3 | G35: FC | H35: CE
A36: Burn rate (kg/hr) | C36: 1.896 | D36: 0.97 | E36: 0.994 | F36: 1.428 | G36: 0.9666 | H36: 1.881
A37: PM emissions by run (g/hr) | C37: 1.03 | D37: 0.7 | E37: 0.72 | F37: 1.23 | G37: 0.71 | H37: 1.66
A38: PM 1-hr filter pull (g/hr) | C38: 1.75 | D38: 1.79 | E38: 1.34 | F38: 2.05 | G38: 1.34 | H38: 2.83
A39: Filter data | C39: yes | D39: yes | E39: yes | F39: yes | G39: yes | H39: yes
A40: Train precision (%) | C40: 3.21 | D40: 2.35 | E40: 0.76 | F40: 3.53 | G40: 3.22 | H40: 1.64
A41: Negative weights | C41: yes | D41: yes | E41: yes | F41: yes | G41: yes | H41: yes
A42: Negs handled appropriately | B42: No | I42: negative filter values are subtacted from total catch. Method requires all negative filter weights to be treated as zero.
A43: Heat output by run (Btu/hr) | C43: 26036 | D43: 14065 | E43: 14299 | F43: 20454 | G43: 12932 | H43: 26356
A44: CO by run (g/hr) | C44: 5.97 | D44: 3.21 | E44: 3.57 | F44: 3.52 | G44: 3.03 | H44: 32.44
A45: HHV efficiency (%) | C45: 73.1 | D45: 77.2 | E45: 76.5 | F45: 76.2 | G45: 71.6 | H45: 75.33
A46: Lowest burn rate tested | B46: Cannot be Determined
A47: All run data | B47: Not reported
A48: Appliance Fueling | B48: Determination | I48: Notes
A49: Fuel species | B49: Douglas Fir | I49: Test wood is required to be 7/8 length of the longest firebox dimension. Max log length manual is 17
A50: Log length (in) | C50: 9.5 | D50: 9 | E50: 9 | F50: 9 | G50: 9 | H50: 9 | I50: 17
A51: Direction of longest dimension | B51: Cannot be determined | I51: Stove longest dimension is up to down.
A52: Log direction for testing | B52: Cannot be determined
A53: Squared (ASTM test only) | B53: N/A (Crib)
A54: Debarked (ASTM test only) | B54: N/A (Crib)
A55: Load density (lb/ft3) | C55: 6.733 | D55: 6.451 | E55: 6.406 | F55: 6.426 | G55: 6.421 | H55: 6.422
A56: Fuel moisture content load (%wb) | C56: 19.62 | D56: 19.74 | E56: 19.79 | F56: 19.62 | G56: 19.68 | H56: 19.76
A57: Fuel piece configuration | B57: Within specified limit
A58: Owners Manual Req. | B58: Determination | I58: Notes
A59: Stack height | B59: Included
A60: Location recommendation | B60: Included
A61: Guidance on proper draft | B61: Included
A62: Fuel loading & reloading | B62: Included
A63: Fuel selection recomm. | B63: Included
A64: Improper fuels warnings | B64: Included
A65: Fire starting procedures | B65: Included
A66: Proper use of air controls | B66: Included
A67: Proper operation low | B67: Included
A68: Ash removal procedures | B68: Included
A69: Replacement parts | B69: Included
A70: Federal warning (C or NC) | B70: Included
A71: Warranty rights | B71: Included
A72: Catalytst operation | I72: n/a
A73: Cat maintenance procedures | I73: n/a
A74: Determining catalyst det. or failure | I74: n/a
A75: Reporting | B75: Determination | I75: Notes
A76: Summary tables complete | B76: Partially reported | I76: Flags in 46
A77: All run data submitted | B77: Partially reported | I77: Flags in lines 47&96
A78: Test report complete | B78: Partially reported minor | I78: Flags in lines 12,26,42,47
A79: Owner manual complete | B79: All reported
A80: Test dates | B80: 7/22-30/2019 | I80: aging completed 5/30-7/16/19
A81: 30 Day notice submitted to EPA | B81: Yes
A82: Tested on the proposed date | B82: Yes | I82: Extra day of tesing added from that submitted on 30 day notice.
A83: Tested in consecutive days
A84: 60 Day report to EPA | B84: Cannot be determined | I84: report date 8/19/2020
A85: EPA additional Review Elements | B85: Determination | I85: Notes
A86: Test location | B86: Lab | I86: 695-B Gaudette St-jean-sur-Richelieu QC, Canada J3B 7S7
A87: date lab received the unit | B87: First week of July 2019 | I87: no specific date listed
A88: date first day of conditioning | B88: 2019-05-30
A89: date first day of testing | B89: 2019-07-22
A90: first hour PM emissions reported for all runs | B90: yes
A91: first hour PM emissions reported in grams per hour | B91: yes
A92: first hour PM emissions zero or negative | B92: no
A93: first hour PM emissions measured with front and back filter | B93: yes
A94: Zero CO emission reported | B94: no
A95: Any incomplete runs | B95: no
A96: Preburn data reported (SU/High-3053, preburn M28R) | B96: no
A97: filter changes during test run | B97: no
A98: filter plugged during test run | B98: no
A99: What type of filter used | B99: other | I99: Gelman A/E 61631 binder free (or equivalent
A100: Back and front filter weighed together (3053 only)
A101: Negative probe weight >5% of PM | B101: no negative values
A102: Negative probe value | B102: no negative values
A103: Negative room air values | B103: no negative values
A104: Ambient background filter data | B104: no negative values
A105: Proportional sampling | B105: yes with allowable deviations
A106: Leak check - pre-test leak check reported | B106: Meets Specification
A107: Leak check - any filter change
A108: Leak check - post leak check reported | B108: Meets Specification
A109: Dilution tunnel schematic meets ASTM 2515 requirements | B109: Does not meet specification | I109: diagram and photos show mixing baffle
A110: Firebox measurements confirmed with schematic | B110: no
A111: number of conditioning hours reported in summary | B111: 62
A112: number of conditioning hours with data | B112: 62
A113: number of hours at correct conditioning conditions | B113: Cannot be Determined | I113: see line 26
A114: used lowest air settings for low burn (ASTM 3053) or Cat 1(M28R) | B114: no | I114: See line 46
A115: Air setting data | B115: Cat 1/Low | C115: Cat 2/Med | D115: Cat 3 | E115: Cat 4/High | F115: FC | G115: CV
B116: 1.6 | C116: 1.625 | D116: 2 | E116: open
A117: Total number of runs | B117: 6
A118: run averaging done correctly
A119: which SU/H run used for calculating emissions
A120: Fuel data for all SU/H runs (ASTM 3053)
A121: Multiple fuel lengths used | B121: yes | I121: Run 1 was .5" longer than rest of runs
A122: Specific gravity of fuel used (ASTM 3053 only) | E122: Value
A123: M28 fuel loaded longest dimension | B123: no | I123: see line 51
A124: Calibration data | B124: partially reported | I124: Calibration data was included though some were outside the 6 months range.

Sheet 21M-ACC-C, Discovery-1-
A1: Summary of Review
A2: Manufacturer | B2: HHT/Hearth and Home Tech | I2: 2012-03-31
A3: Model | B3: 21M-ACC-C, Discovery-1- | F3: Control approach | I3: Non-Catalytic
A4: Prelim review recomm. | B4: Disapproved | I4: models match epa database list
A5: Red flags | B5: 17 | C5: Orange flags | E5: 4 | F5: Yellow flags | H5: 3
A6: Final Determination | B6: Pending - Major | F6: Date: 9/1/2020 | I6: Basis: IDU, IR
A7: AK List Status | B7: Approved List - Pending
A8: Testing Information | B8: Determination | I8: Notes
A9: Test method | B9: EPA M28R | I9: 20 page report, 2020.
A10: Test Lab | B10: PFS-TECO | I10: tested at HHT facility, Bethel VT
A11: Third-party certifier | B11: PFS-TECO
A12: Report certified | B12: PFS-TECO
A13: Test Report Elements | B13: Determination | I13: Notes
A14: Wght Avg PM emissions (g/hr) | B14: 1.7 | D14: PM Highest 1-hr (g/hr) | G14: 5.43
A15: Wght Avg HHV Efficiency (%) | B15: 76.1 | I15: 82.3
A16: Wght Avg CO (g/hr) | B16: =IFERROR(G16*60,"Not reported") -> 90 | D16: Wght Avg CO (g/min) | G16: 1.5
A17: Max heat output (Btu/hr) | B17: 29322 | I17: 44400
A18: Manufacturers Instructions to lab | B18: Not reported | I18: Pg 61 contains unlabeled sheet with hand written notes that appear to be process notes and results and not instructions to lab how to operate device for testing.
A19: Firebox vol. test report | B19: 1.48 | I19: 1.48
A20: Firebox dimensions | B20: Reported | D20: Longest dim. (in) | F20: 15.2 | G20: Firebox dimension | I20: Longest noted dimension on firebox diagram is 15.2 however wood used in testing is 16".
A21: Firebox calculations | B21: Reported/not matched | I21: Diagram showing dimensions provided but calculation showing dimensions used were not.
A22: Efficiency calculations | B22: Reported
A23: Burn rate calculations | B23: Reported
A24: Raw data sheets | B24: Reported
A25: Conditioning completed by | B25: Manufacturer
A26: Conditioning data | B26: Not reported | I26: unable to locate conditioning data in updated report. Pg 22-60 include test run data but nothing for conditioning.
A27: Lab technician notes | B27: Reported
A28: Doc. of run appropriateness | B28: Reported
A29: Doc. of run validity | B29: Reported
A30: Doc. of run anomolies | B30: Reported
A31: Doc. of run burn rates | B31: Reported
A32: Photos of the fuel loaded | B32: Reported
A33: Test Run Data | B33: Determination | I33: Notes
A34: Run # | C34: 1 | D34: 2 | E34: 3 | F34: 4 | G34: 5 | H34: 6 | I34: completed 7 runs
A35: Run Category | C35: IV | D35: II | E35: II | F35: IV | G35: Other | H35: III
A36: Burn rate (kg/hr) | C36: 2.22 | D36: 1.11 | E36: 0.97 | F36: 1.2 | G36: 1.11 | H36: 1.34
A37: PM emissions by run (g/hr) | C37: 4.06 | D37: 0.93 | E37: 1.67 | F37: 1.27 | G37: 1.2 | H37: 1.06
A38: PM 1-hr filter pull (g/hr) | C38: 5.43 | D38: 1.94 | E38: 4.25 | F38: 2.42 | G38: 2.09 | H38: 1.31
A39: Filter data | C39: Yes | D39: Yes | E39: Yes | F39: Yes | G39: Yes | H39: Yes
A40: Train precision (%) | C40: 3.9 | D40: 0.3 | E40: 3.1 | F40: 8.4 | G40: 4.9 | H40: 1.4 | I40: Run 7 precision was 4.4%
A41: Negative weights | C41: no | D41: no | E41: no | F41: Yes | G41: no | H41: no
A42: Negs handled appropriately | B42: Yes
A43: Heat output by run (Btu/hr) | C43: 27784 | D43: 15304 | E43: 13585 | F43: 17141 | G43: 15670 | H43: 18893
A44: CO by run (g/hr) | C44: 1.68 | D44: 1.26 | E44: 1.35 | F44: 1.28 | G44: 1.26 | H44: 1.31
A45: HHV efficiency (%) | C45: 66.9 | D45: 75.2 | E45: 76.1 | F45: 77.1 | G45: 76.2 | H45: 76.7
A46: Lowest burn rate tested | B46: Reported | I46: setting listed as fully closed
A47: All run data | B47: Reported
A48: Appliance Fueling | B48: Determination | I48: Notes
A49: Fuel species | B49: doug fir
A50: Log length (in) | C50: 16 | D50: 16 | E50: 16 | F50: 16 | G50: 16 | H50: 16 | I50: Run 7 - 16
A51: Direction of longest dimension | B51: North-South
A52: Log direction for testing | B52: North-South
A53: Squared (ASTM test only) | B53: N/A (Crib)
A54: Debarked (ASTM test only) | B54: N/A (Crib)
A55: Load density (lb/ft3) | C55: 35.3 | D55: 32.9 | E55: 34.9 | F55: 33.4 | G55: 35.1 | H55: 32.4 | I55: Run 7 - 34.5
A56: Fuel moisture content load (%wb) | C56: 23.2 | D56: 22 | E56: 20.9 | F56: 20.1 | G56: 22.5 | H56: 23.8 | I56: B avg moisture 21.7
A57: Fuel piece configuration | B57: Within specified limit
A58: Owners Manual Req. | B58: Determination | I58: Notes
A59: Stack height | B59: Included
A60: Location recommendation | B60: Included
A61: Guidance on proper draft | B61: Included
A62: Fuel loading & reloading | B62: Included
A63: Fuel selection recomm. | B63: Included
A64: Improper fuels warnings | B64: Included
A65: Fire starting procedures | B65: Included
A66: Proper use of air controls | B66: Included
A67: Proper operation low | B67: Included
A68: Ash removal procedures | B68: Included
A69: Replacement parts | B69: Included
A70: Federal warning (C or NC) | B70: Included
A71: Warranty rights | B71: Included
A72: Catalytst operation | I72: NA
A73: Cat maintenance procedures | I73: NA
A74: Determining catalyst det. or failure | I74: NA
A75: Reporting | B75: Determination | I75: Notes
A76: Summary tables complete | B76: All reported
A77: All run data submitted | B77: All reported
A78: Test report complete | B78: Partially reported minor | I78: Flags in lines 18,21,26
A79: Owner manual complete | B79: All reported
A80: Test dates | B80: 12/9-13/2019 | I80: Aging 10/23-12/4/2019
A81: 30 Day notice submitted to EPA | B81: Cannot be determined
A82: Tested on the proposed date | B82: Cannot Be Determined
A83: Tested in consecutive days | B83: Yes
A84: 60 Day report to EPA | B84: Cannot be determined | I84: report date 1/20/2020
A85: EPA additional Review Elements | B85: Determination | I85: Notes
A86: Test location | B86: Manufacturer | I86: Bethel VT
A87: date lab received the unit | B87: 2019-12-09
A88: date first day of conditioning | B88: 2019-10-23
A89: date first day of testing | B89: 2019-12-09
A90: first hour PM emissions reported for all runs | B90: yes
A91: first hour PM emissions reported in grams per hour | B91: yes
A92: first hour PM emissions zero or negative | B92: no
A93: first hour PM emissions measured with front and back filter | B93: no
A94: Zero CO emission reported | B94: no
A95: Any incomplete runs | B95: no
A96: Preburn data reported (SU/High-3053, preburn M28R) | B96: yes
A97: filter changes during test run | B97: no
A98: filter plugged during test run | B98: no
A99: What type of filter used | B99: not reported
A100: Back and front filter weighed together (3053 only)
A101: Negative probe weight >5% of PM | B101: no negative values
A102: Negative probe value | B102: no negative values
A103: Negative room air values | B103: no negative values
A104: Ambient background filter data | B104: no negative values
A105: Proportional sampling | B105: yes with allowable deviations
A106: Leak check - pre-test leak check reported | B106: not reported
A107: Leak check - any filter change
A108: Leak check - post leak check reported | B108: Meets Specification
A109: Dilution tunnel schematic meets ASTM 2515 requirements | B109: Meets Specification | I109: Although photos looked like canned lab photos not from actual test
A110: Firebox measurements confirmed with schematic | B110: no
A111: number of conditioning hours reported in summary | B111: 50 | I111: introduction state 50 hrs of conditioning was performed by HHT lab staff
A112: number of conditioning hours with data | B112: 0 | I112: see line 26
A113: number of hours at correct conditioning conditions | B113: 0
A114: used lowest air settings for low burn (ASTM 3053) or Cat 1(M28R) | B114: yes
A115: Air setting data | B115: Cat 1/Low | C115: Cat 2/Med | D115: Cat 3 | E115: Cat 4/High | F115: FC | G115: CV
C116: closed | D116: half open | E116: open | F116: closed
A117: Total number of runs | B117: 7
A118: run averaging done correctly
A119: which SU/H run used for calculating emissions
A120: Fuel data for all SU/H runs (ASTM 3053)
A121: Multiple fuel lengths used | B121: no
A122: Specific gravity of fuel used (ASTM 3053 only) | E122: Value
A123: M28 fuel loaded longest dimension | B123: yes
A124: Calibration data | B124: not reported | I124: Calibration data not inlcuded in publicly posted report

Sheet F500 V3
A1: Summary of Review
A2: Manufacturer | B2: Jotul North America | I2: Submitted report does not match publicily posted report, also submitted report is 15 pgs shorter
A3: Model | B3: F500 V3 | F3: Control approach | I3: Catalytic
A4: Prelim review recomm. | B4: Disapproved | I4: models match epa database list
A5: Red flags | B5: 10 | C5: Orange flags | E5: 13 | F5: Yellow flags | H5: 6
A6: Final Determination | B6: Pending - Major | F6: Date: 9/1/2020 | I6: Basis: IDU, IR, NR
A7: AK List Status | B7: Approved List - Pending
A8: Testing Information | B8: Determination | I8: Notes
A9: Test method | B9: EPA M28R
A10: Test Lab | B10: PFS-TECO | I10: performed at PFS lab, observers redacted
A11: Third-party certifier | B11: PFS-TECO
A12: Report certified | B12: PFS-TECO
A13: Test Report Elements | B13: Determination | I13: Notes
A14: Wght Avg PM emissions (g/hr) | B14: 0.5 | D14: PM Highest 1-hr (g/hr) | G14: 0.66
A15: Wght Avg HHV Efficiency (%) | B15: 78.4 | I15: 78.4
A16: Wght Avg CO (g/hr) | B16: =IFERROR(G16*60,"Not reported") -> 30 | D16: Wght Avg CO (g/min) | G16: 0.5
A17: Max heat output (Btu/hr) | B17: 38804 | I17: 70000
A18: Manufacturers Instructions to lab | B18: Reported
A19: Firebox vol. test report | B19: 2.41
A20: Firebox dimensions | B20: Reported | D20: Longest dim. (in) | F20: 24.75 | G20: Firebox dimension
A21: Firebox calculations | B21: Reported/matched
A22: Efficiency calculations | B22: Reported
A23: Burn rate calculations | B23: Reported
A24: Raw data sheets | B24: Reported
A25: Conditioning completed by | B25: Lab | I25: 9/25-28/2018
A26: Conditioning data | B26: Partially reported | I26: Manufacturer states"Calculating an actual burn rate from the conditioning data is imperfect due to a number of factors..." - ADEC is refering to the EPA for clarification on this interpretation of the preburn burn rate calculation.
A27: Lab technician notes | B27: Reported
A28: Doc. of run appropriateness | B28: Reported
A29: Doc. of run validity | B29: Reported
A30: Doc. of run anomolies | B30: Reported
A31: Doc. of run burn rates | B31: Reported
A32: Photos of the fuel loaded | B32: Partially reported | I32: photos are labeled "typical" fuel load and the report does not include photos of the fuel load for each run.
A33: Test Run Data | B33: Determination | I33: Notes
A34: Run # | C34: 1 | D34: 2 | E34: 3 | F34: 4 | G34: 5 | H34: 6
A35: Run Category | C35: III | D35: II | E35: II | F35: II | G35: IV | H35: II | I35: 6 runs, 4CT, 1 FC, I falied test run - fire out R3
A36: Burn rate (kg/hr) | C36: 1.46 | D36: 1.17 | E36: - | F36: 0.91 | G36: 2.96 | H36: 1.21
A37: PM emissions by run (g/hr) | C37: 0.52 | D37: 0.4 | E37: - | F37: 0.28 | G37: 0.93 | H37: 0.45
A38: PM 1-hr filter pull (g/hr) | C38: 0.64 | D38: 0.55 | E38: - | F38: 0.33 | G38: 0.41 | H38: 0.66
A39: Filter data | C39: yes | D39: yes | E39: NR | F39: yes | G39: yes | H39: yes
A40: Train precision (%) | C40: NR | D40: NR | E40: NR | F40: NR | G40: NR | H40: NR | I40: Train precisions % is required by 2515. AS are all calculations.
A41: Negative weights | C41: yes | D41: yes | E41: NR | F41: yes | G41: yes | H41: yes
A42: Negs handled appropriately | B42: No
A43: Heat output by run (Btu/hr) | C43: 20500 | D43: 17565 | E43: - | F43: 14001 | G43: 38804 | H43: 17437
A44: CO by run (g/hr) | C44: NR | D44: NR | E44: NR | F44: NR | G44: NR | H44: NR | I44: Except for run 3 that had no reported CO emissions, all other runs reported the emissions in g/min on pg 8 - Manufactuer states there is no requirement to report CO in g/hr, However the issue identified is the missing information for run 3.
A45: HHV efficiency (%) | C45: 75.7 | D45: 80.6 | E45: - | F45: 83.72 | G45: 70.5 | H45: 77.5
A46: Lowest burn rate tested | B46: Cannot be determined | I46: never fully closed per table on p. 11. - Manufacturer states "Production models are designed so that their fully closed position matches the air setting used on the test model."
A47: All run data | B47: Not reported | I47: Missing data from run 3. Manufacturer states that filter data was not recorded for the invalid test run. However, 40 CFR 60.533(b)(5) states, “Documentation must include discussion of each test run and its appropriateness and validity, and must include detailed discussion of all anomalies, whether all burn rate categories were achieved, any data not used in the calculations and, for any test runs not completed, the data collected during the test run and the reason(s) that the test run was not completed and why.”
A48: Appliance Fueling | B48: Determination | I48: Notes
A49: Fuel species | B49: Douglas Fir
A50: Log length (in) | C50: 18 | D50: 18 | E50: 18 | F50: 18 | G50: 18 | H50: 18 | I50: 24
A51: Direction of longest dimension | B51: East-West | I51: Manufacturer states that "Fuel load meets all weight and moisture requirements with a length that is approximately 5/6 the width of the firebox", However 5/6 of the longest firebox dimension (24.5x5/6=20.54) is 2 inches longer than fuel used in test.
A52: Log direction for testing | B52: East-West
A53: Squared (ASTM test only) | B53: N/A (Crib)
A54: Debarked (ASTM test only) | B54: N/A (Crib)
A55: Load density (lb/ft3) | C55: 6.72 | D55: 6.48 | E55: 6.6 | F55: 6.81 | G55: 6.44 | H55: 6.61 | I55: A avg density 6.61
A56: Fuel moisture content load (%wb) | C56: 22.5 | D56: 22.1 | E56: 21.6 | F56: 21.6 | G56: 20.1 | H56: 20.5 | I56: B avg moisture content 21.4
A57: Fuel piece configuration | B57: Within specified limit
A58: Owners Manual Req. | B58: Determination | I58: Notes
A59: Stack height | B59: Included
A60: Location recommendation | B60: Included
A61: Guidance on proper draft | B61: Included
A62: Fuel loading & reloading | B62: Included
A63: Fuel selection recomm. | B63: Included
A64: Improper fuels warnings | B64: Included
A65: Fire starting procedures | B65: Included
A66: Proper use of air controls | B66: Included
A67: Proper operation low | B67: Insufficient data | I67: Manufacturer states appliance operation is discussed on pg 10-11 of manual - Operating instructions do not sufficiently describe proper operation in low
A68: Ash removal procedures | B68: Included
A69: Replacement parts | B69: Included
A70: Federal warning (C or NC) | B70: Included
A71: Warranty rights | B71: Included
A72: Catalytst operation | B72: Included
A73: Cat maintenance procedures | B73: Included
A74: Determining catalyst det. or failure | B74: Included
A75: Reporting | B75: Determination | I75: Notes
A76: Summary tables complete | B76: Partially reported | I76: Flags in lines 36,37,38,43,44,45,46
A77: All run data submitted | B77: Partially reported | I77: Flags in lines 47&96
A78: Test report complete | B78: Partially reported minor | I78: Flags in lines 26,39,40,41,42,47
A79: Owner manual complete | B79: Partially reported major
A80: Test dates | B80: 10/1-16/2018
A81: 30 Day notice submitted to EPA | B81: Yes
A82: Tested on the proposed date | B82: Yes
A83: Tested in consecutive days | B83: No | I83: fan confirm test ran 10 days after testing - Manufacturer provided email regarding delay due to scheduling conflict
A84: 60 Day report to EPA | B84: Cannot be determined | I84: report date 11/16/2018
A85: EPA additional Review Elements | B85: Determination | I85: Notes
A86: Test location | B86: Lab | I86: Clackamas, OR
A87: date lab received the unit | B87: 2018-09-24
A88: date first day of conditioning | B88: 9/25-9/28
A89: date first day of testing | B89: 2018-10-01
A90: first hour PM emissions reported for all runs | B90: no | I90: Run 3 had no calculated or measured emissions data dispite running for 590 minutes. Report states "the fire went out"
A91: first hour PM emissions reported in grams per hour | B91: yes
A92: first hour PM emissions zero or negative | B92: no
A93: first hour PM emissions measured with front and back filter | B93: no
A94: Zero CO emission reported | B94: yes | I94: Run 1 reported 0 CO emissions
A95: Any incomplete runs | B95: no
A96: Preburn data reported (SU/High-3053, preburn M28R) | B96: no
A97: filter changes during test run | B97: no
A98: filter plugged during test run | B98: no
A99: What type of filter used | B99: not reported
A100: Back and front filter weighed together (3053 only)
A101: Negative probe weight >5% of PM | B101: no negative values
A102: Negative probe value | B102: no negative values
A103: Negative room air values | B103: no negative values
A104: Ambient background filter data | B104: no negative values
A105: Proportional sampling | B105: yes with allowable deviations
A106: Leak check - pre-test leak check reported | B106: not reported
A107: Leak check - any filter change
A108: Leak check - post leak check reported | B108: not reported
A109: Dilution tunnel schematic meets ASTM 2515 requirements | B109: Meets Specification | I109: Canned PFS dilution photos
A110: Firebox measurements confirmed with schematic | B110: no
A111: number of conditioning hours reported in summary | B111: 50
A112: number of conditioning hours with data | B112: 50
A113: number of hours at correct conditioning conditions | B113: 7
A114: used lowest air settings for low burn (ASTM 3053) or Cat 1(M28R) | B114: no
A115: Air setting data | B115: Cat 1/Low | C115: Cat 2/Med | D115: Cat 3 | E115: Cat 4/High | F115: FC | G115: CV
C116: .133" open | D116: .383" open | E116: Open | F116: .126" open
A117: Total number of runs | B117: 6
A118: run averaging done correctly
A119: which SU/H run used for calculating emissions
A120: Fuel data for all SU/H runs (ASTM 3053)
A121: Multiple fuel lengths used | B121: no
A122: Specific gravity of fuel used (ASTM 3053 only) | E122: Value
A123: M28 fuel loaded longest dimension | B123: yes
A124: Calibration data | B124: partially reported | I124: Calibration data not inlcuded in publicly posted report

Sheet Cataylst
A1: Summary of Review
A2: Manufacturer | B2: MFFire
A3: Model | B3: Cataylst | F3: Control approach | I3: Catalytic - single burn rate
A4: Prelim review recomm. | B4: Disapproved | I4: models match epa database list
A5: Red flags | B5: 4 | C5: Orange flags | E5: 6 | F5: Yellow flags | H5: 8
A6: Final Determination | B6: Pending - Minor | F6: Date: 9/1/2020 | I6: Basis: MD, IR
A7: AK List Status | B7: Approved List - Pending
A8: Testing Information | B8: Determination | I8: Notes
A9: Test method | B9: EPA M28R
A10: Test Lab | B10: Polytests Inc.
A11: Third-party certifier | B11: OMNI
A12: Report certified | B12: Omni
A13: Test Report Elements | B13: Determination | I13: Notes
A14: Wght Avg PM emissions (g/hr) | B14: 1.9 | D14: PM Highest 1-hr (g/hr) | G14: 3.4
A15: Wght Avg HHV Efficiency (%) | B15: 69.9
A16: Wght Avg CO (g/hr) | B16: =I44/2 -> 75.085 | D16: Wght Avg CO (g/min) | G16: =B16/60 -> 1.251416667 | I16: g/hr reported for both runs on page 6 (, but no g/min or overall average
A17: Max heat output (Btu/hr) | B17: 28675
A18: Manufacturers Instructions to lab | B18: Reported
A19: Firebox vol. test report | B19: 2 | I19: 2.09
A20: Firebox dimensions | B20: Reported | D20: Longest dim. (in) | F20: 19.44 | G20: Firebox dimension
A21: Firebox calculations | B21: Reported/matched
A22: Efficiency calculations | B22: Reported
A23: Burn rate calculations | B23: Reported
A24: Raw data sheets | B24: Reported
A25: Conditioning completed by | B25: Lab | I25: test runs done to measure performance before test. No emission data for these runs provided.
A26: Conditioning data | B26: Partially reported | I26: Missing data to derermine conformance to medium burn rate requirements. Does not meet reporting requirements of the test method.
A27: Lab technician notes | B27: Reported
A28: Doc. of run appropriateness | B28: Not reported | I28: Manufacturer states that this was shown in test summary, no statement is made addressing the appropriateness, validity and anomolies
A29: Doc. of run validity | B29: Not reported
A30: Doc. of run anomolies | B30: Not reported
A31: Doc. of run burn rates | B31: Reported
A32: Photos of the fuel loaded | B32: Reported
A33: Test Run Data | B33: Determination | I33: Notes
A34: Run # | C34: 1 | D34: 2
A35: Run Category | C35: Other | D35: Other
A36: Burn rate (kg/hr) | C36: 2.147 | D36: 2.106
A37: PM emissions by run (g/hr) | C37: 1.54 | D37: 2.26
A38: PM 1-hr filter pull (g/hr) | C38: 2.17 | D38: 3.4
A39: Filter data | C39: yes | D39: yes
A40: Train precision (%) | C40: 1.2 | D40: 0.34
A41: Negative weights | C41: yes | D41: no
A42: Negs handled appropriately | B42: Yes
A43: Heat output by run (Btu/hr) | C43: NR | D43: NR
A44: CO by run (g/hr) | C44: 87.57 | D44: 62.6 | I44: =SUM(C44:H44) -> 150.17
A45: HHV efficiency (%) | C45: 67 | D45: 72
A46: Lowest burn rate tested | B46: Reported
A47: All run data | B47: Reported
A48: Appliance Fueling | B48: Determination | I48: Notes
A49: Fuel species | B49: Doug Fir
A50: Log length (in) | C50: 17 | D50: 17
A51: Direction of longest dimension | B51: East-West
A52: Log direction for testing | B52: East-West
A53: Squared (ASTM test only) | B53: N/A (Crib)
A54: Debarked (ASTM test only) | B54: N/A (Crib)
A55: Load density (lb/ft3) | C55: 6.36 | D55: 6.388 | I55: A avg density 6.37
A56: Fuel moisture content load (%wb) | C56: 19.49 | D56: 19.63 | I56: A avg moisture 19.6%
A57: Fuel piece configuration | B57: Within specified limit
A58: Owners Manual Req. | B58: Determination | I58: Notes
A59: Stack height | B59: Included
A60: Location recommendation | B60: Included
A61: Guidance on proper draft | B61: Included
A62: Fuel loading & reloading | B62: Included
A63: Fuel selection recomm. | B63: Included
A64: Improper fuels warnings | B64: Insufficient data | I64: No specific improper fuel list included.
A65: Fire starting procedures | B65: Included
A66: Proper use of air controls | B66: Included
A67: Proper operation low | B67: Insufficient data
A68: Ash removal procedures | B68: Included
A69: Replacement parts | B69: Not included | I69: Manufacturer states that the annual maintentance section addresses the only 2 replaceable parts, glass and catalyst, this does not suffice as the required replacement parts section.
A70: Federal warning (C or NC) | B70: Not included | I70: No required federal warning
A71: Warranty rights | B71: Included
A72: Catalytst operation | B72: Included
A73: Cat maintenance procedures | B73: Included
A74: Determining catalyst det. or failure | B74: Included
A75: Reporting | B75: Determination | I75: Notes
A76: Summary tables complete | B76: All reported
A77: All run data submitted | B77: All reported
A78: Test report complete | B78: Partially reported minor
A79: Owner manual complete | B79: Partially reported major
A80: Test dates | B80: 2016-09-15
A81: 30 Day notice submitted to EPA | B81: Cannot be determined | I81: Manufacturer states that the 30 day notice was submitted to EPA at least 30 days be start
A82: Tested on the proposed date | B82: Cannot Be Determined | I82: Manufacturer states no deviation from proposed date occurred
A83: Tested in consecutive days | B83: Yes
A84: 60 Day report to EPA | B84: Cannot be determined | I84: Manufacturer states that the report was submitted to EPA on Nov. 3, 2016 49 days after test completion
A85: EPA additional Review Elements | B85: Determination | I85: Notes
A86: Test location | B86: Lab | I86: 695-B Gaudette St-jean-sur-Richelieu QC, Canada J3B 7S7
A87: date lab received the unit | B87: First week in July 2016
A88: date first day of conditioning | B88: Not reported
A89: date first day of testing | B89: 2016-09-15
A90: first hour PM emissions reported for all runs | B90: yes
A91: first hour PM emissions reported in grams per hour | B91: yes
A92: first hour PM emissions zero or negative | B92: no
A93: first hour PM emissions measured with front and back filter | B93: yes
A94: Zero CO emission reported | B94: no
A95: Any incomplete runs | B95: no
A96: Preburn data reported (SU/High-3053, preburn M28R) | B96: yes
A97: filter changes during test run | B97: no
A98: filter plugged during test run | B98: no
A99: What type of filter used | B99: other | I99: Gelman A/E 61631 binder free (or equivalent)
A100: Back and front filter weighed together (3053 only)
A101: Negative probe weight >5% of PM | B101: no negative values
A102: Negative probe value | B102: no negative values
A103: Negative room air values | B103: no negative values
A104: Ambient background filter data | B104: no negative values
A105: Proportional sampling | B105: yes with allowable deviations
A106: Leak check - pre-test leak check reported | B106: Meets Specification
A107: Leak check - any filter change
A108: Leak check - post leak check reported | B108: Meets Specification
A109: Dilution tunnel schematic meets ASTM 2515 requirements | B109: Does not meet specification | I109: photos and diagram show dilution tunnel
A110: Firebox measurements confirmed with schematic | B110: no
A111: number of conditioning hours reported in summary | B111: 50
A112: number of conditioning hours with data | B112: 53.716
A113: number of hours at correct conditioning conditions | B113: Cannot be determined | I113: see line 26
A114: used lowest air settings for low burn (ASTM 3053) or Cat 1(M28R) | B114: yes | I114: single burnrate device
A115: Air setting data | B115: Cat 1/Low | C115: Cat 2/Med | D115: Cat 3 | E115: Cat 4/High | F115: FC | G115: CV
A117: Total number of runs | B117: 2
A118: run averaging done correctly
A119: which SU/H run used for calculating emissions
A120: Fuel data for all SU/H runs (ASTM 3053)
A121: Multiple fuel lengths used | B121: no
A122: Specific gravity of fuel used (ASTM 3053 only) | E122: Value
A123: M28 fuel loaded longest dimension | B123: yes
A124: Calibration data | B124: partially reported | I124: Although calibration certificates are provided some are outside the 6 month requirement

Sheet Vista LE, Vista Classic LE, NEO
A1: Summary of Review
A2: Manufacturer | B2: Pacific Energy Fireplace Products | I2: 2021-03-31
A3: Model | B3: Vista LE, Vista Classic LE, NEO 1.6 LE, Neostone 1.6 LE, Alderlea T4 LE (Freestanding), NEO 1.6 LE | F3: Control approach | I3: Non-Catalytic
A4: Prelim review recomm. | B4: Requires a more thorough review | I4: report does not list eh Alderlea T4
A5: Red flags | B5: 5 | C5: Orange flags | E5: 7 | F5: Yellow flags | H5: 3
A6: Final Determination | B6: Pending - Major | F6: Date: 9/1/2020 | I6: Basis: MD, IR, NR
A7: AK List Status | B7: Approved List - Pending
A8: Testing Information | B8: Determination | I8: Notes
A9: Test method | B9: EPA M28R
A10: Test Lab | B10: PFS-TECO | I10: performed at PFS facility
A11: Third-party certifier | B11: PFS-TECO
A12: Report certified | B12: PFS-TECO
A13: Test Report Elements | B13: Determination | I13: Notes
A14: Wght Avg PM emissions (g/hr) | B14: 1.9 | D14: PM Highest 1-hr (g/hr) | G14: 5.45
A15: Wght Avg HHV Efficiency (%) | B15: 72.3 | I15: 72
A16: Wght Avg CO (g/hr) | B16: =IFERROR(G16*60,"Not reported") -> 84 | D16: Wght Avg CO (g/min) | G16: 1.4
A17: Max heat output (Btu/hr) | B17: 23186 | I17: 56000
A18: Manufacturers Instructions to lab | B18: Reported
A19: Firebox vol. test report | B19: 1.55 | I19: 1.6
A20: Firebox dimensions | B20: Reported | D20: Longest dim. (in) | F20: 17.875 | G20: Firebox dimension
A21: Firebox calculations | B21: Reported/matched
A22: Efficiency calculations | B22: Reported
A23: Burn rate calculations | B23: Reported
A24: Raw data sheets | B24: Reported
A25: Conditioning completed by | B25: Lab | I25: aging 5/29 - 7/18 but didn't receive until 7/26
A26: Conditioning data | B26: Partially reported | I26: Aging data does not meet test method requirements. 18 out of 50 hours at med burn rate (1.34 kg/hr +/- 0.5 kg/hr). Does not met med burn requirement.
A27: Lab technician notes | B27: Reported
A28: Doc. of run appropriateness | B28: Reported
A29: Doc. of run validity | B29: Reported
A30: Doc. of run anomolies | B30: Reported
A31: Doc. of run burn rates | B31: Reported
A32: Photos of the fuel loaded | B32: Reported
A33: Test Run Data | B33: Determination | I33: Notes
A34: Run # | C34: 1 | D34: 5 | E34: 4 | F34: 2 | G34: 3 | H34: 6
A35: Run Category | C35: II | D35: II | E35: II | F35: III | G35: IV | H35: II | I35: 6 runs, R6 FC, not used. 5 CT runs used
A36: Burn rate (kg/hr) | C36: 1 | D36: 1.22 | E36: 1.36 | F36: 1.51 | G36: 1.93 | H36: 1.25 | I36: did not attempt 2 cat 1 - M28 Section 8.1.1.3.2
A37: PM emissions by run (g/hr) | C37: 2.91 | D37: 1.38 | E37: 1.1 | F37: 1.86 | G37: 1.13 | H37: 1.69 | I37: ran 5th run due to higher than expected burn
A38: PM 1-hr filter pull (g/hr) | C38: 5.45 | D38: 1.81 | E38: 1.81 | F38: 2 | G38: 0.68 | H38: 3.05 | I38: rate in R4
A39: Filter data | C39: yes | D39: yes | E39: yes | F39: yes | G39: yes | H39: yes
A40: Train precision (%) | C40: NR | D40: NR | E40: NR | F40: NR | G40: NR | H40: NR | I40: Train Precision shown as % required.
A41: Negative weights | C41: no | D41: no | E41: yes | F41: yes | G41: no | H41: yes
A42: Negs handled appropriately | B42: No
A43: Heat output by run (Btu/hr) | C43: 13494 | D43: 16792 | E43: 18643 | F43: 20550 | G43: 23186 | H43: 17067
A44: CO by run (g/hr) | C44: =60*1.6 -> 96 | D44: =60*1.2 -> 72 | E44: =60*1.5 -> 90 | F44: =60*1.4 -> 84 | G44: =60*1.3 -> 78 | H44: =60*1.5 -> 90
A45: HHV efficiency (%) | C45: 73 | D45: 74.6 | E45: 74.1 | F45: 73.9 | G45: 65 | H45: 73.1
A46: Lowest burn rate tested | B46: Reported | I46: needed to conduct two runs, only did one
A47: All run data | B47: Not reported
A48: Appliance Fueling | B48: Determination | I48: Notes
A49: Fuel species | B49: Douglas Fir
A50: Log length (in) | C50: 12 | D50: 12 | E50: 12 | F50: 12 | G50: 13 | H50: 12.5 | I50: 18
A51: Direction of longest dimension | B51: East-West | I51: Minimum length should have been 14.9" difference is greater than 1" of 5/6. Why are multiple fuel lengths used? (still not meeting requirements)
A52: Log direction for testing | B52: East-West
A53: Squared (ASTM test only) | B53: N/A (Crib)
A54: Debarked (ASTM test only) | B54: N/A (Crib)
A55: Load density (lb/ft3) | C55: 6.72 | D55: 6.73 | E55: 6.48 | F55: 6.45 | G55: 6.46 | H55: 6.65
A56: Fuel moisture content load (%wb) | C56: 19.9 | D56: 19.7 | E56: 19.6 | F56: 19.5 | G56: 19.6 | H56: 19.9
A57: Fuel piece configuration | B57: Within specified limit
A58: Owners Manual Req. | B58: Determination | I58: Notes
A59: Stack height | B59: Included
A60: Location recommendation | B60: Included
A61: Guidance on proper draft | B61: Included
A62: Fuel loading & reloading | B62: Included
A63: Fuel selection recomm. | B63: Included
A64: Improper fuels warnings | B64: Included
A65: Fire starting procedures | B65: Included
A66: Proper use of air controls | B66: Included
A67: Proper operation low | B67: Included
A68: Ash removal procedures | B68: Included
A69: Replacement parts | B69: Included
A70: Federal warning (C or NC) | B70: Included
A71: Warranty rights | B71: Not included
A72: Catalytst operation | I72: Non-Catalytic
A73: Cat maintenance procedures | I73: Non-Catalytic
A74: Determining catalyst det. or failure | I74: Non-Catalytic
A75: Reporting | B75: Determination | I75: Notes
A76: Summary tables complete | B76: All reported
A77: All run data submitted | B77: Partially reported | I77: Flag in line 47
A78: Test report complete | B78: Partially reported minor | I78: Flags in lines 26,40,42,47
A79: Owner manual complete | B79: Not reported
A80: Test dates | B80: 8/8-14/2018 | I80: aging 5/29 - 7/18 but didn't receive until 7/26
A81: 30 Day notice submitted to EPA | B81: Yes
A82: Tested on the proposed date | B82: No | I82: 30 Day notice sets test date at 8/6,2018 actual test 8/8-8/14
A83: Tested in consecutive days | B83: Yes
A84: 60 Day report to EPA | B84: No | I84: report date 10/17/2018
A85: EPA additional Review Elements | B85: Determination | I85: Notes
A86: Test location | B86: Lab | I86: PFS-TECO Portland Laboratory
A87: date lab received the unit | B87: 2018-07-26
A88: date first day of conditioning | B88: 2018-05-29
A89: date first day of testing | B89: 2018-08-08
A90: first hour PM emissions reported for all runs | B90: yes
A91: first hour PM emissions reported in grams per hour | B91: yes
A92: first hour PM emissions zero or negative | B92: no
A93: first hour PM emissions measured with front and back filter | B93: no
A94: Zero CO emission reported | B94: no
A95: Any incomplete runs | B95: no
A96: Preburn data reported (SU/High-3053, preburn M28R) | B96: yes
A97: filter changes during test run | B97: no
A98: filter plugged during test run | B98: no
A99: What type of filter used | B99: not reported
A100: Back and front filter weighed together (3053 only)
A101: Negative probe weight >5% of PM | B101: no negative values
A102: Negative probe value | B102: no negative values
A103: Negative room air values | B103: no negative values
A104: Ambient background filter data | B104: no negative values
A105: Proportional sampling | B105: yes with allowable deviations
A106: Leak check - pre-test leak check reported | B106: Does not meet specification
A107: Leak check - any filter change
A108: Leak check - post leak check reported | B108: Meets Specification
A109: Dilution tunnel schematic meets ASTM 2515 requirements | B109: Meets Specification | I109: PFS canned photos
A110: Firebox measurements confirmed with schematic | B110: yes
A111: number of conditioning hours reported in summary | B111: 50
A112: number of conditioning hours with data | B112: 50
A113: number of hours at correct conditioning conditions | B113: 18
A114: used lowest air settings for low burn (ASTM 3053) or Cat 1(M28R) | B114: yes
A115: Air setting data | B115: Cat 1/Low | C115: Cat 2/Med | D115: Cat 3 | E115: Cat 4/High | F115: FC | G115: CV
C116: fully closed | D116: 5/16" open | E116: fully open | F116: 5/16" open
A117: Total number of runs | B117: 6
A118: run averaging done correctly
A119: which SU/H run used for calculating emissions
A120: Fuel data for all SU/H runs (ASTM 3053)
A121: Multiple fuel lengths used | B121: yes | I121: Varies upto an inch
A122: Specific gravity of fuel used (ASTM 3053 only) | E122: Value
A123: M28 fuel loaded longest dimension | B123: yes
A124: Calibration data | B124: not reported

Sheet Delta Fusion
A1: Summary of Review
A2: Manufacturer | B2: RSF / Industrial Chimney Company, Incorporated | I2: 2021-03-31
A3: Model | B3: Delta Fusion | F3: Control approach | I3: Non-Catalytic
A4: Prelim review recomm. | B4: Requires a more thorough review | I4: models match epa database list
A5: Red flags | B5: =0+SUMPRODUCT((B14="NR")+(B14="Not reported")+(G14="NR")+(G14="Not reported"))+COUNTIF(B18:H32,"=Not reported")+COUNTIF(B18:H32,"=NR")+COUNTIF(B14,">2")+COUNTIF(G14,">6")+COUNTIF(B21,"=Reported/not matched")+COUNTIF(B39,"=Not reported")+COUNTIF(B42,"=No")+COUNTIF(B46:B47,"=Not reported")+COUNTIF(B49,"=NR")+COUNTIF(B49,"=Not reported")+COUNTIF(B50,"=Not reported")+COUNTIF(B53,"=All")+COUNTIF(B53,"=More than 50%")+COUNTIF(B54,"=More than 50%")+COUNTIF(B55:B57,"=Not within specified limit") -> 1 | C5: Orange flags | E5: 5 | F5: Yellow flags | H5: 6
A6: Final Determination | B6: Pending - Major | F6: Date: 9/1/2020 | I6: Basis: MD, IDU, IR, NR
A7: AK List Status | B7: Approved List - Pending
A8: Testing Information | B8: Determination | I8: Notes
A9: Test method | B9: EPA M28R
A10: Test Lab | B10: Polytests Inc. | I10: AT LAB
A11: Third-party certifier | B11: UL LLC
A12: Report certified | B12: UL
A13: Test Report Elements | B13: Determination | I13: Notes
A14: Wght Avg PM emissions (g/hr) | B14: 1.28 | D14: PM Highest 1-hr (g/hr) | G14: 5.1
A15: Wght Avg HHV Efficiency (%) | B15: 60.35 | I15: 60.3
A16: Wght Avg CO (g/hr) | B16: =I44/3 -> 139.6666667 | D16: Wght Avg CO (g/min) | G16: =B16/60 -> 2.327777778 | I16: reviewer did not find avg CO in table 2.2 but was able to calculate based on information in table 2.1
A17: Max heat output (Btu/hr) | B17: 34057 | I17: 95000
A18: Manufacturers Instructions to lab | B18: Reported | I18: pg 244
A19: Firebox vol. test report | B19: 4.04 | I19: 4.4
A20: Firebox dimensions | B20: Reported | D20: Longest dim. (in) | F20: 32.375 | G20: Firebox dimension
A21: Firebox calculations | B21: Reported/matched
A22: Efficiency calculations | B22: Reported
A23: Burn rate calculations | B23: Reported
A24: Raw data sheets | B24: Reported
A25: Conditioning completed by | B25: Manufacturer
A26: Conditioning data | B26: Reported
A27: Lab technician notes | B27: Reported
A28: Doc. of run appropriateness | B28: Reported
A29: Doc. of run validity | B29: Reported
A30: Doc. of run anomolies | B30: Reported
A31: Doc. of run burn rates | B31: Reported
A32: Photos of the fuel loaded | B32: Partially reported | I32: photo's do not clearly show fuel loads in device
A33: Test Run Data | B33: Determination | I33: Notes
A34: Run # | C34: 1 | D34: 2 | E34: 3
A35: Run Category | C35: SB | D35: SB | E35: SB
A36: Burn rate (kg/hr) | C36: 3.029 | D36: 3.047 | E36: 3.038
A37: PM emissions by run (g/hr) | C37: 1.07 | D37: 1.49 | E37: 1.35
A38: PM 1-hr filter pull (g/hr) | C38: 3.5 | D38: 5.1 | E38: 4.9
A39: Filter data | C39: yes | D39: yes | E39: yes
A40: Train precision (%) | C40: 0.43 | D40: 3.64 | E40: 0.35
A41: Negative weights | C41: yes | D41: yes | E41: yes
A42: Negs handled appropriately | B42: No | I42: negative filter values are subtacted from total catch. Method requires all negative filter weights to be treated as zero.
A43: Heat output by run (Btu/hr) | C43: 33721 | D43: 34057 | E43: 33889
A44: CO by run (g/hr) | C44: 142 | D44: 155 | E44: 122 | I44: =SUM(C44:H44) -> 419
A45: HHV efficiency (%) | C45: 60.1 | D45: 60.6 | E45: 60.2
A46: Lowest burn rate tested | B46: Reported | I46: single burn rate device
A47: All run data | B47: Reported
A48: Appliance Fueling | B48: Determination | I48: Notes
A49: Fuel species | B49: Douglas Fir
A50: Log length (in) | C50: 16 | D50: 16 | E50: 16 | I50: 24
A51: Direction of longest dimension | B51: East-West
A52: Log direction for testing | B52: East-West
A53: Squared (ASTM test only) | B53: N/A (Crib)
A54: Debarked (ASTM test only) | B54: N/A (Crib)
A55: Load density (lb/ft3) | C55: 6.711 | D55: 6.903 | E55: 6.878
A56: Fuel moisture content load (%wb) | C56: 20.31 | D56: 20.62 | E56: 20.26
A57: Fuel piece configuration | B57: Within specified limit
A58: Owners Manual Req. | B58: Determination | I58: Notes
A59: Stack height | B59: Included
A60: Location recommendation | B60: Included
A61: Guidance on proper draft | B61: Included
A62: Fuel loading & reloading | B62: Included
A63: Fuel selection recomm. | B63: Included
A64: Improper fuels warnings | B64: Included
A65: Fire starting procedures | B65: Included
A66: Proper use of air controls | B66: Included
A67: Proper operation low | B67: Included
A68: Ash removal procedures | B68: Included
A69: Replacement parts | B69: Included
A70: Federal warning (C or NC) | B70: Included
A71: Warranty rights | B71: Included
A72: Catalytst operation | I72: n/a
A73: Cat maintenance procedures | I73: n/a
A74: Determining catalyst det. or failure | I74: n/a
A75: Reporting | B75: Determination | I75: Notes
A76: Summary tables complete | B76: All reported
A77: All run data submitted | B77: Partially reported | I77: Flag in line 96
A78: Test report complete | B78: Partially reported minor | I78: Flags in line 42
A79: Owner manual complete
A80: Test dates | B80: 2/2-4/2016
A81: 30 Day notice submitted to EPA | B81: Yes | I81: Feburary 2, 2016
A82: Tested on the proposed date | B82: Yes | I82: Athough 30 day notice lists only single date not a range.
A83: Tested in consecutive days | B83: Yes
A84: 60 Day report to EPA | B84: Cannot be determined | I84: report date 2/11/2016
A85: EPA additional Review Elements | B85: Determination | I85: Notes
A86: Test location | B86: Lab | I86: 695-B Gaudette St-jean-sur-Richelieu QC, Canada J3B 7S7
A87: date lab received the unit | B87: Last week of January 2016 | I87: no specific dates given in report
A88: date first day of conditioning | B88: 2016-01-20
A89: date first day of testing | B89: 2016-02-02
A90: first hour PM emissions reported for all runs | B90: yes
A91: first hour PM emissions reported in grams per hour | B91: yes
A92: first hour PM emissions zero or negative | B92: no
A93: first hour PM emissions measured with front and back filter | B93: yes
A94: Zero CO emission reported | B94: no
A95: Any incomplete runs | B95: no
A96: Preburn data reported (SU/High-3053, preburn M28R) | B96: no
A97: filter changes during test run | B97: no
A98: filter plugged during test run | B98: no
A99: What type of filter used | B99: other | I99: Gelman A/E 61631 binder free (or equivalent)
A100: Back and front filter weighed together (3053 only)
A101: Negative probe weight >5% of PM | B101: no negative values
A102: Negative probe value | B102: no negative values
A103: Negative room air values | B103: no negative values
A104: Ambient background filter data | B104: no negative values
A105: Proportional sampling | B105: yes with deviation issues | I105: data show instances where the proportional rates are as high as 162.19%
A106: Leak check - pre-test leak check reported | B106: Meets Specification
A107: Leak check - any filter change
A108: Leak check - post leak check reported | B108: Meets Specification
A109: Dilution tunnel schematic meets ASTM 2515 requirements | B109: Does not meet specification | I109: photos and diagram shows mixing baffle
A110: Firebox measurements confirmed with schematic | B110: yes
A111: number of conditioning hours reported in summary | B111: 48
A112: number of conditioning hours with data | B112: 48h 51m
A113: number of hours at correct conditioning conditions | I113: single burn rate device
A114: used lowest air settings for low burn (ASTM 3053) or Cat 1(M28R)
A115: Air setting data | B115: Cat 1/Low | C115: Cat 2/Med | D115: Cat 3 | E115: Cat 4/High | F115: FC | G115: CV
A117: Total number of runs | B117: 3
A118: run averaging done correctly
A119: which SU/H run used for calculating emissions
A120: Fuel data for all SU/H runs (ASTM 3053)
A121: Multiple fuel lengths used | B121: no
A122: Specific gravity of fuel used (ASTM 3053 only) | E122: Value
A123: M28 fuel loaded longest dimension
A124: Calibration data | B124: partially reported | I124: Although reported most calibration certificates are outside the 6 month requirement

Sheet Focus 320SBR and Onyx SBR
A1: Summary of Review
A2: Manufacturer | B2: RSF / Industrial Chimney Company, Incorporated | I2: 2021-03-31
A3: Model | B3: Focus 320SBR and Onyx SBR | F3: Control approach | I3: Non-Catalytic - SINGLE BURN RATE
A4: Prelim review recomm. | B4: Requires a more thorough review
A5: Red flags | B5: =0+SUMPRODUCT((B14="NR")+(B14="Not reported")+(G14="NR")+(G14="Not reported"))+COUNTIF(B18:H32,"=Not reported")+COUNTIF(B18:H32,"=NR")+COUNTIF(B14,">2")+COUNTIF(G14,">6")+COUNTIF(B21,"=Reported/not matched")+COUNTIF(B39,"=Not reported")+COUNTIF(B42,"=No")+COUNTIF(B46:B47,"=Not reported")+COUNTIF(B49,"=NR")+COUNTIF(B49,"=Not reported")+COUNTIF(B50,"=Not reported")+COUNTIF(B53,"=All")+COUNTIF(B53,"=More than 50%")+COUNTIF(B54,"=More than 50%")+COUNTIF(B55:B57,"=Not within specified limit") -> 1 | C5: Orange flags | E5: 4 | F5: Yellow flags | H5: 5 | I5: models match epa database list
A6: Final Determination | B6: Pending - Major | F6: Date: 9/1/2020 | I6: Basis: IR, NR
A7: AK List Status | B7: Approved List - Pending
A8: Testing Information | B8: Determination | I8: Notes
A9: Test method | B9: EPA M28R
A10: Test Lab | B10: Polytests Inc. | I10: performed at polytest facility
A11: Third-party certifier | B11: UL LLC
A12: Report certified | B12: UL
A13: Test Report Elements | B13: Determination | I13: Notes
A14: Wght Avg PM emissions (g/hr) | B14: 1.43 | D14: PM Highest 1-hr (g/hr) | G14: 4.8
A15: Wght Avg HHV Efficiency (%) | B15: 65.9 | I15: 75
A16: Wght Avg CO (g/hr) | B16: =IFERROR(G16*60,"Not reported") -> 93 | D16: Wght Avg CO (g/min) | G16: 1.55
A17: Max heat output (Btu/hr) | B17: 22563 | I17: 50000
A18: Manufacturers Instructions to lab | B18: Reported
A19: Firebox vol. test report | B19: 2.1 | I19: 2.6
A20: Firebox dimensions | B20: Reported | D20: Longest dim. (in) | F20: 22.625 | G20: Firebox dimension
A21: Firebox calculations | B21: Reported/matched
A22: Efficiency calculations | B22: Reported
A23: Burn rate calculations | B23: Reported
A24: Raw data sheets | B24: Reported
A25: Conditioning completed by | B25: Manufacturer
A26: Conditioning data | B26: Reported
A27: Lab technician notes | B27: Reported
A28: Doc. of run appropriateness | B28: Reported
A29: Doc. of run validity | B29: Reported
A30: Doc. of run anomolies | B30: Reported
A31: Doc. of run burn rates | B31: Reported
A32: Photos of the fuel loaded | B32: Partially reported | I32: photos do not meet documentation requirements - cannot clearly see fuel loaded in device.
A33: Test Run Data | B33: Determination | I33: Notes
A34: Run # | C34: 1 | D34: 2 | E34: 3
A35: Run Category | C35: SB | D35: SB | E35: SB
A36: Burn rate (kg/hr) | C36: 1.85 | D36: 1.663 | E36: 1.724
A37: PM emissions by run (g/hr) | C37: 1.42 | D37: 1.44 | E37: 1.69
A38: PM 1-hr filter pull (g/hr) | C38: 3.66 | D38: 4.2 | E38: 4.8
A39: Filter data | C39: yes | D39: yes | E39: yes
A40: Train precision (%) | C40: 4.56 | D40: 4.48 | E40: 1.79
A41: Negative weights | C41: yes | D41: yes | E41: yes
A42: Negs handled appropriately | B42: No | I42: negative filter values are subtacted from total catch. Method requires all negative filter weights to be treated as zero.
A43: Heat output by run (Btu/hr) | C43: 22563 | D43: NR | E43: 21131
A44: CO by run (g/hr) | C44: 96.51 | D44: 90.25 | E44: 88.8
A45: HHV efficiency (%) | C45: 66.1 | D45: 65.6 | E45: 65.1
A46: Lowest burn rate tested | B46: Reported
A47: All run data | B47: Reported
A48: Appliance Fueling | B48: Determination | I48: Notes
A49: Fuel species | B49: BC Fir | I49: note 3 different lengths used
A50: Log length (in) | C50: 13.75 | D50: 14 | E50: 14.12 | I50: 22
A51: Direction of longest dimension | B51: East-West | I51: Further Explanation is required to justify 8 inch difference from max log length.
A52: Log direction for testing | B52: East-West
A53: Squared (ASTM test only) | B53: N/A (Crib)
A54: Debarked (ASTM test only) | B54: N/A (Crib)
A55: Load density (lb/ft3) | C55: 6.389 | D55: 6.355 | E55: 6.363 | I55: A avg density 6.37
A56: Fuel moisture content load (%wb) | C56: 21.89 | D56: 22 | E56: 21.95 | I56: B avg moisture 21.9%
A57: Fuel piece configuration | B57: Within specified limit
A58: Owners Manual Req. | B58: Determination | I58: Notes
A59: Stack height | B59: Included
A60: Location recommendation | B60: Included
A61: Guidance on proper draft | B61: Included
A62: Fuel loading & reloading | B62: Included
A63: Fuel selection recomm. | B63: Included
A64: Improper fuels warnings | B64: Included
A65: Fire starting procedures | B65: Included
A66: Proper use of air controls | B66: Included
A67: Proper operation low | B67: Included
A68: Ash removal procedures | B68: Included
A69: Replacement parts | B69: Included
A70: Federal warning (C or NC) | B70: Included
A71: Warranty rights | B71: Included
A72: Catalytst operation | I72: n/a
A73: Cat maintenance procedures | I73: n/a
A74: Determining catalyst det. or failure | I74: n/a
A75: Reporting | B75: Determination | I75: Notes
A76: Summary tables complete | B76: All reported
A77: All run data submitted | B77: All reported
A78: Test report complete | B78: Partially reported minor | I78: flags in line 42
A79: Owner manual complete | B79: All reported
A80: Test dates | B80: 4/19-21/2017
A81: 30 Day notice submitted to EPA | B81: Yes | I81: April 3- April 14, 2017
A82: Tested on the proposed date | B82: No | I82: Email to EPA included on pg 287 of updated test report moving testing to 4/10-21/2017
A83: Tested in consecutive days | B83: Yes
A84: 60 Day report to EPA | B84: Cannot be determined | I84: report date 5/5/2017
A85: EPA additional Review Elements | B85: Determination | I85: Notes
A86: Test location | B86: Lab | I86: 695-B Gaudette St-jean-sur-Richelieu QC, Canada J3B 7S7
A87: date lab received the unit | B87: First week of April 2017 | I87: no specific date given
A88: date first day of conditioning | B88: 2017-03-02
A89: date first day of testing | B89: 2017-04-19
A90: first hour PM emissions reported for all runs | B90: yes
A91: first hour PM emissions reported in grams per hour | B91: yes
A92: first hour PM emissions zero or negative | B92: no
A93: first hour PM emissions measured with front and back filter | B93: yes
A94: Zero CO emission reported | B94: no
A95: Any incomplete runs | B95: no
A96: Preburn data reported (SU/High-3053, preburn M28R) | B96: no
A97: filter changes during test run | B97: no
A98: filter plugged during test run | B98: no
A99: What type of filter used | B99: other | I99: Gelman A/E 61631 binder free (or equivalent)
A100: Back and front filter weighed together (3053 only)
A101: Negative probe weight >5% of PM | B101: no negative values
A102: Negative probe value | B102: no negative values
A103: Negative room air values | B103: no negative values
A104: Ambient background filter data | B104: no negative values
A105: Proportional sampling | B105: yes with allowable deviations
A106: Leak check - pre-test leak check reported | B106: Meets Specification
A107: Leak check - any filter change
A108: Leak check - post leak check reported | B108: Meets Specification
A109: Dilution tunnel schematic meets ASTM 2515 requirements | B109: Does not meet specification | I109: photos and diagram show mixing baffle
A110: Firebox measurements confirmed with schematic | B110: no
A111: number of conditioning hours reported in summary | B111: 73h 16m
A112: number of conditioning hours with data | B112: 73h 16m
A113: number of hours at correct conditioning conditions | I113: single burnrate device
A114: used lowest air settings for low burn (ASTM 3053) or Cat 1(M28R)
A115: Air setting data | B115: Cat 1/Low | C115: Cat 2/Med | D115: Cat 3 | E115: Cat 4/High | F115: FC | G115: CV
A117: Total number of runs | B117: 3
A118: run averaging done correctly
A119: which SU/H run used for calculating emissions
A120: Fuel data for all SU/H runs (ASTM 3053)
A121: Multiple fuel lengths used | B121: yes | I121: variance of 0.37"
A122: Specific gravity of fuel used (ASTM 3053 only) | E122: Value
A123: M28 fuel loaded longest dimension | B123: yes
A124: Calibration data | B124: partially reported | I124: Though reported some of the certifications were outside the 6 month requirement

Sheet OPEL PLUS Series
A1: Summary of Review
A2: Manufacturer | B2: RSF / Industrial Chimney Company, Incorporated | I2: 2021-03-31
A3: Model | B3: OPEL PLUS Series: Opel+ 2C, Open+ 3C, Opel+ 4C, Opel+ Keystone | F3: Control approach | I3: Non-Catalytic
A4: Prelim review recomm. | B4: Requires a more thorough review | I4: models match epa database list
A5: Red flags | B5: 6 | C5: Orange flags | E5: 6 | F5: Yellow flags | H5: 6
A6: Final Determination | B6: Pending - Major | F6: Date: 9/1/2020 | I6: Basis: IDU, IR, NR
A7: AK List Status | B7: Approved List - Pending
A8: Testing Information | B8: Determination | I8: Notes
A9: Test method | B9: EPA M28R
A10: Test Lab | B10: Polytests Inc. | I10: performed at Polytest facility
A11: Third-party certifier | B11: UL LLC
A12: Report certified | B12: Not reported
A13: Test Report Elements | B13: Determination | I13: Notes
A14: Wght Avg PM emissions (g/hr) | B14: 0.7 | D14: PM Highest 1-hr (g/hr) | G14: 3.98
A15: Wght Avg HHV Efficiency (%) | B15: 70.2 | I15: 80
A16: Wght Avg CO (g/hr) | B16: =IFERROR(G16*60,"Not reported") -> 34.8 | D16: Wght Avg CO (g/min) | G16: 0.58
A17: Max heat output (Btu/hr) | B17: 27034 | I17: 70000
A18: Manufacturers Instructions to lab | B18: Reported
A19: Firebox vol. test report | B19: 2.32 | I19: 3.6
A20: Firebox dimensions | B20: Reported | D20: Longest dim. (in) | F20: 25.125 | G20: Firebox dimension | I20: from owners manual - calculations used the longest dimension as 21.1875
A21: Firebox calculations | B21: Reported/matched
A22: Efficiency calculations | B22: Reported
A23: Burn rate calculations | B23: Reported
A24: Raw data sheets | B24: Reported
A25: Conditioning completed by | B25: Lab | I25: 2/12-14/2018
A26: Conditioning data | B26: Partially reported | I26: Pg 7 of the updated report states "the unit was pre burned and run for at least 48 hours, adequate documentation of fuel additions, flue and unit temperatures recorded." - however data provide on page 295 of updated report does not provide hourly data (only by minute).
A27: Lab technician notes | B27: Reported
A28: Doc. of run appropriateness | B28: Reported
A29: Doc. of run validity | B29: Reported
A30: Doc. of run anomolies | B30: Reported
A31: Doc. of run burn rates | B31: Reported
A32: Photos of the fuel loaded | B32: Reported | I32: pg. 349-354
A33: Test Run Data | B33: Determination | I33: Notes
A34: Run # | C34: 1 | D34: 2 | E34: 3 | F34: 4 | G34: 5 | H34: 6
A35: Run Category | C35: I | D35: I | E35: I | F35: III | G35: IV | H35: II
A36: Burn rate (kg/hr) | C36: 1.049 | D36: 1.088 | E36: 0.881 | F36: 1.372 | G36: 2.221 | H36: 1.14
A37: PM emissions by run (g/hr) | C37: 0.85 | D37: 0.74 | E37: 0.55 | F37: 0.83 | G37: 0.57 | H37: 0.54
A38: PM 1-hr filter pull (g/hr) | C38: 3.73 | D38: 3.98 | E38: 2.49 | F38: 3.7 | G38: 0.78 | H38: 2.06
A39: Filter data | C39: yes | D39: yes | E39: yes | F39: yes | G39: yes | H39: yes
A40: Train precision (%) | C40: NR | D40: NR | E40: NR | F40: NR | G40: NR | H40: NR
A41: Negative weights | C41: yes | D41: yes | E41: yes | F41: yes | G41: yes | H41: yes
A42: Negs handled appropriately | B42: No | I42: negative filter values are subtacted from total catch. Method requires all negative filter weights to be treated as zero.
A43: Heat output by run (Btu/hr) | C43: 11723 | D43: 13981 | E43: 15126 | F43: 18642 | G43: 27034 | H43: NR
A44: CO by run (g/hr) | C44: NR | D44: NR | E44: NR | F44: NR | G44: NR | H44: NR
A45: HHV efficiency (%) | C45: NR | D45: NR | E45: NR | F45: NR | G45: NR | H45: NR
A46: Lowest burn rate tested | B46: Not reported
A47: All run data | B47: Not reported | I47: Rule requires all run data be reported.
A48: Appliance Fueling | B48: Determination | I48: Notes
A49: Fuel species | B49: Doug Fir
A50: Log length (in) | C50: 15.75 | D50: 15.75 | E50: 15.75 | F50: 15.75 | G50: 15.75 | H50: 15.75
A51: Direction of longest dimension | B51: East-West
A52: Log direction for testing | B52: East-West
A53: Squared (ASTM test only) | B53: N/A (Crib)
A54: Debarked (ASTM test only) | B54: N/A (Crib)
A55: Load density (lb/ft3) | C55: 7.666 | D55: 7.672 | E55: 7.638 | F55: 7.635 | G55: 7.689 | H55: 7.648 | I55: D avg load density 7.66
A56: Fuel moisture content load (%wb) | C56: 21.29 | D56: 21.77 | E56: 21.11 | F56: 20.81 | G56: 20.7 | H56: 20.59 | I56: B avg moisture 21.0%
A57: Fuel piece configuration | B57: Within specified limit
A58: Owners Manual Req. | B58: Determination | I58: Notes
A59: Stack height | B59: Included
A60: Location recommendation | B60: Included
A61: Guidance on proper draft | B61: Included
A62: Fuel loading & reloading | B62: Included
A63: Fuel selection recomm. | B63: Included
A64: Improper fuels warnings | B64: Included
A65: Fire starting procedures | B65: Included
A66: Proper use of air controls | B66: Included
A67: Proper operation low | B67: Insufficient data | I67: instruction for operation at low setting is inadequate when compared to detail in manufacturer instruction to lab
A68: Ash removal procedures | B68: Included
A69: Replacement parts | B69: Included
A70: Federal warning (C or NC) | B70: Included
A71: Warranty rights | B71: Included
A72: Catalytst operation | B72: Included
A73: Cat maintenance procedures | B73: Included
A74: Determining catalyst det. or failure | B74: Included
A75: Reporting | B75: Determination | I75: Notes
A76: Summary tables complete | B76: Partially reported | I76: Flags in lines 44,45,46
A77: All run data submitted | B77: Partially reported | I77: Flags in lines 47 &96
A78: Test report complete | B78: Partially reported minor | I78: Flags in lines 12,26,40,41,42,47
A79: Owner manual complete | B79: Partially reported minor
A80: Test dates | B80: 2/14-22/2018
A81: 30 Day notice submitted to EPA | B81: Yes | I81: Start listed as February 12, 2018
A82: Tested on the proposed date | B82: No
A83: Tested in consecutive days | B83: Yes
A84: 60 Day report to EPA | B84: Cannot be determined | I84: report date 3/5/2018
A85: EPA additional Review Elements | B85: Determination | I85: Notes
A86: Test location | B86: Lab | I86: 695-B Gaudette St-jean-sur-Richelieu QC, Canada J3B 7S7
A87: date lab received the unit | B87: First week of February | I87: no specific date given
A88: date first day of conditioning | B88: 2018-02-12
A89: date first day of testing | B89: 2018-02-14
A90: first hour PM emissions reported for all runs | B90: yes
A91: first hour PM emissions reported in grams per hour | B91: yes
A92: first hour PM emissions zero or negative | B92: no
A93: first hour PM emissions measured with front and back filter | B93: yes
A94: Zero CO emission reported | B94: no
A95: Any incomplete runs | B95: no
A96: Preburn data reported (SU/High-3053, preburn M28R) | B96: no
A97: filter changes during test run | B97: no
A98: filter plugged during test run | B98: no
A99: What type of filter used | B99: other | I99: Gelman A/E 61631 binder free (or equivalent)
A100: Back and front filter weighed together (3053 only)
A101: Negative probe weight >5% of PM | B101: no negative values
A102: Negative probe value | B102: no negative values
A103: Negative room air values | B103: no negative values
A104: Ambient background filter data | B104: no negative values
A105: Proportional sampling | B105: yes with deviation issues | I105: data shows instances of proportionality above 110%
A106: Leak check - pre-test leak check reported | B106: Meets Specification
A107: Leak check - any filter change
A108: Leak check - post leak check reported | B108: Meets Specification
A109: Dilution tunnel schematic meets ASTM 2515 requirements | B109: Does not meet specification | I109: photos and diagram show mixing baffle
A110: Firebox measurements confirmed with schematic | B110: yes
A111: number of conditioning hours reported in summary | B111: 50.93
A112: number of conditioning hours with data | B112: 50.93
A113: number of hours at correct conditioning conditions | I113: see line 26
A114: used lowest air settings for low burn (ASTM 3053) or Cat 1(M28R)
A115: Air setting data | B115: Cat 1/Low | C115: Cat 2/Med | D115: Cat 3 | E115: Cat 4/High | F115: FC | G115: CV
B116: min | C116: min | D116: min | E116: open | F116: min
A117: Total number of runs | B117: 6
A118: run averaging done correctly
A119: which SU/H run used for calculating emissions
A120: Fuel data for all SU/H runs (ASTM 3053)
A121: Multiple fuel lengths used | B121: no
A122: Specific gravity of fuel used (ASTM 3053 only) | E122: Value
A123: M28 fuel loaded longest dimension | B123: yes
A124: Calibration data | B124: partially reported | I124: Although certificates were provided some were outside the 6 month requirement.

Sheet US 1269e
A1: Summary of Review
A2: Manufacturer | B2: United States Stove Company | I2: 2021-03-31
A3: Model | B3: US 1269e | F3: Control approach | I3: Non-Catalytic, Single Burnrate
A4: Prelim review recomm. | B4: Requires a more thorough review
A5: Red flags | B5: 6 | C5: Orange flags | E5: 2 | F5: Yellow flags | H5: 4 | I5: models match epa database list
A6: Final Determination | B6: Pending - Major | F6: Date: 9/1/2020 | I6: Basis: Pending further information from manufacturer
A7: AK List Status | B7: Approved List - Pending
A8: Testing Information | B8: Determination | I8: Notes
A9: Test method | B9: EPA M28R
A10: Test Lab | B10: Polytests Inc. | I10: tested at Polytest lab
A11: Third-party certifier | B11: PFS-TECO
A12: Report certified | B12: PFS-TECO
A13: Test Report Elements | B13: Determination | I13: Notes
A14: Wght Avg PM emissions (g/hr) | B14: 1.75 | D14: PM Highest 1-hr (g/hr) | G14: 2.37
A15: Wght Avg HHV Efficiency (%) | B15: 67.4 | I15: 67
A16: Wght Avg CO (g/hr) | B16: =IFERROR(G16*60,"Not reported") -> 112.2 | D16: Wght Avg CO (g/min) | G16: 1.87
A17: Max heat output (Btu/hr) | B17: 29234
A18: Manufacturers Instructions to lab | B18: Partially reported | I18: Data on pg 219 does not constitute lab instructions according to M28R.
A19: Firebox vol. test report | B19: 1.145 | I19: 1.2
A20: Firebox dimensions | B20: Reported | D20: Longest dim. (in) | F20: 19.5 | G20: Firebox dimension
A21: Firebox calculations | B21: Reported/matched
A22: Efficiency calculations | B22: Reported
A23: Burn rate calculations | B23: Reported
A24: Raw data sheets | B24: Reported
A25: Conditioning completed by | B25: Manufacturer | I25: Report states that preliminary tests were done to ensure the unit could meet the standard. No data for these runs included in the report.
A26: Conditioning data | B26: Partially reported | I26: Single burnrate device
A27: Lab technician notes | B27: Reported
A28: Doc. of run appropriateness | B28: Reported
A29: Doc. of run validity | B29: Reported
A30: Doc. of run anomolies | B30: Reported
A31: Doc. of run burn rates | B31: Reported
A32: Photos of the fuel loaded | B32: Partially reported | I32: photographs did not have required photo showing fuel loaded in appliance
A33: Test Run Data | B33: Determination | I33: Notes
A34: Run # | C34: 1 | D34: 2
A35: Run Category | C35: Other | D35: Other
A36: Burn rate (kg/hr) | C36: 2.29 | D36: 2.09
A37: PM emissions by run (g/hr) | C37: 1.6 | D37: 1.9
A38: PM 1-hr filter pull (g/hr) | C38: 1.78 | D38: 2.37
A39: Filter data | C39: yes | D39: yes
A40: Train precision (%) | C40: 6.39 | D40: 2.21
A41: Negative weights | C41: no | D41: no
A42: Negs handled appropriately | B42: Yes
A43: Heat output by run (Btu/hr) | C43: 29234 | D43: 26300
A44: CO by run (g/hr) | C44: 1.95 | D44: 1.8
A45: HHV efficiency (%) | C45: 68 | D45: 66.8
A46: Lowest burn rate tested | B46: Reported
A47: All run data | B47: Reported
A48: Appliance Fueling | B48: Determination | I48: Notes
A49: Fuel species | B49: Douglas Fir
A50: Log length (in) | C50: 11.5 | D50: 11.5 | I50: 19
A51: Direction of longest dimension | B51: North-South
A52: Log direction for testing | B52: North-South
A53: Squared (ASTM test only) | B53: N/A (Crib)
A54: Debarked (ASTM test only) | B54: N/A (Crib)
A55: Load density (lb/ft3) | C55: 6.592 | D55: 6.4
A56: Fuel moisture content load (%wb) | C56: 19.7 | D56: 20.6
A57: Fuel piece configuration
A58: Owners Manual Req. | B58: Determination | I58: Notes
A59: Stack height | B59: Included
A60: Location recommendation | B60: Included
A61: Guidance on proper draft | B61: Included
A62: Fuel loading & reloading | B62: Included
A63: Fuel selection recomm. | B63: Included
A64: Improper fuels warnings | B64: Included
A65: Fire starting procedures | B65: Included
A66: Proper use of air controls | B66: Included
A67: Proper operation low | B67: Not included
A68: Ash removal procedures | B68: Included
A69: Replacement parts | B69: Included
A70: Federal warning (C or NC) | B70: Included
A71: Warranty rights | B71: Included
A72: Catalytst operation | I72: NA
A73: Cat maintenance procedures | I73: NA
A74: Determining catalyst det. or failure | I74: NA
A75: Reporting | B75: Determination | I75: Notes
A76: Summary tables complete | B76: All reported
A77: All run data submitted | B77: All reported | I77: Flag in line 96
A78: Test report complete | B78: Partially reported major | I78: Flags in lines 18,16
A79: Owner manual complete | B79: Partially reported major
A80: Test dates | B80: 7/31-8/1/2019
A81: 30 Day notice submitted to EPA | B81: Yes
A82: Tested on the proposed date | B82: Yes
A83: Tested in consecutive days | B83: Yes
A84: 60 Day report to EPA | B84: Cannot be determined | I84: report date 8/26/2019
A85: EPA additional Review Elements | B85: Determination | I85: Notes
A86: Test location | B86: Lab | I86: 695-B Gaudette St-jean-sur-Richelieu QC, Canada J3B 7S7
A87: date lab received the unit | B87: April, 2019
A88: date first day of conditioning | B88: Cannot be determined
A89: date first day of testing | B89: 2019-07-31
A90: first hour PM emissions reported for all runs | B90: yes
A91: first hour PM emissions reported in grams per hour | B91: yes
A92: first hour PM emissions zero or negative | B92: no
A93: first hour PM emissions measured with front and back filter | B93: yes
A94: Zero CO emission reported | B94: no
A95: Any incomplete runs | B95: no
A96: Preburn data reported (SU/High-3053, preburn M28R) | B96: no
A97: filter changes during test run | B97: no
A98: filter plugged during test run | B98: no
A99: What type of filter used | B99: other | I99: Gelman A/E 61631 binder free (or equivalent)
A100: Back and front filter weighed together (3053 only)
A101: Negative probe weight >5% of PM | B101: no negative values
A102: Negative probe value | B102: no negative values
A103: Negative room air values | B103: no negative values
A104: Ambient background filter data | B104: no negative values
A105: Proportional sampling | B105: yes with allowable deviations
A106: Leak check - pre-test leak check reported | B106: Meets Specification
A107: Leak check - any filter change
A108: Leak check - post leak check reported | B108: Meets Specification
A109: Dilution tunnel schematic meets ASTM 2515 requirements | B109: Does not meet specification | I109: photos and diagram show mixing baffle
A110: Firebox measurements confirmed with schematic | B110: no
A111: number of conditioning hours reported in summary | B111: 50
A112: number of conditioning hours with data | B112: 52.05
A113: number of hours at correct conditioning conditions | I113: See line 26
A114: used lowest air settings for low burn (ASTM 3053) or Cat 1(M28R)
A115: Air setting data | B115: Cat 1/Low | C115: Cat 2/Med | D115: Cat 3 | E115: Cat 4/High | F115: FC | G115: CV
A117: Total number of runs | B117: 2
A118: run averaging done correctly
A119: which SU/H run used for calculating emissions
A120: Fuel data for all SU/H runs (ASTM 3053)
A121: Multiple fuel lengths used | B121: no
A122: Specific gravity of fuel used (ASTM 3053 only) | E122: Value
A123: M28 fuel loaded longest dimension | B123: yes
A124: Calibration data | B124: partially reported | I124: Although certificates were provided some were outside the 6 month requirement.

Sheet VC-Defiant
A1: Summary of Review
A2: Manufacturer | B2: HHT/Hearth & Home Technology | I2: 2021-03-31
A3: Model | B3: Vermont Castings Defiant 1975-CAT-C | F3: Control approach | I3: Catalytic
A4: Prelim review recomm. | B4: Requires a more thorough review | I4: All models noted match EPA listing
A5: Red flags | B5: =3+SUMPRODUCT((B14="NR")+(B14="Not reported")+(G14="NR")+(G14="Not reported"))+COUNTIF(B18:H32,"=Not reported")+COUNTIF(B18:H32,"=NR")+COUNTIF(B14,">2")+COUNTIF(G14,">6")+COUNTIF(B21,"=Reported/not matched")+COUNTIF(B39,"=Not reported")+COUNTIF(B42,"=No")+COUNTIF(B46:B47,"=Not reported")+COUNTIF(B49,"=NR")+COUNTIF(B49,"=Not reported")+COUNTIF(B50,"=Not reported")+COUNTIF(B53,"=All")+COUNTIF(B53,"=More than 50%")+COUNTIF(B54,"=More than 50%")+COUNTIF(B55:B57,"=Not within specified limit") -> 7 | C5: Orange flags | E5: 6 | F5: Yellow flags | H5: 6
A6: Final Determination | B6: Pending - Major | F6: Date: 9/1/2020 | I6: Basis: IDU, IR, NR
A7: AK List Status | B7: 0
A8: Testing Information | B8: Determination | I8: Notes
A9: Test method | B9: EPA M28R | I9: 204 p, 2019.
A10: Test Lab | B10: OMNI | I10: test location not specified
A11: Third-party certifier | B11: OMNI
A12: Report certified | B12: Omni
A13: Test Report Elements | B13: Determination | I13: Notes
A14: Wght Avg PM emissions (g/hr) | B14: 1.32 | D14: PM Highest 1-hr (g/hr) | G14: 3.17
A15: Wght Avg HHV Efficiency (%) | B15: 77.9
A16: Wght Avg CO (g/hr) | B16: =IFERROR(G16*60,"Not reported") -> 87.6 | D16: Wght Avg CO (g/min) | G16: 1.46
A17: Max heat output (Btu/hr) | B17: 25471 | I17: 56000 Btu/hr is reported on Manufacturer's website
A18: Manufacturers Instructions to lab | B18: Reported
A19: Firebox vol. test report | B19: 3.25 | I19: 3.2
A20: Firebox dimensions | B20: Reported | D20: Longest dim. (in) | F20: 25 | G20: Firebox dimension
A21: Firebox calculations | B21: Not reported
A22: Efficiency calculations | B22: Reported
A23: Burn rate calculations | B23: Reported
A24: Raw data sheets | B24: Reported
A25: Conditioning completed by | B25: Manufacturer | I25: 2/13-27/2019 medium burn by Dan at HHT
A26: Conditioning data | B26: Partially reported | I26: 1) Data does not meet the reporting requirements of the test method. 2) Cannot determine conformance with medium burn rate requirements.
A27: Lab technician notes | B27: Reported
A28: Doc. of run appropriateness | B28: Not reported
A29: Doc. of run validity | B29: Reported
A30: Doc. of run anomolies | B30: Not reported
A31: Doc. of run burn rates | B31: Reported
A32: Photos of the fuel loaded | B32: Reported
A33: Test Run Data | B33: Determination | I33: Notes
A34: Run # | C34: 1 | D34: 2 | E34: 3 | F34: 4 | G34: 5 | H34: 6
A35: Run Category | C35: Cat I | D35: Cat IV | E35: Cat II | F35: Cat III | G35: Other | H35: Cat III
A36: Burn rate (kg/hr) | C36: 0.81 | D36: 1.78 | E36: 0.98 | F36: 0.94 | G36: 1.24 | H36: 1.26
A37: PM emissions by run (g/hr) | C37: 0.63 | D37: 2.69 | E37: 0.8 | F37: 0.65 | G37: 1.23 | H37: 1.06
A38: PM 1-hr filter pull (g/hr) | C38: 0.94 | D38: 3.17 | E38: 1.02 | F38: 0.83 | G38: 0.41 | H38: 2.53
A39: Filter data | C39: yes | D39: yes | E39: yes | F39: yes | G39: yes | H39: yes
A40: Train precision (%) | C40: NR | D40: NR | E40: NR | F40: NR | G40: NR | H40: NR
A41: Negative weights | C41: no | D41: yes | E41: yes | F41: no | G41: no | H41: no
A42: Negs handled appropriately | B42: No | I42: negative numbers for filters are assumed to be part of seal weight
A43: Heat output by run (Btu/hr) | C43: 11974 | D43: 25471 | E43: 14429 | F43: 13983 | G43: 19101 | H43: 18214
A44: CO by run (g/hr) | C44: =1.11*60 -> 66.6 | D44: =2.48*60 -> 148.8 | E44: =1.16*60 -> 69.6 | F44: =0.87*60 -> 52.2 | G44: NR | H44: =1.69*60 -> 101.4
A45: HHV efficiency (%) | C45: 79 | D45: 76.8 | E45: 78.8 | F45: 79.8 | G45: NR | H45: 77
A46: Lowest burn rate tested | B46: Reported
A47: All run data | B47: Reported
A48: Appliance Fueling | B48: Determination | I48: Notes
A49: Fuel species | B49: Douglas Fir
A50: Log length (in) | C50: 20 | D50: 20 | E50: 20 | F50: 20 | G50: 20 | H50: 20 | I50: 25
A51: Direction of longest dimension | B51: Cannot be determined | I51: No Schematic provided
A52: Log direction for testing | B52: East-West
A53: Squared (ASTM test only) | B53: N/A (Crib)
A54: Debarked (ASTM test only) | B54: N/A (Crib)
A55: Load density (lb/ft3) | C55: 6.55 | D55: 6.83 | E55: 6.52 | F55: 6.77 | G55: 6.55 | H55: 6.89 | I55: B average density 6.69
A56: Fuel moisture content load (%wb) | C56: 20.86 | D56: 20.13 | E56: 19.66 | F56: 21.15 | G56: 20.44 | H56: 21.07 | I56: A Avg moisture 20.55%
A57: Fuel piece configuration | B57: Within specified limit
A58: Owners Manual Req. | B58: Determination | I58: Notes
A59: Stack height | B59: Included
A60: Location recommendation | B60: Included
A61: Guidance on proper draft | B61: Included
A62: Fuel loading & reloading | B62: Insufficient data
A63: Fuel selection recomm. | B63: Included
A64: Improper fuels warnings | B64: Not included
A65: Fire starting procedures | B65: Included
A66: Proper use of air controls | B66: Included
A67: Proper operation low | B67: Not included
A68: Ash removal procedures | B68: Included
A69: Replacement parts | B69: Included
A70: Federal warning (C or NC) | B70: Included | I70: The exact EPA language is contained in the report on page 157
A71: Warranty rights | B71: Included
A72: Catalytst operation | B72: Included
A73: Cat maintenance procedures | B73: Included
A74: Determining catalyst det. or failure | B74: Included
A75: Reporting | B75: Determination | I75: Notes
A76: Summary tables complete | B76: Partially reported | I76: Flags in lines 17, 28, 30, 44, 45
A77: All run data submitted | B77: All reported
A78: Test report complete | B78: Partially reported major | I78: Flags in 21, 40, 42, and 51
A79: Owner manual complete | B79: Partially reported major | I79: Flags in 62, 64, and 67
A80: Test dates | B80: 4/19-26/2019
A81: 30 Day notice submitted to EPA | B81: Cannot be determined
A82: Tested on the proposed date | B82: Cannot Be Determined
A83: Tested in consecutive days | B83: Yes
A84: 60 Day report to EPA | B84: Cannot be determined | I84: report date 6/14/2019
A85: EPA additional Review Elements | B85: Determination | I85: Notes
A86: Test location | B86: Not reported | I86: OMNI did the testing but the physical location is not reported
A87: date lab received the unit | B87: Not included | I87: Date lab received the unit is not indicated in the report
A88: date first day of conditioning | B88: 2019-02-13 | I88: Conditioning done from 2/13-27/2019 at medium burn by Dan at HHT
A89: date first day of testing | B89: 2019-04-19
A90: first hour PM emissions reported for all runs | B90: yes | I90: However, the first hour PM emission for Run 5 not included in the summary
A91: first hour PM emissions reported in grams per hour | B91: yes
A92: first hour PM emissions zero or negative | B92: no
A93: first hour PM emissions measured with front and back filter | B93: yes
A94: Zero CO emission reported | B94: no
A95: Any incomplete runs | B95: no
A96: Preburn data reported (SU/High-3053, preburn M28R) | B96: yes
A97: filter changes during test run | B97: no
A98: filter plugged during test run | B98: no
A99: What type of filter used | B99: not reported
A100: Back and front filter weighed together (3053 only)
A101: Negative probe weight >5% of PM | B101: no negatives
A102: Negative probe value | B102: no negatives
A103: Negative room air values | B103: no negatives
A104: Ambient background filter data | B104: no negatives | I104: Particulate catch that results in a negative number, is assumed to be zero for probes and seals
A105: Proportional sampling | B105: yes with allowable deviations
A106: Leak check - pre-test leak check reported | B106: not reported
A107: Leak check - any filter change | B107: not reported
A108: Leak check - post leak check reported | B108: yes-no deviations
A109: Dilution tunnel schematic meets ASTM 2515 requirements | B109: not reported
A110: Firebox measurements confirmed with schematic | B110: not reported
A111: number of conditioning hours reported in summary | B111: 50 hours
A112: number of conditioning hours with data | B112: 0
A113: number of hours at correct conditioning conditions | B113: Cannot be determined
A114: used lowest air settings for low burn (ASTM 3053) or Cat 1(M28R) | B114: yes
A115: Air setting data | B115: Cat 1/Low | C115: Cat 2/Med | D115: Cat 3 | E115: Cat 4/High | F115: FC | G115: CV
B116: fixed stop | C116: -10 | D116: -21 | E116: fixed stop
A117: Total number of runs | B117: 6
A118: run averaging done correctly
A119: which SU/H run used for calculating emissions
A120: Fuel data for all SU/H runs (ASTM 3053)
A121: Multiple fuel lengths used | B121: no
A122: Specific gravity of fuel used (ASTM 3053 only) | E122: Value
A123: M28 fuel loaded longest dimension | B123: not reported | I123: Cannot be determined see line 51
A124: Calibration data | B124: partially reported | I124: Several of the calibrations were outside the 6 month window.

Sheet VC Intrepid CAT
A1: Summary of Review
A2: Manufacturer | B2: HHT/Hearth and Home Technologies | I2: 2021-03-31
A3: Model | B3: Intrepid Flexburn 2115 CAT | F3: Control approach | I3: Catalytic
A4: Prelim review recomm. | B4: Disapproved | I4: All models noted match EPA listing
A5: Red flags | B5: 10 | C5: Orange flags | E5: 11 | F5: Yellow flags | H5: 2 | I5: did not review OM
A6: Final Determination | B6: Pending - Major | F6: Date: 9/1/2020 | I6: Basis: ES1, IDU, IR, NR
A7: AK List Status | B7: 0
A8: Testing Information | B8: Determination | I8: Notes
A9: Test method | B9: EPA M28R | I9: 208p 2018.
A10: Test Lab | B10: OMNI | I10: performed at Omni labs
A11: Third-party certifier | B11: OMNI
A12: Report certified | B12: Omni
A13: Test Report Elements | B13: Determination | I13: Notes
A14: Wght Avg PM emissions (g/hr) | B14: 0.35 | D14: PM Highest 1-hr (g/hr) | G14: 0.84
A15: Wght Avg HHV Efficiency (%) | B15: 76.7 | I15: 83
A16: Wght Avg CO (g/hr) | B16: =I44/4 -> 49.23 | D16: Wght Avg CO (g/min) | G16: =B16/60 -> 0.8205 | I16: individual runs reported, no average
A17: Max heat output (Btu/hr) | B17: 15906 | I17: 37000
A18: Manufacturers Instructions to lab | B18: Not reported
A19: Firebox vol. test report | B19: 1.31 | I19: 1.3
A20: Firebox dimensions | B20: Not reported | D20: Longest dim. (in) | F20: 15 | G20: Max log length
A21: Firebox calculations | B21: Not reported
A22: Efficiency calculations | B22: Reported
A23: Burn rate calculations | B23: Reported
A24: Raw data sheets | B24: Reported
A25: Conditioning completed by | B25: Not reported
A26: Conditioning data | B26: Partially reported | I26: 1) Data does not meet the reporting requirements of the test method. 2) Cannot determine conformance with medium burn rate requirements.
A27: Lab technician notes | B27: Reported
A28: Doc. of run appropriateness | B28: Not reported
A29: Doc. of run validity | B29: Reported
A30: Doc. of run anomolies | B30: Reported
A31: Doc. of run burn rates | B31: Reported
A32: Photos of the fuel loaded | B32: Reported
A33: Test Run Data | B33: Determination | I33: Notes
A34: Run # | C34: 1 | D34: 2 | E34: 3 | F34: 4
A35: Run Category | C35: II | D35: I | E35: II | F35: II
A36: Burn rate (kg/hr) | C36: 1 | D36: 0.73 | E36: 1.09 | F36: 1.15 | I36: R3 & R4 probe weight issue
A37: PM emissions by run (g/hr) | C37: 0.51 | D37: 0.2 | E37: 0.31 | F37: 0.37 | I37: most of the weight on filter seals R1, R2, R4
A38: PM 1-hr filter pull (g/hr) | C38: 0.46 | D38: 0.47 | E38: 0.84 | F38: 0.19
A39: Filter data | C39: yes | D39: yes | E39: yes | F39: yes
A40: Train precision (%) | C40: NR | D40: NR | E40: NR | F40: NR
A41: Negative weights | C41: yes | D41: yes | E41: yes | F41: yes
A42: Negs handled appropriately | B42: No
A43: Heat output by run (Btu/hr) | C43: 14544 | D43: 10665 | E43: 15235 | F43: 15906
A44: CO by run (g/hr) | C44: =60*0.4995 -> 29.97 | D44: =0.468*60 -> 28.08 | E44: =1.0998*60 -> 65.988 | F44: =1.2147*60 -> 72.882 | I44: =SUM(C44:H44) -> 196.92
A45: HHV efficiency (%) | C45: 78.4 | D45: 78.4 | E45: 75 | F45: 74.9
A46: Lowest burn rate tested | B46: Not reported | I46: No affirmative statement of lowest burn rate tested
A47: All run data | B47: Not reported
A48: Appliance Fueling | B48: Determination | I48: Notes
A49: Fuel species | B49: Douglas Fir
A50: Log length (in) | C50: 13.5 | D50: 13.5 | E50: 13.5 | F50: 13.5 | I50: 15
A51: Direction of longest dimension | B51: N/A (Crib)
A52: Log direction for testing | B52: N/A (Crib)
A53: Squared (ASTM test only) | B53: N/A (Crib)
A54: Debarked (ASTM test only) | B54: N/A (Crib)
A55: Load density (lb/ft3) | C55: 6.49 | D55: 6.49 | E55: 6.49 | F55: 6.64 | I55: A average density 6.64
A56: Fuel moisture content load (%wb) | C56: 21.7 | D56: 22.63 | E56: 20.83 | F56: 21.64 | I56: B average moisture 21.8%
A57: Fuel piece configuration | B57: Within specified limit
A58: Owners Manual Req. | B58: Determination | I58: Notes
A59: Stack height | B59: Included
A60: Location recommendation | B60: Included
A61: Guidance on proper draft | B61: Included
A62: Fuel loading & reloading | B62: Included
A63: Fuel selection recomm. | B63: Included
A64: Improper fuels warnings | B64: Not included
A65: Fire starting procedures | B65: Included
A66: Proper use of air controls | B66: Included
A67: Proper operation low | B67: Not included
A68: Ash removal procedures | B68: Included
A69: Replacement parts | B69: Included
A70: Federal warning (C or NC) | B70: Included | I70: The EPA required language is contained in the report on page 150
A71: Warranty rights | B71: Included
A72: Catalytst operation | B72: Included
A73: Cat maintenance procedures | B73: Included
A74: Determining catalyst det. or failure | B74: Included
A75: Reporting | B75: Determination | I75: Notes
A76: Summary tables complete | B76: Partially reported | I76: Flags in lines 28 and 46
A77: All run data submitted | B77: Partially reported | I77: Flag in line 47
A78: Test report complete | B78: Partially reported major | I78: Flags in lines 18, 20, 21, 25, 40, 41, 42, and 47
A79: Owner manual complete | B79: Partially reported minor | I79: Flags in lines 64 and 67
A80: Test dates | B80: 1/3-16/2018 | I80: 1/3,1/4, 1/5, 1/8 listed as test days, why does report state testing through the 16th?
A81: 30 Day notice submitted to EPA | B81: Cannot be determined
A82: Tested on the proposed date | B82: Cannot be determined
A83: Tested in consecutive days | B83: No | I83: First three runs done consecutively, but the 4th run was done three days after.
A84: 60 Day report to EPA | B84: Cannot be determined | I84: report date February 2018
A85: EPA additional Review Elements | B85: Determination | I85: Notes
A86: Test location | B86: Lab | I86: Physical test location not indicated in the report
A87: date lab received the unit | B87: 2017-12-19
A88: date first day of conditioning | B88: April, 2017 | I88: The conditioning was done from April to November
A89: date first day of testing | B89: 2018-01-03
A90: first hour PM emissions reported for all runs | B90: yes
A91: first hour PM emissions reported in grams per hour | B91: yes
A92: first hour PM emissions zero or negative | B92: no
A93: first hour PM emissions measured with front and back filter | B93: yes
A94: Zero CO emission reported | B94: no
A95: Any incomplete runs | B95: no
A96: Preburn data reported (SU/High-3053, preburn M28R) | B96: yes
A97: filter changes during test run | B97: no
A98: filter plugged during test run | B98: no
A99: What type of filter used | B99: not reported
A100: Back and front filter weighed together (3053 only)
A101: Negative probe weight >5% of PM | B101: not reported
A102: Negative probe value | B102: no negatives
A103: Negative room air values | B103: no negatives
A104: Ambient background filter data | B104: no negatives | I104: Particulate catch that results in a negative number, is assumed to be zero for probes and seals, negative numbers for filters are assumed to be part of the seal weight
A105: Proportional sampling | B105: yes with allowable deviations
A106: Leak check - pre-test leak check reported | B106: not reported
A107: Leak check - any filter change | B107: not reported
A108: Leak check - post leak check reported | B108: yes-no deviations
A109: Dilution tunnel schematic meets ASTM 2515 requirements | B109: not reported
A110: Firebox measurements confirmed with schematic | B110: no
A111: number of conditioning hours reported in summary | B111: 50
A112: number of conditioning hours with data | B112: 0
A113: number of hours at correct conditioning conditions | B113: Cannot be determined
A114: used lowest air settings for low burn (ASTM 3053) or Cat 1(M28R) | B114: yes
A115: Air setting data | B115: Cat 1/Low | C115: Cat 2/Med | D115: Cat 3 | E115: Cat 4/High | F115: FC | G115: CV
B116: full closed | C116: full open
A117: Total number of runs | B117: 4
A118: run averaging done correctly
A119: which SU/H run used for calculating emissions
A120: Fuel data for all SU/H runs (ASTM 3053)
A121: Multiple fuel lengths used | B121: no
A122: Specific gravity of fuel used (ASTM 3053 only) | E122: Value
A123: M28 fuel loaded longest dimension | B123: not reported | I123: Cannot be determined see line 51
A124: Calibration data | B124: partially reported | I124: Although calibrations were done less than 6 months before testing, the calibration interval recorded was 12 months

Sheet HHT 43M ACC
A1: Summary of Review
A2: Manufacturer | B2: HHT/Hearth and Home Technologies | I2: 2021-03-31
A3: Model | B3: Quadra Fire 43M-ACC-C, 43ST-ACC-C, Discovery-III-C | F3: Control approach | I3: Non-Catalytic
A4: Prelim review recomm. | B4: Disapproved | I4: All models noted match EPA listing
A5: Red flags | B5: 18 | C5: Orange flags | E5: =SUMPRODUCT((B15="NR")+(B15="Not reported")+(G16="NR")+(G16="Not reported")+(B17="NR")+(B17="Not reported"))+COUNTIF(B18:H32,"=Partially reported")+COUNTIF(B34:B38,"=Not reported")+COUNTIF(B40:B41,"=Not reported")+COUNTIF(B43:B45,"=Not reported")+COUNTIF(B46,"=Cannot be determined")+COUNTIF(B39,"=Partially reported")+COUNTIF(B49,"=NR")+COUNTIF(B49,"=Not reported")+COUNTIF(B51:B57,"=Not reported")+COUNTIF(B50,"=Partially reported")+IF(AND(C50<>"",F20<>"",C50<5/6*F20),1,0)+IF(AND(D50<>"",F20<>"",D50<5/6*F20),1,0)+IF(AND(E50<>"",F20<>"",E50<5/6*F20),1,0)+IF(AND(F50<>"",F20<>"",F50<5/6*F20),1,0)+IF(AND(G50<>"",F20<>"",G50<5/6*F20),1,0)+IF(AND(H50<>"",F20<>"",H50<5/6*F20),1,0)+COUNTIF(B59:B74,"=Not included")+COUNTIF(B76:B80,"Not reported")+COUNTIF(B76:B80,"=NR")+COUNTIF(B76:B80,"Partially reported major")+COUNTIF(B81:B84,"=No") -> 4 | F5: Yellow flags | H5: 4
A6: Final Determination | B6: Pending - Major | F6: Date: 9/1/2020 | I6: Basis: IDU, IR
A7: AK List Status | B7: 0
A8: Testing Information | B8: Determination | I8: Notes
A9: Test method | B9: EPA M28R | I9: 19 page report, 2019.
A10: Test Lab | B10: PFS-TECO | I10: performed at HHT facility in Colville, WA
A11: Third-party certifier | B11: PFS-TECO
A12: Report certified | B12: PFS-TECO
A13: Test Report Elements | B13: Determination | I13: Notes
A14: Wght Avg PM emissions (g/hr) | B14: 1.6 | D14: PM Highest 1-hr (g/hr) | G14: 5.51 | I14: 1.6
A15: Wght Avg HHV Efficiency (%) | B15: 74.2 | I15: 80
A16: Wght Avg CO (g/hr) | B16: =IFERROR(G16*60,"Not reported") -> 114 | D16: Wght Avg CO (g/min) | G16: 1.9
A17: Max heat output (Btu/hr) | B17: 36757 | I17: 61700
A18: Manufacturers Instructions to lab | B18: Not reported
A19: Firebox vol. test report | B19: 2.3 | I19: 2.3
A20: Firebox dimensions | B20: Not reported | D20: Longest dim. (in) | F20: 21 | G20: Max log length | I20: The report noted that the firebox dimensions can be found in Appendix D. However, the appendix is not contained in the publicly available report
A21: Firebox calculations | B21: Not reported | I21: The report noted that the firebox dimensions can be found in Appendix D. However, the appendix is not contained in the publicly available report
A22: Efficiency calculations | B22: Not reported
A23: Burn rate calculations | B23: Not reported
A24: Raw data sheets | B24: Not reported
A25: Conditioning completed by | B25: Not reported | I25: 11/6 - 12/2/2019
A26: Conditioning data | B26: Not reported | I26: However, there is a statement that 50 hours of conditioning was performed prior to testing per ASTM E2780
A27: Lab technician notes | B27: Not reported
A28: Doc. of run appropriateness | B28: Reported
A29: Doc. of run validity | B29: Reported
A30: Doc. of run anomolies | B30: Reported
A31: Doc. of run burn rates | B31: Reported
A32: Photos of the fuel loaded | B32: Partially reported | I32: A photo of test fuel loaded is provided on page 14 of the test report
A33: Test Run Data | B33: Determination | I33: Notes
A34: Run # | C34: 1 | D34: 2 | E34: 3 | F34: 4 | G34: 5
A35: Run Category | C35: II | D35: II | E35: III | F35: IV | G35: Other
A36: Burn rate (kg/hr) | C36: 0.95 | D36: 1.09 | E36: 7.74 | F36: 2.79 | G36: 1.07
A37: PM emissions by run (g/hr) | C37: 1.65 | D37: 1.22 | E37: 1.56 | F37: 2.99 | G37: 0.92
A38: PM 1-hr filter pull (g/hr) | C38: 3.44 | D38: 2.31 | E38: 2.22 | F38: 5.51 | G38: 3.84
A39: Filter data | C39: NR | D39: NR | E39: NR | F39: NR | G39: NR
A40: Train precision (%) | C40: NR | D40: NR | E40: NR | F40: NR | G40: NR
A41: Negative weights | C41: NR | D41: NR | E41: NR | F41: NR | G41: NR
A42: Negs handled appropriately | B42: No | I42: Method requires negatives be treated as zero
A43: Heat output by run (Btu/hr) | C43: 13239 | D43: 15131 | E43: 23813 | F43: 36757 | G43: 14921
A44: CO by run (g/hr) | C44: 1.76 | D44: 1.7 | E44: 1.5 | F44: 2.62 | G44: 1.68
A45: HHV efficiency (%) | C45: 75.1 | D45: 74.7 | E45: 73.8 | F45: 71.2 | G45: 74.8
A46: Lowest burn rate tested | B46: Not reported | I46: There is no affirmative statemet that lowest burn rate was tested
A47: All run data | B47: Not reported
A48: Appliance Fueling | B48: Determination | I48: Notes
A49: Fuel species | B49: Douglas Fir
A50: Log length (in) | C50: NR | D50: NR | E50: NR | F50: NR | G50: NR | I50: 18
A51: Direction of longest dimension | B51: Not reported
A52: Log direction for testing | B52: North-South
A53: Squared (ASTM test only) | B53: N/A (Crib)
A54: Debarked (ASTM test only) | B54: N/A (Crib)
A55: Load density (lb/ft3) | C55: NR | D55: NR | E55: NR | F55: NR | G55: NR
A56: Fuel moisture content load (%wb) | C56: 19.6 | D56: 19.4 | E56: 21.7 | F56: 22.8 | G56: 19.4 | I56: A average moisture 20.6%
A57: Fuel piece configuration | B57: Within specified limit
A58: Owners Manual Req. | B58: Determination | I58: Notes
A59: Stack height | B59: Included
A60: Location recommendation | B60: Included
A61: Guidance on proper draft | B61: Included
A62: Fuel loading & reloading | B62: Included
A63: Fuel selection recomm. | B63: Included
A64: Improper fuels warnings | B64: Included
A65: Fire starting procedures | B65: Included
A66: Proper use of air controls | B66: Included
A67: Proper operation low | B67: Included
A68: Ash removal procedures | B68: Included
A69: Replacement parts | B69: Included
A70: Federal warning (C or NC) | B70: Included | I70: The EPA required language is contained in the owners manual on page 2
A71: Warranty rights | B71: Included
A72: Catalytst operation | I72: NA
A73: Cat maintenance procedures | I73: NA
A74: Determining catalyst det. or failure | I74: NA
A75: Reporting | B75: Determination | I75: Notes
A76: Summary tables complete | B76: Partially reported | I76: Flag in line 46
A77: All run data submitted | B77: Not reported | I77: Flags in 47 and 96
A78: Test report complete | B78: Partially reported major | I78: Flags in lines 18, 20, 21, 22, 23, 24, 25, 26, 27, 39, 40, 41, 42, 47, 50, 51, 52, and 55
A79: Owner manual complete | B79: All reported
A80: Test dates | B80: 12/3-6/2019 | I80: report has date received after testing dates (12/9)
A81: 30 Day notice submitted to EPA | B81: Cannot be determined
A82: Tested on the proposed date | B82: Cannot Be Determined
A83: Tested in consecutive days | B83: Yes
A84: 60 Day report to EPA | B84: Cannot be determined
A85: EPA additional Review Elements | B85: Determination | I85: Notes
A86: Test location | B86: Manufacturer | I86: Test performed at manufacturer’s lab at 445 N. Highway Suite A, Colville, WA 99114
A87: date lab received the unit | B87: 2019-12-09 | I87: Th date is contradictory because run unit was received on 12/9/2019, while test was condcted on 12/3/2019
A88: date first day of conditioning | B88: 2019-11-06 | I88: The wood heater aging was done from 11/6 to 12/2/2019
A89: date first day of testing | B89: 2019-12-03
A90: first hour PM emissions reported for all runs | B90: yes
A91: first hour PM emissions reported in grams per hour | B91: yes
A92: first hour PM emissions zero or negative | B92: no
A93: first hour PM emissions measured with front and back filter | B93: not reported
A94: Zero CO emission reported | B94: no
A95: Any incomplete runs | B95: no
A96: Preburn data reported (SU/High-3053, preburn M28R) | B96: not reported | I96: It is partially reported
A97: filter changes during test run | B97: yes
A98: filter plugged during test run | B98: not reported
A99: What type of filter used | B99: not reported
A100: Back and front filter weighed together (3053 only)
A101: Negative probe weight >5% of PM | B101: not reported
A102: Negative probe value | B102: not reported
A103: Negative room air values | B103: not reported
A104: Ambient background filter data | B104: not reported
A105: Proportional sampling | B105: not reported | I105: However, the report mentioned on page 16 that no sampling intervals fell outside of proportional rates of +/- 10%.
A106: Leak check - pre-test leak check reported | B106: not reported | I106: No pre-test leak check data
A107: Leak check - any filter change | B107: no | I107: Although the test report mentioned a filter change at 1 hour, it did not talk about leak check.
A108: Leak check - post leak check reported | B108: no
A109: Dilution tunnel schematic meets ASTM 2515 requirements | B109: not reported
A110: Firebox measurements confirmed with schematic | B110: not reported
A111: number of conditioning hours reported in summary | B111: 50
A112: number of conditioning hours with data | B112: cannot be determined
A113: number of hours at correct conditioning conditions | B113: cannot be determined
A114: used lowest air settings for low burn (ASTM 3053) or Cat 1(M28R) | B114: not reported
A115: Air setting data | B115: Cat 1/Low | C115: Cat 2/Med | D115: Cat 3 | E115: Cat 4/High | F115: FC | G115: CV
C116: 0.443" | D116: fully open | E116: Fully open | I116: The report noted that the detailed info is contained in Appendix C, but the appendix is not contained in the publicly available report
A117: Total number of runs | B117: 5
A118: run averaging done correctly
A119: which SU/H run used for calculating emissions
A120: Fuel data for all SU/H runs (ASTM 3053)
A121: Multiple fuel lengths used | B121: not reported
A122: Specific gravity of fuel used (ASTM 3053 only) | E122: Value
A123: M28 fuel loaded longest dimension | B123: not reported
A124: Calibration data | B124: not reported | I124: The report mentioned that the equipment calibration records are contained in Appendix C, but the appendix is not found in the publicly availabe report

Sheet HHT-31M
A1: Summary of Review
A2: Manufacturer | B2: HHT/Hearth and Home Technologies | I2: 2021-03-31
A3: Model | B3: QuadraFire 31M-ACC-C and QuadraFire Discovery-II-C | F3: Control approach | I3: Non-Catalytic
A4: Prelim review recomm. | B4: Requires a more thorough review | I4: All models noted match EPA listing
A5: Red flags | B5: 6 | C5: Orange flags | E5: =SUMPRODUCT((B15="NR")+(B15="Not reported")+(G16="NR")+(G16="Not reported")+(B17="NR")+(B17="Not reported"))+COUNTIF(B18:H32,"=Partially reported")+COUNTIF(B34:B38,"=Not reported")+COUNTIF(B40:B41,"=Not reported")+COUNTIF(B43:B45,"=Not reported")+COUNTIF(B46,"=Cannot be determined")+COUNTIF(B39,"=Partially reported")+COUNTIF(B49,"=NR")+COUNTIF(B49,"=Not reported")+COUNTIF(B51:B57,"=Not reported")+COUNTIF(B50,"=Partially reported")+IF(AND(C50<>"",F20<>"",C50<5/6*F20),1,0)+IF(AND(D50<>"",F20<>"",D50<5/6*F20),1,0)+IF(AND(E50<>"",F20<>"",E50<5/6*F20),1,0)+IF(AND(F50<>"",F20<>"",F50<5/6*F20),1,0)+IF(AND(G50<>"",F20<>"",G50<5/6*F20),1,0)+IF(AND(H50<>"",F20<>"",H50<5/6*F20),1,0)+COUNTIF(B59:B74,"=Not included")+COUNTIF(B76:B80,"Not reported")+COUNTIF(B76:B80,"=NR")+COUNTIF(B76:B80,"Partially reported major")+COUNTIF(B81:B84,"=No") -> 4 | F5: Yellow flags | H5: 7
A6: Final Determination | B6: Pending - Major | F6: Date: 9/1/2020 | I6: Basis: MD, IDU, IR
A7: AK List Status | B7: 0
A8: Testing Information | B8: Determination | I8: Notes
A9: Test method | B9: EPA M28R | I9: 190 p., 190.
A10: Test Lab | B10: OMNI | I10: performed at HHT
A11: Third-party certifier | B11: OMNI
A12: Report certified | B12: Omni
A13: Test Report Elements | B13: Determination | I13: Notes
A14: Wght Avg PM emissions (g/hr) | B14: 1.9 | D14: PM Highest 1-hr (g/hr) | G14: 5.27
A15: Wght Avg HHV Efficiency (%) | B15: 72.5
A16: Wght Avg CO (g/hr) | B16: =I44/5 -> 94.686 | D16: Wght Avg CO (g/min) | G16: =B16/60 -> 1.5781
A17: Max heat output (Btu/hr) | B17: 29078 | I17: Peak heat output is reported as 51000 BTU/hr on the website
A18: Manufacturers Instructions to lab | B18: Reported
A19: Firebox vol. test report | B19: 1.89 | I19: 2
A20: Firebox dimensions | B20: Not reported | D20: Longest dim. (in) | F20: 16 | G20: Max log length
A21: Firebox calculations | B21: Not reported
A22: Efficiency calculations | B22: Reported
A23: Burn rate calculations | B23: Reported
A24: Raw data sheets | B24: Reported
A25: Conditioning completed by | B25: Not reported | I25: reported but appears to state that 50 hours of
A26: Conditioning data | B26: Partially reported | I26: 1) Data does not meet required reporting elements per the test method. 2) cannot determine compliance with medium burn rate requirements.
A27: Lab technician notes | B27: Reported | I27: run 1 completed on 2/13
A28: Doc. of run appropriateness | B28: Reported
A29: Doc. of run validity | B29: Reported | I29: did not report negative filter values
A30: Doc. of run anomolies | B30: Reported
A31: Doc. of run burn rates | B31: Reported
A32: Photos of the fuel loaded | B32: Reported
A33: Test Run Data | B33: Determination | I33: Notes
A34: Run # | C34: 1 | D34: 2 | E34: 3 | F34: 4 | G34: 5
A35: Run Category | C35: I | D35: II | E35: II | F35: II | G35: IV | I35: did not attempt two runs at fully closed setting
A36: Burn rate (kg/hr) | C36: 0.99 | D36: 1.39 | E36: 1.14 | F36: 1.04 | G36: 2.26 | I36: lowest air setting was only run once without fan
A37: PM emissions by run (g/hr) | C37: 1.93 | D37: 1.09 | E37: 0.97 | F37: 1.27 | G37: 3.92 | I37: as a fan confirmation test - BR 1.04 g/kr. Test not
A38: PM 1-hr filter pull (g/hr) | C38: 4.36 | D38: 3.11 | E38: 2.31 | F38: 4.04 | G38: 5.27 | I38: valid per M28R.
A39: Filter data | C39: yes | D39: yes | E39: yes | F39: yes | G39: yes | I39: See write-up of run 1 seems to state not used
A40: Train precision (%) | C40: NR | D40: NR | E40: NR | F40: NR | G40: NR | I40: for certification but it has been.
A41: Negative weights | C41: no | D41: no | E41: no | F41: no | G41: yes
A42: Negs handled appropriately | B42: No
A43: Heat output by run (Btu/hr) | C43: 13951 | D43: 17979 | E43: 15810 | F43: 14345 | G43: 29078
A44: CO by run (g/hr) | C44: 93.51 | D44: 77.41 | E44: 69.57 | F44: 86.91 | G44: 146.03 | I44: =SUM(C44:H44) -> 473.43
A45: HHV efficiency (%) | C45: 75.2 | D45: 67.9 | E45: 74.9 | F45: 74.6 | G45: 69.8
A46: Lowest burn rate tested | B46: Reported
A47: All run data | B47: Not reported
A48: Appliance Fueling | B48: Determination | I48: Notes
A49: Fuel species | B49: NR
A50: Log length (in) | C50: 14 | D50: 14 | E50: 14 | F50: 14 | G50: 14 | I50: 1.9
A51: Direction of longest dimension | B51: Not reported
A52: Log direction for testing | B52: North-South
A53: Squared (ASTM test only) | B53: N/A (Crib)
A54: Debarked (ASTM test only) | B54: N/A (Crib)
A55: Load density (lb/ft3) | C55: 6.72 | D55: 7.04 | E55: 6.61 | F55: 6.72 | G55: 6.4 | H55: =SUM(C55:G55) -> 33.49 | I55: B avg density 6.69
A56: Fuel moisture content load (%wb) | C56: 19.47 | D56: 19.03 | E56: 19.7 | F56: 22 | G56: 20.65 | H56: =SUM(C56:G56) -> 100.85 | I56: A avg moisture 20.17
A57: Fuel piece configuration | B57: Within specified limit
A58: Owners Manual Req. | B58: Determination | I58: Notes
A59: Stack height | B59: Included
A60: Location recommendation | B60: Included
A61: Guidance on proper draft | B61: Included
A62: Fuel loading & reloading | B62: Included
A63: Fuel selection recomm. | B63: Included
A64: Improper fuels warnings | B64: Included
A65: Fire starting procedures | B65: Included
A66: Proper use of air controls | B66: Included
A67: Proper operation low | B67: Included
A68: Ash removal procedures | B68: Included
A69: Replacement parts | B69: Included
A70: Federal warning (C or NC) | B70: Included | I70: The exact EPA language is contained in the report on page 164
A71: Warranty rights | B71: Included
A72: Catalytst operation | I72: NA
A73: Cat maintenance procedures | I73: NA
A74: Determining catalyst det. or failure | I74: NA
A75: Reporting | B75: Determination | I75: Notes
A76: Summary tables complete | B76: Partially reported | I76: Flag in line 29
A77: All run data submitted | B77: All reported | I77: Flag in line 47
A78: Test report complete | B78: Partially reported major | I78: Flags in lines 20, 21, 25, 26, 40, 41, 42, 47, 49, ad 51
A79: Owner manual complete | B79: All reported
A80: Test dates | B80: 2/13-16/2017
A81: 30 Day notice submitted to EPA | B81: Cannot be determined
A82: Tested on the proposed date | B82: Cannot Be Determined
A83: Tested in consecutive days | B83: Yes
A84: 60 Day report to EPA | B84: Cannot be determined
A85: EPA additional Review Elements | B85: Determination | I85: Notes
A86: Test location | B86: Not reported
A87: date lab received the unit | B87: 2017-02-12
A88: date first day of conditioning | B88: 2017-02-12
A89: date first day of testing | B89: 2017-02-13
A90: first hour PM emissions reported for all runs | B90: yes
A91: first hour PM emissions reported in grams per hour | B91: yes
A92: first hour PM emissions zero or negative | B92: no
A93: first hour PM emissions measured with front and back filter | B93: yes
A94: Zero CO emission reported | B94: no
A95: Any incomplete runs | B95: no
A96: Preburn data reported (SU/High-3053, preburn M28R) | B96: yes
A97: filter changes during test run | B97: yes | I97: *Run 1 filter change occurred at 80 minutes
A98: filter plugged during test run | B98: no
A99: What type of filter used | B99: not reported
A100: Back and front filter weighed together (3053 only)
A101: Negative probe weight >5% of PM | B101: no negatives
A102: Negative probe value | B102: no negatives
A103: Negative room air values | B103: not reported
A104: Ambient background filter data | B104: no negatives
A105: Proportional sampling | B105: yes with allowable deviations
A106: Leak check - pre-test leak check reported | B106: yes-no deviations
A107: Leak check - any filter change | B107: no
A108: Leak check - post leak check reported | B108: yes-no deviations
A109: Dilution tunnel schematic meets ASTM 2515 requirements
A110: Firebox measurements confirmed with schematic | B110: not reported
A111: number of conditioning hours reported in summary | B111: 50
A112: number of conditioning hours with data | B112: 0
A113: number of hours at correct conditioning conditions | B113: Cannot be determined
A114: used lowest air settings for low burn (ASTM 3053) or Cat 1(M28R) | B114: yes
A115: Air setting data | B115: Cat 1/Low | C115: Cat 2/Med | D115: Cat 3 | E115: Cat 4/High | F115: FC | G115: CV
B116: Fully closed | C116: 1.00" | D116: 1.29" | E116: Fully open
A117: Total number of runs | B117: 5 | I117: However, run 4 was used for fan confirmation
A118: run averaging done correctly
A119: which SU/H run used for calculating emissions
A120: Fuel data for all SU/H runs (ASTM 3053)
A121: Multiple fuel lengths used | B121: no
A122: Specific gravity of fuel used (ASTM 3053 only) | E122: Value
A123: M28 fuel loaded longest dimension | B123: yes
A124: Calibration data | B124: yes | I124: Calibrated 9/27/2016, and recommended due date 3/27/2017

Sheet VC-Encore
A1: Summary of Review
A2: Manufacturer | B2: HHT/Vermont Casting | I2: 2021-03-31
A3: Model | B3: Encore 2040-CAT-C | F3: Control approach | I3: Catalytic
A4: Prelim review recomm. | B4: Requires a more thorough review | I4: All models noted match EPA listing
A5: Red flags | B5: 12 | C5: Orange flags | E5: =SUMPRODUCT((B15="NR")+(B15="Not reported")+(G16="NR")+(G16="Not reported")+(B17="NR")+(B17="Not reported"))+COUNTIF(B18:H32,"=Partially reported")+COUNTIF(B34:B38,"=Not reported")+COUNTIF(B40:B41,"=Not reported")+COUNTIF(B43:B45,"=Not reported")+COUNTIF(B46,"=Cannot be determined")+COUNTIF(B39,"=Partially reported")+COUNTIF(B49,"=NR")+COUNTIF(B49,"=Not reported")+COUNTIF(B51:B57,"=Not reported")+COUNTIF(B50,"=Partially reported")+IF(AND(C50<>"",F20<>"",C50<5/6*F20),1,0)+IF(AND(D50<>"",F20<>"",D50<5/6*F20),1,0)+IF(AND(E50<>"",F20<>"",E50<5/6*F20),1,0)+IF(AND(F50<>"",F20<>"",F50<5/6*F20),1,0)+IF(AND(G50<>"",F20<>"",G50<5/6*F20),1,0)+IF(AND(H50<>"",F20<>"",H50<5/6*F20),1,0)+COUNTIF(B59:B74,"=Not included")+COUNTIF(B76:B80,"Not reported")+COUNTIF(B76:B80,"=NR")+COUNTIF(B76:B80,"Partially reported major")+COUNTIF(B81:B84,"=No") -> 5 | F5: Yellow flags | H5: 8
A6: Final Determination | B6: Pending - Major | F6: Date: 9/1/2020 | I6: Basis: IDU, IR
A7: AK List Status | B7: 0
A8: Testing Information | B8: Determination | I8: Notes
A9: Test method | B9: EPA M28R
A10: Test Lab | B10: OMNI | I10: test location not provided
A11: Third-party certifier | B11: OMNI
A12: Report certified | B12: Omni
A13: Test Report Elements | B13: Determination | I13: Notes
A14: Wght Avg PM emissions (g/hr) | B14: 1.061 | D14: PM Highest 1-hr (g/hr) | G14: 3.95
A15: Wght Avg HHV Efficiency (%) | B15: 76.8
A16: Wght Avg CO (g/hr) | B16: =IFERROR(G16*60,"Not reported") -> 126.6 | D16: Wght Avg CO (g/min) | G16: 2.11
A17: Max heat output (Btu/hr) | B17: 37102 | I17: The peak output is reported as 48000 BTU/hr on the manufacturer's website
A18: Manufacturers Instructions to lab | B18: Reported
A19: Firebox vol. test report | B19: 2 | I19: 2.3
A20: Firebox dimensions | B20: Not reported | D20: Longest dim. (in) | F20: 22 | G20: Max log length
A21: Firebox calculations | B21: Not reported
A22: Efficiency calculations | B22: Reported
A23: Burn rate calculations | B23: Reported
A24: Raw data sheets | B24: Reported
A25: Conditioning completed by | B25: Manufacturer | I25: at HLS with emissions data
A26: Conditioning data | B26: Partially reported | I26: 1) Data does not meet the reporting requirements of the test method. 2) Cannot determine conformance with medium burn rate requirements.
A27: Lab technician notes | B27: Reported
A28: Doc. of run appropriateness | B28: Not reported
A29: Doc. of run validity | B29: Reported
A30: Doc. of run anomolies | B30: Not reported
A31: Doc. of run burn rates | B31: Reported
A32: Photos of the fuel loaded | B32: Reported
A33: Test Run Data | B33: Determination | I33: Notes
A34: Run # | C34: 1 | D34: 2 | E34: 3 | F34: 4 | G34: 5 | H34: 6 | I34: 5 runs, one test run without catalyst, run 6
A35: Run Category | C35: I | D35: III | E35: IV | F35: II | G35: II | H35: I | I35: run 6 data not reported.
A36: Burn rate (kg/hr) | C36: 0.872 | D36: 1.51 | E36: 2.895 | F36: 0.873 | G36: 0.874 | H36: -
A37: PM emissions by run (g/hr) | C37: 0.546 | D37: 0.808 | E37: 2.803 | F37: 0.844 | G37: 0.659 | H37: -
A38: PM 1-hr filter pull (g/hr) | C38: 0.2 | D38: 1.14 | E38: 3.95 | F38: 1.03 | G38: 0.37 | H38: -
A39: Filter data | C39: yes | D39: yes | E39: yes | F39: yes | G39: yes | H39: NR | I39: Filter data for runs 1-5 are contained in test report from pages 16-82
A40: Train precision (%) | C40: NR | D40: NR | E40: NR | F40: NR | G40: NR | H40: NR
A41: Negative weights | C41: NR | D41: NR | E41: NR | F41: NR | G41: NR | H41: NR
A42: Negs handled appropriately | B42: Not reported
A43: Heat output by run (Btu/hr) | C43: 12974 | D43: 21414 | E43: 37102 | F43: 12879 | G43: 12829 | H43: NR
A44: CO by run (g/hr) | C44: 30.58 | D44: 91.69 | E44: 342.32 | F44: 41.68 | G44: 47.62 | H44: NR
A45: HHV efficiency (%) | C45: 80.1 | D45: 76.7 | E45: 68.9 | F45: 79 | G45: 78.6 | H45: NR
A46: Lowest burn rate tested | B46: Not reported | I46: There is no affirmative statement that lowest burn rate was tested in the report
A47: All run data | B47: Not reported
A48: Appliance Fueling | B48: Determination | I48: Notes
A49: Fuel species | B49: Doug Fir
A50: Log length (in) | C50: 19.5 | D50: 19.5 | E50: 19.5 | F50: 19.5 | G50: 19.5 | H50: 19.5 | I50: 1
A51: Direction of longest dimension | B51: Not reported
A52: Log direction for testing | B52: East-West
A53: Squared (ASTM test only) | B53: N/A (Crib)
A54: Debarked (ASTM test only) | B54: N/A (Crib)
A55: Load density (lb/ft3) | C55: 6.35 | D55: 6.5 | E55: 6.5 | F55: 6.5 | G55: 6.65 | H55: 6.65 | I55: Loading density reported on pages 24 to 108
A56: Fuel moisture content load (%wb) | C56: 20.3 | D56: 22.05 | E56: 21.4 | F56: 22.39 | G56: 21.6 | H56: 20.33 | I56: B Avg moisture 21.4%
A57: Fuel piece configuration | B57: Within specified limit
A58: Owners Manual Req. | B58: Determination | I58: Notes
A59: Stack height | B59: Included
A60: Location recommendation | B60: Included
A61: Guidance on proper draft | B61: Included
A62: Fuel loading & reloading | B62: Insufficient data
A63: Fuel selection recomm. | B63: Included
A64: Improper fuels warnings | B64: Included
A65: Fire starting procedures | B65: Included
A66: Proper use of air controls | B66: Included
A67: Proper operation low | B67: Insufficient data
A68: Ash removal procedures | B68: Included
A69: Replacement parts | B69: Included
A70: Federal warning (C or NC) | B70: Included | I70: The EPA required language is contained in the report on page 189
A71: Warranty rights | B71: Included
A72: Catalytst operation | B72: Included
A73: Cat maintenance procedures | B73: Insufficient data
A74: Determining catalyst det. or failure | B74: Included
A75: Reporting | B75: Determination | I75: Notes
A76: Summary tables complete | B76: Partially reported | I76: Flags in lines 28, 30, 37, 38, 43, 44. 45, and 46
A77: All run data submitted | B77: Partially reported | I77: Flags in lines 47 and 95
A78: Test report complete | B78: Partially reported major | I78: Flags in lines 20, 21, 26, 39, 40, 41, 42, 47 and 51
A79: Owner manual complete | B79: Partially reported major | I79: Flags in lines 62, 67, and 73
A80: Test dates | B80: 10/31- 11/6/2018 | I80: aging on 10/10-17/2018
A81: 30 Day notice submitted to EPA | B81: Cannot be determined
A82: Tested on the proposed date | B82: Cannot Be Determined
A83: Tested in consecutive days | B83: No
A84: 60 Day report to EPA | B84: Cannot be determined | I84: report date 12/5/2018, test participants not listed
A85: EPA additional Review Elements | B85: Determination | I85: Notes
A86: Test location | B86: Not reported
A87: date lab received the unit | B87: Not reported
A88: date first day of conditioning | B88: Cannot be determined
A89: date first day of testing | B89: 2018-10-30
A90: first hour PM emissions reported for all runs | B90: yes
A91: first hour PM emissions reported in grams per hour | B91: yes
A92: first hour PM emissions zero or negative | B92: no
A93: first hour PM emissions measured with front and back filter | B93: yes
A94: Zero CO emission reported | B94: no
A95: Any incomplete runs | B95: yes | I95: Run 6 was not completed. The manufacturer wished to attempt certification without the catalytic combustor, so it was removed & sealed. A category 1 burn rate was attempted, but the fire went out during the test run and the manufacturer elected not to pursue certification without a catalyst
A96: Preburn data reported (SU/High-3053, preburn M28R) | B96: yes
A97: filter changes during test run | B97: not reported
A98: filter plugged during test run | B98: not reported
A99: What type of filter used | B99: not reported
A100: Back and front filter weighed together (3053 only)
A101: Negative probe weight >5% of PM | B101: no negatives
A102: Negative probe value | B102: no negatives
A103: Negative room air values | B103: not reported
A104: Ambient background filter data | B104: no negatives
A105: Proportional sampling | B105: yes with allowable deviations | I105: The Pro Rate 1 and Pro Rate 2 data for run 6 were out of range, but the run was aborted and the data were not used for the certification.
A106: Leak check - pre-test leak check reported | B106: not reported
A107: Leak check - any filter change | B107: not reported
A108: Leak check - post leak check reported | B108: yes with allowable deviations
A109: Dilution tunnel schematic meets ASTM 2515 requirements | B109: not reported
A110: Firebox measurements confirmed with schematic | B110: not reported
A111: number of conditioning hours reported in summary | B111: Cannot be determined
A112: number of conditioning hours with data | B112: Cannot be determined
A113: number of hours at correct conditioning conditions | B113: Cannot be determined
A114: used lowest air settings for low burn (ASTM 3053) or Cat 1(M28R) | B114: yes
A115: Air setting data | B115: Cat 1/Low | C115: Cat 2/Med | D115: Cat 3 | E115: Cat 4/High | F115: FC | G115: CV
B116: Fixed stop | C116: -5 from low | D116: -15 from low | E116: Fixed stop
A117: Total number of runs | B117: 6 | I117: However, the 6 run was aborted and the data were not used for the certification.
A118: run averaging done correctly
A119: which SU/H run used for calculating emissions
A120: Fuel data for all SU/H runs (ASTM 3053)
A121: Multiple fuel lengths used | B121: no
A122: Specific gravity of fuel used (ASTM 3053 only) | E122: Value
A123: M28 fuel loaded longest dimension | B123: yes
A124: Calibration data | B124: yes | I124: Calibration frequency reported as every six months

Sheet Morso-1410B
A1: Summary of Review
A2: Manufacturer | B2: Morso Jernstoberi A/S
A3: Model | B3: 1410B, 1440B, and 1450B | F3: Control approach | I3: Non-Catalytic
A4: Prelim review recomm. | B4: Requires a more thorough review | I4: All models noted match EPA listing
A5: Red flags | B5: 5 | C5: Orange flags | E5: 5 | F5: Yellow flags | H5: 8
A6: Final Determination | B6: Pending - Major | F6: Date: 9/1/2020 | I6: Basis: MD, IDU, IR, NR
A7: AK List Status | B7: 0
A8: Testing Information | B8: Determination | I8: Notes
A9: Test method | B9: EPA M28R
A10: Test Lab | B10: Polytests Inc. | I10: performed at Polytest facility
A11: Third-party certifier | B11: OMNI
A12: Report certified | B12: Omni
A13: Test Report Elements | B13: Determination | I13: Notes
A14: Wght Avg PM emissions (g/hr) | B14: 1.78 | D14: PM Highest 1-hr (g/hr) | G14: 3.71
A15: Wght Avg HHV Efficiency (%) | B15: 73.51
A16: Wght Avg CO (g/hr) | B16: =G44/4 -> 57.035 | D16: Wght Avg CO (g/min) | G16: =B16/4 -> 14.25875
A17: Max heat output (Btu/hr) | B17: 24733 | I17: 30000
A18: Manufacturers Instructions to lab | B18: Not reported
A19: Firebox vol. test report | B19: 0.74 | I19: 0.736
A20: Firebox dimensions | B20: Reported | D20: Longest dim. (in) | F20: 12.25 | G20: Firebox dimension | I20: reported on website not report
A21: Firebox calculations | B21: Not reported
A22: Efficiency calculations | B22: Reported
A23: Burn rate calculations | B23: Reported
A24: Raw data sheets | B24: Reported
A25: Conditioning completed by | B25: Lab | I25: performed Nov and Dec 2016, also states completed in July (3.1). States that pretesting was done to ensure meeting the standard. No emissions data for those runs.
A26: Conditioning data | B26: Partially reported | I26: Data does not meet the reporting requiremetns detailed in the method. Conformance with med burn requirements cannot be determined.
A27: Lab technician notes | B27: Reported
A28: Doc. of run appropriateness | B28: Not reported | I28: No statements in the report that say that the runs were appropriate
A29: Doc. of run validity | B29: Reported
A30: Doc. of run anomolies | B30: Not reported | I30: No statements in the report that say that there were no anomalies with the runs
A31: Doc. of run burn rates | B31: Reported
A32: Photos of the fuel loaded | B32: Not reported | I32: Noted as Appendix 9 but not included in the report
A33: Test Run Data | B33: Determination | I33: Notes
A34: Run # | C34: 1 | D34: 2 | E34: 3 | F34: 4
A35: Run Category | C35: II | D35: II | E35: III | F35: IV
A36: Burn rate (kg/hr) | C36: 0.932 | D36: 0.878 | E36: 1.284 | F36: 1.868
A37: PM emissions by run (g/hr) | C37: 2.11 | D37: 1.77 | E37: 1.53 | F37: 1.53
A38: PM 1-hr filter pull (g/hr) | C38: 3.71 | D38: 3.18 | E38: 2.07 | F38: 1.91
A39: Filter data | C39: yes | D39: yes | E39: yes | F39: yes
A40: Train precision (%) | C40: 1.6 | D40: 0.29 | E40: 0.48 | F40: 1.2
A41: Negative weights | C41: no | D41: no | E41: no | F41: no
A42: Negs handled appropriately | B42: Yes
A43: Heat output by run (Btu/hr) | C43: 13250 | D43: 12115 | E43: 17652 | F43: 24733
A44: CO by run (g/hr) | C44: 60.68 | D44: 68.59 | E44: 50.27 | F44: 48.6 | G44: =SUM(C44:F44) -> 228.14
A45: HHV efficiency (%) | C45: 75.62 | D45: 74.63 | E45: 73.83 | F45: 70.44
A46: Lowest burn rate tested | B46: Not reported | I46: There is no affirmative statement that lowest burn rate was tested in the report
A47: All run data | B47: Reported
A48: Appliance Fueling | B48: Determination | I48: Notes
A49: Fuel species | B49: Douglas Fir
A50: Log length (in) | C50: 10.125 | D50: 10.125 | E50: 10.125 | F50: 10.125 | I50: 12
A51: Direction of longest dimension | B51: Not reported | I51: Noted as Appendix 12 but not included in the report, and there is no schematic
A52: Log direction for testing | B52: Cannot be determined
A53: Squared (ASTM test only) | B53: N/A (Crib)
A54: Debarked (ASTM test only) | B54: N/A (Crib)
A55: Load density (lb/ft3) | C55: 6.714 | D55: 6.692 | E55: 6.881 | F55: 6.659 | G55: =SUM(C55:F55) -> 26.946 | H55: =G55/4 -> 6.7365 | I55: B avg density 6.74
A56: Fuel moisture content load (%wb) | C56: 19.88 | D56: 19.97 | E56: 19.93 | F56: 19.67 | G56: =SUM(C56:F56) -> 79.45 | H56: =G56/4 -> 19.8625 | I56: A avg moisture 19.9%
A57: Fuel piece configuration | B57: Within specified limit
A58: Owners Manual Req. | B58: Determination | I58: Notes
A59: Stack height | B59: Included
A60: Location recommendation | B60: Included
A61: Guidance on proper draft | B61: Included
A62: Fuel loading & reloading | B62: Included
A63: Fuel selection recomm. | B63: Included
A64: Improper fuels warnings | B64: Insufficient data
A65: Fire starting procedures | B65: Included
A66: Proper use of air controls | B66: Included
A67: Proper operation low | B67: Insufficient data
A68: Ash removal procedures | B68: Included
A69: Replacement parts | B69: Included
A70: Federal warning (C or NC) | B70: Included | I70: The EPA required language is contained in the owners manual on page 14 of the report
A71: Warranty rights | B71: Included
A72: Catalytst operation | I72: NA
A73: Cat maintenance procedures | I73: NA
A74: Determining catalyst det. or failure | I74: NA
A75: Reporting | B75: Determination | I75: Notes
A76: Summary tables complete | B76: Partially reported | I76: Flags in lines 30 and 46
A77: All run data submitted | B77: All reported
A78: Test report complete | B78: Partially reported major | I78: Flags in lines 18, 21, 26, 50, 51, and 52
A79: Owner manual complete | B79: Partially reported minor | I79: Flags in lines 64 and 67
A80: Test dates | B80: 1/16-19/2017 | I80: received June 2016
A81: 30 Day notice submitted to EPA | B81: Cannot be determined
A82: Tested on the proposed date | B82: Cannot Be Determined
A83: Tested in consecutive days | B83: Yes
A84: 60 Day report to EPA | B84: Cannot be determined | I84: report date 5/2017
A85: EPA additional Review Elements | B85: Determination | I85: Notes
A86: Test location | B86: Lab | I86: Services Polytests inc. 695-B Gaudette St-jean-sur-Richelieu, QC, J3B 7S7
A87: date lab received the unit | B87: June, 2016
A88: date first day of conditioning | B88: Not reported
A89: date first day of testing | B89: 2017-01-16
A90: first hour PM emissions reported for all runs | B90: yes
A91: first hour PM emissions reported in grams per hour | B91: yes
A92: first hour PM emissions zero or negative | B92: no
A93: first hour PM emissions measured with front and back filter | B93: yes
A94: Zero CO emission reported | B94: no
A95: Any incomplete runs | B95: no
A96: Preburn data reported (SU/High-3053, preburn M28R) | B96: yes
A97: filter changes during test run | B97: not reported
A98: filter plugged during test run | B98: not reported
A99: What type of filter used | B99: not reported
A100: Back and front filter weighed together (3053 only)
A101: Negative probe weight >5% of PM | B101: reported/handled correctly
A102: Negative probe value | B102: reported/handled correctly
A103: Negative room air values | B103: not reported
A104: Ambient background filter data | B104: no negatives
A105: Proportional sampling | B105: yes with allowable deviations
A106: Leak check - pre-test leak check reported | B106: yes with allowable deviations | I106: Before and after each test, each sample train was tested for leaks.
A107: Leak check - any filter change | B107: not reported
A108: Leak check - post leak check reported | B108: yes with allowable deviations
A109: Dilution tunnel schematic meets ASTM 2515 requirements | B109: not reported
A110: Firebox measurements confirmed with schematic | B110: not reported
A111: number of conditioning hours reported in summary | B111: 53.95
A112: number of conditioning hours with data | B112: 53.95 | I112: However, data does not meet the reporting requiremetns detailed in the method. It is difficult tO determine if is done using a medium burn rate
A113: number of hours at correct conditioning conditions | B113: Cannot be determined
A114: used lowest air settings for low burn (ASTM 3053) or Cat 1(M28R) | B114: not reported
A115: Air setting data | B115: Cat 1/Low | C115: Cat 2/Med | D115: Cat 3 | E115: Cat 4/High | F115: FC | G115: CV
C116: Fully closed | D116: Half open | E116: Fully open
A117: Total number of runs | B117: 4
A118: run averaging done correctly
A119: which SU/H run used for calculating emissions
A120: Fuel data for all SU/H runs (ASTM 3053)
A121: Multiple fuel lengths used | B121: no
A122: Specific gravity of fuel used (ASTM 3053 only) | E122: Value
A123: M28 fuel loaded longest dimension | B123: not reported
A124: Calibration data | B124: partially reported | I124: Mentioned in Appendix 3 in the report, but the date cannot be determined

Sheet PE-Summit
A1: Summary of Review
A2: Manufacturer | B2: Pacific Energy Fireplace Products | I2: 2021-03-31
A3: Model | B3: Summit LE, Summit Classic LE, Alderlea T6 LE, and Summit Insert LE | F3: Control approach | I3: Non-Catalytic
A4: Prelim review recomm. | B4: Requires a more thorough review | I4: All models noted match EPA listing
A5: Red flags | B5: 13 | C5: Orange flags | E5: 5 | F5: Yellow flags | H5: 3 | I5: did not review OM
A6: Final Determination | B6: Pending - Major | F6: Date: 9/1/2020 | I6: Basis: IDU, IR, NR
A7: AK List Status | B7: 0
A8: Testing Information | B8: Determination | I8: Notes
A9: Test method | B9: EPA M28R
A10: Test Lab | B10: PFS-TECO | I10: performed at PFS facility
A11: Third-party certifier | B11: PFS-TECO
A12: Report certified | B12: PFS-TECO
A13: Test Report Elements | B13: Determination | I13: Notes
A14: Wght Avg PM emissions (g/hr) | B14: 1.8 | D14: PM Highest 1-hr (g/hr) | G14: 5.77
A15: Wght Avg HHV Efficiency (%) | B15: 73.7 | I15: Reported as 74% on website
A16: Wght Avg CO (g/hr) | B16: =IFERROR(G16*60,"Not reported") -> 91.8 | D16: Wght Avg CO (g/min) | G16: 1.53
A17: Max heat output (Btu/hr) | B17: 41275 | I17: Reported as 90000 BTU/hr cordwood on website
A18: Manufacturers Instructions to lab | B18: Not reported
A19: Firebox vol. test report | B19: 2.5 | I19: 3
A20: Firebox dimensions | B20: Reported | D20: Longest dim. (in) | F20: 27.094 | G20: Firebox dimension
A21: Firebox calculations | B21: Not reported
A22: Efficiency calculations | B22: Reported
A23: Burn rate calculations | B23: Reported
A24: Raw data sheets | B24: Reported
A25: Conditioning completed by | B25: Manufacturer | I25: 6/9-29/2017
A26: Conditioning data | B26: Not reported
A27: Lab technician notes | B27: Reported
A28: Doc. of run appropriateness | B28: Reported
A29: Doc. of run validity | B29: Reported
A30: Doc. of run anomolies | B30: Reported
A31: Doc. of run burn rates | B31: Reported
A32: Photos of the fuel loaded | B32: Not reported
A33: Test Run Data | B33: Determination | I33: Notes
A34: Run # | C34: 1 | D34: 2 | E34: 3 | F34: 4
A35: Run Category | C35: II | D35: II | E35: III | F35: IV | I35: 5 runs, R5 FC not used in calcs
A36: Burn rate (kg/hr) | C36: 1.08 | D36: 0.97 | E36: 1.49 | F36: 2.99 | G36: NR | I36: did not attempt 2 cat 1 - M28 Section 8.1.1.3.2
A37: PM emissions by run (g/hr) | C37: 1.34 | D37: 1.91 | E37: 1.28 | F37: 3.21 | G37: 2.09
A38: PM 1-hr filter pull (g/hr) | C38: 4.65 | D38: 5.77 | E38: 3.83 | F38: 3.9 | G38: NR
A39: Filter data | C39: yes | D39: yes | E39: yes | F39: yes | G39: yes
A40: Train precision (%) | C40: NR | D40: NR | E40: NR | F40: NR | G40: NR
A41: Negative weights | C41: no | D41: no | E41: no | F41: no | G41: no
A42: Negs handled appropriately | B42: Not reported
A43: Heat output by run (Btu/hr) | C43: 16102 | D43: 14303 | E43: 21963 | F43: 41275 | G43: NR
A44: CO by run (g/hr) | C44: =1.62*60 -> 97.2 | D44: =1.62*60 -> 97.2 | E44: =1.58*60 -> 94.8 | F44: =1.13*60 -> 67.8 | G44: NR
A45: HHV efficiency (%) | C45: 74.9 | D45: 74.2 | E45: 74.2 | F45: 69.6 | G45: NR
A46: Lowest burn rate tested | B46: No | I46: There is no affirmative statement that lowest burn rate was tested in the report
A47: All run data | B47: Not reported | I47: missing run 5
A48: Appliance Fueling | B48: Determination | I48: Notes
A49: Fuel species | B49: Douglas Fir
A50: Log length (in) | C50: 16.75 | D50: 16.75 | E50: 16.75 | F50: 16.75 | I50: Reported as 18 inches on website with 20 inches allowed as the longest dimension
A51: Direction of longest dimension | B51: East-West | I51: Firebox schematic shown in owners manual on page 11
A52: Log direction for testing | B52: Not reported | I52: Fuel loading pictures not provided
A53: Squared (ASTM test only) | B53: N/A (Crib)
A54: Debarked (ASTM test only) | B54: N/A (Crib)
A55: Load density (lb/ft3) | C55: NR | D55: NR | E55: NR | F55: NR
A56: Fuel moisture content load (%wb) | C56: 20.9 | D56: 21 | E56: 21 | F56: 20.7
A57: Fuel piece configuration | B57: Not reported
A58: Owners Manual Req. | B58: Determination | I58: Notes
A59: Stack height | B59: Included | I59: not included with test report
A60: Location recommendation | B60: Included
A61: Guidance on proper draft | B61: Included
A62: Fuel loading & reloading | B62: Included
A63: Fuel selection recomm. | B63: Included
A64: Improper fuels warnings | B64: Included
A65: Fire starting procedures | B65: Included
A66: Proper use of air controls | B66: Included
A67: Proper operation low | B67: Included
A68: Ash removal procedures | B68: Included
A69: Replacement parts | B69: Included
A70: Federal warning (C or NC) | B70: Included | I70: The EPA required language is contained in the owners manual on page 3
A71: Warranty rights | B71: Not included
A72: Catalytst operation | I72: n/a
A73: Cat maintenance procedures | I73: n/a
A74: Determining catalyst det. or failure | I74: n/a
A75: Reporting | B75: Determination | I75: Notes
A76: Summary tables complete | B76: Partially reported | I76: Flags in lines 36, 38, 43, 44, 45, and 46
A77: All run data submitted | B77: Partially reported | I77: Flag in line 47
A78: Test report complete | B78: Partially reported major | I78: Flags in line 18, 21, 26, 40, 42, 47, and 50
A79: Owner manual complete | B79: Partially reported minor | I79: Flag in line 71
A80: Test dates | B80: 7/19-25/2017 | I80: received 7/10/17
A81: 30 Day notice submitted to EPA | B81: Cannot be determined
A82: Tested on the proposed date | B82: Cannot Be Determined
A83: Tested in consecutive days | B83: Yes
A84: 60 Day report to EPA | B84: No | I84: report date 9/20/17, witness redacted
A85: EPA additional Review Elements | B85: Determination | I85: Notes
A86: Test location | B86: Lab | I86: 11785 SE Highway 212 – Suite 305, Clackamas, Oregon 97015.
A87: date lab received the unit | B87: 7./10/.2017
A88: date first day of conditioning | B88: 7/9/2017 - 7/29/2017
A89: date first day of testing | B89: 2017-07-19
A90: first hour PM emissions reported for all runs | B90: yes
A91: first hour PM emissions reported in grams per hour | B91: yes
A92: first hour PM emissions zero or negative | B92: no
A93: first hour PM emissions measured with front and back filter | B93: yes
A94: Zero CO emission reported | B94: no
A95: Any incomplete runs | B95: no | I95: Although run 5 was designated as fan confirmation run and data data was not presented, the run lasted for 5 hours, and preburn data was provided
A96: Preburn data reported (SU/High-3053, preburn M28R) | B96: yes
A97: filter changes during test run | B97: yes
A98: filter plugged during test run | B98: not reported
A99: What type of filter used | B99: not reported
A100: Back and front filter weighed together (3053 only)
A101: Negative probe weight >5% of PM | B101: no negatives
A102: Negative probe value | B102: no negatives
A103: Negative room air values | B103: not reported
A104: Ambient background filter data | B104: no negatives
A105: Proportional sampling | B105: yes with allowable deviations | I105: However, instead of reorting as Pro-Rates 1 and 2 in the same tables, the proportional rates were reported separately in different tables for each run
A106: Leak check - pre-test leak check reported | B106: not reported
A107: Leak check - any filter change | B107: not reported
A108: Leak check - post leak check reported | B108: not reported
A109: Dilution tunnel schematic meets ASTM 2515 requirements | B109: not reported | I109: Dilution tunnel schematic not provided
A110: Firebox measurements confirmed with schematic | B110: no | I110: Firebox schematic not provided
A111: number of conditioning hours reported in summary | B111: 50 | I111: Although 50 hours of aging was reported, the conditioning data was not presented
A112: number of conditioning hours with data | B112: Not reported
A113: number of hours at correct conditioning conditions | B113: Cannot be determined
A114: used lowest air settings for low burn (ASTM 3053) or Cat 1(M28R) | B114: not reported
A115: Air setting data | B115: Cat 1/Low | C115: Cat 2/Med | D115: Cat 3 | E115: Cat 4/High | F115: FC | G115: CV
C116: 0.411" | D116: 0.617" | E116: Fully Open | I116: Two ctaegory 2 runs at different air settinmg
A117: Total number of runs | B117: 5 | I117: 5 runs, but Run 5 was for fan confrmation and not used for calculations
A118: run averaging done correctly
A119: which SU/H run used for calculating emissions
A120: Fuel data for all SU/H runs (ASTM 3053)
A121: Multiple fuel lengths used | B121: no
A122: Specific gravity of fuel used (ASTM 3053 only) | E122: Value
A123: M28 fuel loaded longest dimension | B123: not reported | I123: Fuel loading pictures not provided
A124: Calibration data | B124: no | I124: Mentioned as Appendix D in the report, but the calibrated data cannot be determined

Sheet PE-True North 10
A1: Summary of Review
A2: Manufacturer | B2: Pacific Energy Fireplace Products | I2: 2021-03-31
A3: Model | B3: True North 10 | F3: Control approach | I3: Non-Catalytic
A4: Prelim review recomm. | B4: Requires a more thorough review | I4: All models noted match EPA listing
A5: Red flags | B5: =10+SUMPRODUCT((B14="NR")+(B14="Not reported")+(G14="NR")+(G14="Not reported"))+COUNTIF(B18:H32,"=Not reported")+COUNTIF(B18:H32,"=NR")+COUNTIF(B14,">2")+COUNTIF(G14,">6")+COUNTIF(B21,"=Reported/not matched")+COUNTIF(B39,"=Not reported")+COUNTIF(B42,"=No")+COUNTIF(B46:B47,"=Not reported")+COUNTIF(B49,"=NR")+COUNTIF(B49,"=Not reported")+COUNTIF(B50,"=Not reported")+COUNTIF(B53,"=All")+COUNTIF(B53,"=More than 50%")+COUNTIF(B54,"=More than 50%")+COUNTIF(B55:B57,"=Not within specified limit") -> 17 | C5: Orange flags | E5: =SUMPRODUCT((B15="NR")+(B15="Not reported")+(G16="NR")+(G16="Not reported")+(B17="NR")+(B17="Not reported"))+COUNTIF(B18:H32,"=Partially reported")+COUNTIF(B34:B38,"=Not reported")+COUNTIF(B40:B41,"=Not reported")+COUNTIF(B43:B45,"=Not reported")+COUNTIF(B46,"=Cannot be determined")+COUNTIF(B39,"=Partially reported")+COUNTIF(B49,"=NR")+COUNTIF(B49,"=Not reported")+COUNTIF(B51:B57,"=Not reported")+COUNTIF(B50,"=Partially reported")+IF(AND(C50<>"",F20<>"",C50<5/6*F20),1,0)+IF(AND(D50<>"",F20<>"",D50<5/6*F20),1,0)+IF(AND(E50<>"",F20<>"",E50<5/6*F20),1,0)+IF(AND(F50<>"",F20<>"",F50<5/6*F20),1,0)+IF(AND(G50<>"",F20<>"",G50<5/6*F20),1,0)+IF(AND(H50<>"",F20<>"",H50<5/6*F20),1,0)+COUNTIF(B59:B74,"=Not included")+COUNTIF(B76:B80,"Not reported")+COUNTIF(B76:B80,"=NR")+COUNTIF(B76:B80,"Partially reported major")+COUNTIF(B81:B84,"=No") -> 11 | F5: Yellow flags | H5: 5 | I5: OM not reviewed
A6: Final Determination | B6: Pending - Major | F6: Date: 9/1/2020 | I6: Basis: MD, IR
A7: AK List Status | B7: 0
A8: Testing Information | B8: Determination | I8: Notes
A9: Test method | B9: EPA M28R
A10: Test Lab | B10: PFS-TECO | I10: performed at PFS facility
A11: Third-party certifier | B11: PFS-TECO
A12: Report certified | B12: PFS-TECO
A13: Test Report Elements | B13: Determination | I13: Notes
A14: Wght Avg PM emissions (g/hr) | B14: 1.4 | D14: PM Highest 1-hr (g/hr) | G14: 0 | I14: I hr values reported in mg not g/hr
A15: Wght Avg HHV Efficiency (%) | B15: 72.6 | I15: 78.3
A16: Wght Avg CO (g/hr) | B16: =I44/4 -> 45.775 | D16: Wght Avg CO (g/min) | G16: =B16/60 -> 0.7629166667 | I16: CO run values reported in g/hr but no averages
A17: Max heat output (Btu/hr) | B17: 17623 | I17: Reported as 30000 BTU/hr on website
A18: Manufacturers Instructions to lab | B18: Not reported
A19: Firebox vol. test report | B19: 0.81 | I19: 0.8
A20: Firebox dimensions | B20: Reported | D20: Longest dim. (in) | F20: 13.75 | G20: Firebox dimension
A21: Firebox calculations | B21: Not reported
A22: Efficiency calculations | B22: Partially reported
A23: Burn rate calculations | B23: Partially reported
A24: Raw data sheets | B24: Partially reported
A25: Conditioning completed by | B25: Manufacturer | I25: Aging conducted between 8/24-9/14/2016
A26: Conditioning data | B26: Not reported
A27: Lab technician notes | B27: Not reported
A28: Doc. of run appropriateness | B28: Reported | I28: Test report contains all statements that runs were appropriate
A29: Doc. of run validity | B29: Partially reported | I29: However, test report contains all statements saying test results were valid
A30: Doc. of run anomolies | B30: Reported | I30: Test report contains info on anomalies
A31: Doc. of run burn rates | B31: Partially reported
A32: Photos of the fuel loaded | B32: Not reported | I32: Fuel load photographs not included
A33: Test Run Data | B33: Determination | I33: Notes
A34: Run # | C34: 2 | D34: 3 | E34: 4 | F34: 5
A35: Run Category | C35: II | D35: II | E35: III | F35: IV
A36: Burn rate (kg/hr) | C36: 0.93 | D36: 1.08 | E36: 1.35 | F36: 1.32
A37: PM emissions by run (g/hr) | C37: 1.3 | D37: 1.4 | E37: 1.8 | F37: 1.2
A38: PM 1-hr filter pull (g/hr) | C38: NR | D38: NR | E38: NR | F38: NR | I38: 1 hr values reported in mg not g/hr
A39: Filter data | C39: yes | D39: yes | E39: yes | F39: yes | I39: Filter data included on pages 15-17
A40: Train precision (%) | C40: NR | D40: NR | E40: NR | F40: NR
A41: Negative weights | C41: NR | D41: NR | E41: NR | F41: NR
A42: Negs handled appropriately | B42: No
A43: Heat output by run (Btu/hr) | C43: 13084 | D43: 15125 | E43: 17623 | F43: 17503
A44: CO by run (g/hr) | C44: 38.92 | D44: 42.1 | E44: 55.44 | F44: 46.64 | I44: =SUM(C44:H44) -> 183.1
A45: HHV efficiency (%) | C45: 74.8 | D45: 74.7 | E45: 69.5 | F45: 70.3
A46: Lowest burn rate tested | B46: Cannot be determined | I46: There is no affirmative statemet that lowest burn rate was tested
A47: All run data | B47: Not reported
A48: Appliance Fueling | B48: Determination | I48: Notes
A49: Fuel species | B49: Douglas Fir
A50: Log length (in) | C50: 11.625 | D50: 11.625 | E50: 11.625 | F50: 11.625 | I50: 12
A51: Direction of longest dimension | B51: Not reported | I51: Firebox schematic not included
A52: Log direction for testing | B52: Not reported | I52: Firebox schematic not included
A53: Squared (ASTM test only) | B53: N/A (Crib)
A54: Debarked (ASTM test only) | B54: N/A (Crib)
A55: Load density (lb/ft3) | C55: NR | D55: NR | E55: NR | F55: NR
A56: Fuel moisture content load (%wb) | C56: 19.3 | D56: 19.4 | E56: 21 | F56: 21 | G56: =SUM(C56:F56) -> 80.7 | H56: =G56/4 -> 20.175 | I56: A avg moisture content 20.2
A57: Fuel piece configuration | B57: Not reported
A58: Owners Manual Req. | B58: Determination | I58: Notes
A59: Stack height | B59: Included | I59: not included with test report
A60: Location recommendation | B60: Included
A61: Guidance on proper draft | B61: Included
A62: Fuel loading & reloading | B62: Included
A63: Fuel selection recomm. | B63: Included
A64: Improper fuels warnings | B64: Included
A65: Fire starting procedures | B65: Included
A66: Proper use of air controls | B66: Included
A67: Proper operation low | B67: Included
A68: Ash removal procedures | B68: Included
A69: Replacement parts | B69: Included
A70: Federal warning (C or NC) | B70: Included | I70: The EPA required language is contained in the owners manual on page 3
A71: Warranty rights | B71: Not included
A72: Catalytst operation | I72: n/a
A73: Cat maintenance procedures | I73: n/a
A74: Determining catalyst det. or failure | I74: n/a
A75: Reporting | B75: Determination | I75: Notes
A76: Summary tables complete | B76: Partially reported | I76: Flags in lines 29, 31, 38, and 46
A77: All run data submitted | B77: Partially reported | I77: Flags in lines 47 and 95
A78: Test report complete | B78: Partially reported major | I78: Flags in lines 18, 21, 22, 23, 24, 26, 27, 40, 41, 42, 47, 51,
A79: Owner manual complete | B79: Partially reported minor | I79: Flag in line 71
A80: Test dates | B80: 10/13-16/2016 | I80: date not correct run #1 happened prior to 10/13
A81: 30 Day notice submitted to EPA | B81: Cannot be determined
A82: Tested on the proposed date | B82: Cannot Be Determined
A83: Tested in consecutive days | B83: Yes
A84: 60 Day report to EPA | B84: Cannot be determined
A85: EPA additional Review Elements | B85: Determination | I85: Notes
A86: Test location | B86: Lab | I86: Dirigo Laboratories, Inc. 11785 SE HWY 212 - Suite 305, Clackamas, OR 97015
A87: date lab received the unit | B87: 10/.12/2016
A88: date first day of conditioning | B88: 2016-08-24 | I88: Aging conducted between 8/24-9/14/2016
A89: date first day of testing | B89: 2016-10-13
A90: first hour PM emissions reported for all runs | B90: no | I90: First hour PM emissions were not reported for runs 1 and 6. Besides, they were reported in mg for runs 2, 3, 4, and 5
A91: first hour PM emissions reported in grams per hour | B91: no
A92: first hour PM emissions zero or negative | B92: not reported | I92: Cannot be drtermined because they were reported in mg
A93: first hour PM emissions measured with front and back filter | B93: yes
A94: Zero CO emission reported | B94: no
A95: Any incomplete runs | B95: yes | I95: Run 1 data was not included in the publicly available test report
A96: Preburn data reported (SU/High-3053, preburn M28R) | B96: yes
A97: filter changes during test run | B97: yes | I97: Filter changes reported on page 24 of the report
A98: filter plugged during test run | B98: not reported
A99: What type of filter used | B99: not reported
A100: Back and front filter weighed together (3053 only)
A101: Negative probe weight >5% of PM | B101: not reported
A102: Negative probe value | B102: no negatives
A103: Negative room air values | B103: not reported
A104: Ambient background filter data | B104: no negatives
A105: Proportional sampling | B105: yes with allowable deviations | I105: However, instead of reorting as Pro-Rates 1 and 2 in the same tables, the proportional rates were reported separately in different tables for each run
A106: Leak check - pre-test leak check reported | B106: not reported
A107: Leak check - any filter change | B107: not reported
A108: Leak check - post leak check reported | B108: not reported
A109: Dilution tunnel schematic meets ASTM 2515 requirements | B109: not reported | I109: Dilution tunnel schematic not provided
A110: Firebox measurements confirmed with schematic | B110: not reported | I110: Firebox schematic not provided
A111: number of conditioning hours reported in summary | B111: not reported | I111: Although 50 hours of break-in was reported, the conditioning data was not presented
A112: number of conditioning hours with data | B112: not reported
A113: number of hours at correct conditioning conditions | B113: cannot be determined
A114: used lowest air settings for low burn (ASTM 3053) or Cat 1(M28R) | B114: not reported | I114: No category 1 testing was repoorted
A115: Air setting data | B115: Cat 1/Low | C115: Cat 2/Med | D115: Cat 3 | E115: Cat 4/High | F115: FC | G115: CV
C116: Fully closed | D116: Fully open | E116: Fully open | F116: Fully open | I116: Two ctaegory 2 runs at different air settinmg
A117: Total number of runs | B117: 6 | I117: 6 runs, but Run 1 data was not reported and run 6 was for fan confrmation. Runs 1 and 6 were not used for calculations
A118: run averaging done correctly
A119: which SU/H run used for calculating emissions
A120: Fuel data for all SU/H runs (ASTM 3053)
A121: Multiple fuel lengths used | B121: no
A122: Specific gravity of fuel used (ASTM 3053 only) | E122: Value
A123: M28 fuel loaded longest dimension | B123: not reported | I123: Fuel loading pictures not provided
A124: Calibration data | B124: not reported | I124: Calibrations for the platform scale and bench scale mentioned in Appendix D of the report, but the calibrated data was not included

Sheet STUV30
A1: Summary of Review
A2: Manufacturer | B2: Stuv America
A3: Model | B3: 30 Compact, 30 Compact-H, 30 Compact-one | F3: Control approach | I3: Non-Catalytic
A4: Prelim review recomm. | B4: Requires a more thorough review | I4: All models noted match EPA listing
A5: Red flags | B5: 6 | C5: Orange flags | E5: 2 | F5: Yellow flags | H5: 6
A6: Final Determination | B6: Pending - Major | F6: Date: 9/1/2020 | I6: Basis: IDU, IR, NR
A7: AK List Status | B7: 0
A8: Testing Information | B8: Determination | I8: Notes
A9: Test method | B9: EPA M28R
A10: Test Lab | B10: Polytests Inc. | I10: tested at polytest facility
A11: Third-party certifier | B11: Not reported
A12: Report certified | B12: Not reported
A13: Test Report Elements | B13: Determination | I13: Notes
A14: Wght Avg PM emissions (g/hr) | B14: 1.82 | D14: PM Highest 1-hr (g/hr) | G14: 5.038
A15: Wght Avg HHV Efficiency (%) | B15: 73.9 | I15: 73.9
A16: Wght Avg CO (g/hr) | B16: =IFERROR(G16*60,"Not reported") -> 68.4 | D16: Wght Avg CO (g/min) | G16: 1.14
A17: Max heat output (Btu/hr) | B17: 17049 | I17: Reported as 31000 BTU/hr on the website
A18: Manufacturers Instructions to lab | B18: Not reported
A19: Firebox vol. test report | B19: 0.99
A20: Firebox dimensions | B20: Reported | D20: Longest dim. (in) | F20: 12.5 | G20: Max log length | I20: Firebox dimnsions reported as 12.5 w x 10 d x 18.5 h on page 10 of the test report
A21: Firebox calculations | B21: Not reported | I21: Reported as Appendix 12 but not included in the publicly available test report
A22: Efficiency calculations | B22: Reported
A23: Burn rate calculations | B23: Reported
A24: Raw data sheets | B24: Reported
A25: Conditioning completed by | B25: Lab | I25: Not clear but likely 1st week of June 2017.
A26: Conditioning data | B26: Not reported
A27: Lab technician notes | B27: Reported
A28: Doc. of run appropriateness | B28: Not reported | I28: Issues with burn rates for Cat IV and II burns, and the test report does not contain statements that runs were appropriate
A29: Doc. of run validity | B29: Not reported
A30: Doc. of run anomolies | B30: Not reported | I30: Test report does not contain statements that were no anomalies
A31: Doc. of run burn rates | B31: Reported
A32: Photos of the fuel loaded | B32: Reported
A33: Test Run Data | B33: Determination | I33: Notes
A34: Run # | C34: 1 | D34: 2 | E34: 3 | F34: 4 | I34: p. 12 narrative indicates that another cat IV run
A35: Run Category | C35: Cat IV | D35: Cat II | E35: Cat II | F35: Cat II | I35: was completed but not reported.
A36: Burn rate (kg/hr) | C36: 1.068 | D36: 0.911 | E36: 1.03 | F36: 1.223 | I36: burn rate for Cat IV 20% lower than Cat 2 test (r4)
A37: PM emissions by run (g/hr) | C37: 1.87 | D37: 2.01 | E37: 1.59 | F37: 1.73 | I37: optional air damper for stove - tested?
A38: PM 1-hr filter pull (g/hr) | C38: 3.96 | D38: 5.04 | E38: 3.19 | F38: 2.61
A39: Filter data | C39: yes | D39: yes | E39: yes | F39: yes
A40: Train precision (%) | C40: 4.7 | D40: 3.54 | E40: 0.45 | F40: 3.36
A41: Negative weights | C41: yes | D41: yes | E41: yes | F41: yes
A42: Negs handled appropriately | B42: No
A43: Heat output by run (Btu/hr) | C43: 14780 | D43: 12551 | E43: 14482 | F43: 17049
A44: CO by run (g/hr) | C44: 72.8 | D44: 77.4 | E44: 55.17 | F44: 64.13
A45: HHV efficiency (%) | C45: 73.6 | D45: 73.3 | E45: 74.9 | F45: 74.2
A46: Lowest burn rate tested | B46: Not reported | I46: No affirmative statement of lowest burn rate tested
A47: All run data | B47: Not reported
A48: Appliance Fueling | B48: Determination | I48: Notes
A49: Fuel species | B49: Douglas Fir
A50: Log length (in) | C50: 9.375 | D50: 9.375 | E50: 9.5 | F50: 9.75
A51: Direction of longest dimension | B51: Not reported | I51: Although the test report mentioned that diagrams are contained in Appendix 6, this appenix, including firebox schematic was not provided in the publicly available report
A52: Log direction for testing | B52: Cannot be determined | I52: Although the fuel loading photographs were presented in the report, the log direction cannot be determined from the pictures
A53: Squared (ASTM test only) | B53: N/A (Crib)
A54: Debarked (ASTM test only) | B54: N/A (Crib)
A55: Load density (lb/ft3) | C55: 6.461 | D55: 6.432 | E55: 6.509 | F55: 6.467 | G55: =SUM(C55:F55) -> 25.869 | H55: =G55/4 -> 6.46725 | I55: A avg density 6.47
A56: Fuel moisture content load (%wb) | C56: 19.89 | D56: 19.69 | E56: 19.93 | F56: 19.76 | G56: =SUM(C56:F56) -> 79.27 | H56: =G56/4 -> 19.8175 | I56: A avg moisture 19.8%
A57: Fuel piece configuration | B57: Within specified limit
A58: Owners Manual Req. | B58: Determination | I58: Notes
A59: Stack height | B59: Included
A60: Location recommendation | B60: Included
A61: Guidance on proper draft | B61: Included
A62: Fuel loading & reloading | B62: Included
A63: Fuel selection recomm. | B63: Included
A64: Improper fuels warnings | B64: Included
A65: Fire starting procedures | B65: Included
A66: Proper use of air controls | B66: Included
A67: Proper operation low | B67: Included
A68: Ash removal procedures | B68: Included
A69: Replacement parts | B69: Included
A70: Federal warning (C or NC) | B70: Included | I70: The EPA required language is contained in the owners manual on page 5
A71: Warranty rights | B71: Included
A72: Catalytst operation | I72: NA
A73: Cat maintenance procedures | I73: NA
A74: Determining catalyst det. or failure | I74: NA
A75: Reporting | B75: Determination | I75: Notes
A76: Summary tables complete | B76: Partially reported | I76: Flags in lines 28, 29, 30, and 46
A77: All run data submitted | B77: Partially reported | I77: Flags in lines 47 and 96
A78: Test report complete | B78: Partially reported major | I78: Flags in lines 11, 12, 18, 21, 26, 42, 50, 51, 52
A79: Owner manual complete | B79: All reported
A80: Test dates | B80: 6/12-15/2017
A81: 30 Day notice submitted to EPA | B81: Cannot be determined
A82: Tested on the proposed date | B82: Cannot Be Determined
A83: Tested in consecutive days | B83: Yes
A84: 60 Day report to EPA | B84: Cannot be determined | I84: Report date: 6/23/2017
A85: EPA additional Review Elements | B85: Determination | I85: Notes
A86: Test location | B86: Lab | I86: Services Polytests Inc., 695-B Gaudette St-jean-sur-Richelieu QC, Canada J3B 7S7
A87: date lab received the unit | B87: April, 2017
A88: date first day of conditioning | B88: First week of June, 2017 | I88: Aging conducted first week of June, 2017
A89: date first day of testing | B89: 2017-06-12
A90: first hour PM emissions reported for all runs | B90: yes
A91: first hour PM emissions reported in grams per hour | B91: yes
A92: first hour PM emissions zero or negative | B92: no
A93: first hour PM emissions measured with front and back filter | B93: yes
A94: Zero CO emission reported | B94: no
A95: Any incomplete runs | B95: no
A96: Preburn data reported (SU/High-3053, preburn M28R) | B96: not reported | I96: Although the test report indicated that the preburn data is contained in appendix 4, the appendix is not included in the publicly availabe report
A97: filter changes during test run | B97: not reported
A98: filter plugged during test run | B98: not reported
A99: What type of filter used | B99: not reported
A100: Back and front filter weighed together (3053 only)
A101: Negative probe weight >5% of PM | B101: no negatives
A102: Negative probe value | B102: no negatives
A103: Negative room air values | B103: not reported
A104: Ambient background filter data | B104: no negatives
A105: Proportional sampling | B105: yes with allowable deviations
A106: Leak check - pre-test leak check reported | B106: not reported | I106: It was reported that pre-test leak check was done on page 12, but the data is not presented.
A107: Leak check - any filter change | B107: not reported
A108: Leak check - post leak check reported | B108: not reported | I108: It was reported that post-test leak check was done on page 12 but the data is not presented.
A109: Dilution tunnel schematic meets ASTM 2515 requirements | B109: not reported | I109: Dilution tunnel schematic not provided
A110: Firebox measurements confirmed with schematic | B110: not reported | I110: Firebox schematic not provided
A111: number of conditioning hours reported in summary | B111: 50 | I111: Although 50 hours of aging was reported, the conditioning data was not reported
A112: number of conditioning hours with data | B112: not reported
A113: number of hours at correct conditioning conditions | B113: cannot be determined | I113: Although 50 hours of aging was reported, the conditioning data was not reported
A114: used lowest air settings for low burn (ASTM 3053) or Cat 1(M28R) | B114: not reported | I114: Although the test report indicated that runs 2 and 3 were done at minimum settings, they were category II runs
A115: Air setting data | B115: Cat 1/Low | C115: Cat 2/Med | D115: Cat 3 | E115: Cat 4/High | F115: FC | G115: CV
I116: Three category 2 runs were conducted at different air settings
A117: Total number of runs | B117: 4
A118: run averaging done correctly
A119: which SU/H run used for calculating emissions
A120: Fuel data for all SU/H runs (ASTM 3053)
A121: Multiple fuel lengths used | B121: yes
A122: Specific gravity of fuel used (ASTM 3053 only) | E122: Value
A123: M28 fuel loaded longest dimension | B123: no | I123: It is hard to determine from the fuel loading picture provided
A124: Calibration data | B124: not reported | I124: The test reported indicated that the calibration data is in Appendix 3, but the appendix is not included

Sheet VC-Expedition II
A1: Summary of Review
A2: Manufacturer | B2: HHT/Hearth & Home Technologies | I2: 2021-03-31
A3: Model | B3: Quadra Fire Expedition II and Vermont Castings Montpelier II | F3: Control approach | I3: Non-Catalytic
A4: Prelim review recomm. | B4: Requires a more thorough review | I4: All models noted match EPA listing
A5: Red flags | B5: 4 | C5: Orange flags | E5: 5 | F5: Yellow flags | H5: 8
A6: Final Determination | B6: Pending - Major | F6: Date: | I6: Basis: MD, IDU, IR
A7: AK List Status | B7: 0
A8: Testing Information | B8: Determination | I8: Notes
A9: Test method | B9: EPA M28R | I9: p. 205, 2019
A10: Test Lab | B10: OMNI | I10: test done at unspecified HHT facility
A11: Third-party certifier | B11: OMNI | I11: participants not listed
A12: Report certified | B12: Omni
A13: Test Report Elements | B13: Determination | I13: Notes
A14: Wght Avg PM emissions (g/hr) | B14: 1.85 | D14: PM Highest 1-hr (g/hr) | G14: 2.76
A15: Wght Avg HHV Efficiency (%) | B15: 71.3 | I15: 71.3
A16: Wght Avg CO (g/hr) | B16: =E44/2 -> 104.82 | D16: Wght Avg CO (g/min) | G16: =B16/60 -> 1.747 | I16: CO run data provided but no averages
A17: Max heat output (Btu/hr) | B17: 26785 | I17: Reported as 56000 BTU/hr on the website
A18: Manufacturers Instructions to lab | B18: Reported
A19: Firebox vol. test report | B19: 2.37 | I19: 2.37
A20: Firebox dimensions | B20: Not reported | D20: Longest dim. (in) | F20: 20 | G20: Max log length | I20: However, the refractory brick that is used to line the firebox is said to have a dimesion of 9" x 4.5" x 1.25"
A21: Firebox calculations | B21: Not reported
A22: Efficiency calculations | B22: Reported
A23: Burn rate calculations | B23: Reported
A24: Raw data sheets | B24: Reported
A25: Conditioning completed by | B25: Manufacturer | I25: Hearth and Home at Medium
A26: Conditioning data | B26: Partially reported | I26: 1) Data does not meet the reporting requirements of the test method. 2) Cannot determine conformance with medium burn rate requirements.
A27: Lab technician notes | B27: Reported
A28: Doc. of run appropriateness | B28: Not reported | I28: No statement saying runs were appropriate
A29: Doc. of run validity | B29: Reported
A30: Doc. of run anomolies | B30: Reported | I30: Test report contains statements saying no sampling anomalies on page 6
A31: Doc. of run burn rates | B31: Reported
A32: Photos of the fuel loaded | B32: Reported
A33: Test Run Data | B33: Determination | I33: Notes
A34: Run # | C34: 1 | D34: 2
A35: Run Category | C35: III | D35: IV
A36: Burn rate (kg/hr) | C36: 1.88 | D36: 2
A37: PM emissions by run (g/hr) | C37: 1.16 | D37: 2.53
A38: PM 1-hr filter pull (g/hr) | C38: 2.04 | D38: 2.76
A39: Filter data | C39: yes | D39: yes
A40: Train precision (%) | C40: NR | D40: NR
A41: Negative weights | C41: yes | D41: yes
A42: Negs handled appropriately | B42: No
A43: Heat output by run (Btu/hr) | C43: 24689 | D43: 26785
A44: CO by run (g/hr) | C44: 105.05 | D44: 104.59 | E44: =SUM(C44:D44) -> 209.64
A45: HHV efficiency (%) | C45: 70.4 | D45: 72.2
A46: Lowest burn rate tested | B46: Not reported | I46: No affirmative statement that lowest burn rate was tested
A47: All run data | B47: Not reported
A48: Appliance Fueling | B48: Determination | I48: Notes
A49: Fuel species | B49: NR
A50: Log length (in) | C50: 18 | D50: 18 | I50: Reported on manufacturer's website as 20 in
A51: Direction of longest dimension | B51: East-West
A52: Log direction for testing | B52: East-West | I52: The direction of fuel loading is east-west as shown on the photographs on page 13 of the test report
A53: Squared (ASTM test only) | B53: N/A (Crib)
A54: Debarked (ASTM test only) | B54: N/A (Crib)
A55: Load density (lb/ft3) | C55: 6.67 | D55: 7.05 | E55: =SUM(C55:D55) -> 13.72 | F55: =E55/2 -> 6.86 | I55: B avg density 6.86
A56: Fuel moisture content load (%wb) | C56: 21.54 | D56: 21.16 | E56: =SUM(C56:D56) -> 42.7 | F56: =E56/2 -> 21.35 | I56: B avg moisture 21.35
A57: Fuel piece configuration | B57: Within specified limit
A58: Owners Manual Req. | B58: Determination | I58: Notes
A59: Stack height | B59: Included
A60: Location recommendation | B60: Included
A61: Guidance on proper draft | B61: Included
A62: Fuel loading & reloading | B62: Insufficient data
A63: Fuel selection recomm. | B63: Included
A64: Improper fuels warnings | B64: Included
A65: Fire starting procedures | B65: Included
A66: Proper use of air controls | B66: Included
A67: Proper operation low | B67: Included
A68: Ash removal procedures | B68: Included
A69: Replacement parts | B69: Included
A70: Federal warning (C or NC) | B70: Included | I70: The EPA required language is contained in the owners manual on page 1
A71: Warranty rights | B71: Included
A72: Catalytst operation | I72: NA
A73: Cat maintenance procedures | I73: NA
A74: Determining catalyst det. or failure | I74: NA
A75: Reporting | B75: Determination | I75: Notes
A76: Summary tables complete | B76: Partially reported | I76: Flags in lines 28 and 46
A77: All run data submitted | B77: Partially reported | I77: Flag in line 47
A78: Test report complete | B78: Partially reported major | I78: Flags in lines 20, 21, 26, 40, 41, 42, 47, and 49
A79: Owner manual complete | B79: Partially reported minor | I79: Flag in line 62
A80: Test dates | B80: 3/21-22/2019
A81: 30 Day notice submitted to EPA | B81: Cannot be determined
A82: Tested on the proposed date | B82: Cannot Be Determined
A83: Tested in consecutive days | B83: Yes
A84: 60 Day report to EPA | B84: Cannot be determined | I84: report date 4/9/2019
A85: EPA additional Review Elements | B85: Determination | I85: Notes
A86: Test location | B86: Lab | I86: OMNI-Test Laboratories, Inc. 13327 NE Airport Way Portland, OR 97230
A87: date lab received the unit | B87: 2019-03-20
A88: date first day of conditioning | B88: March, 2019 | I88: Reported as March in the report
A89: date first day of testing | B89: 2019-03-21
A90: first hour PM emissions reported for all runs | B90: yes
A91: first hour PM emissions reported in grams per hour | B91: yes
A92: first hour PM emissions zero or negative | B92: no
A93: first hour PM emissions measured with front and back filter | B93: yes
A94: Zero CO emission reported | B94: no
A95: Any incomplete runs | B95: no
A96: Preburn data reported (SU/High-3053, preburn M28R) | B96: yes
A97: filter changes during test run | B97: not reported
A98: filter plugged during test run | B98: not reported
A99: What type of filter used | B99: not reported
A100: Back and front filter weighed together (3053 only)
A101: Negative probe weight >5% of PM | B101: no negatives
A102: Negative probe value | B102: no negatives
A103: Negative room air values | B103: no negatives
A104: Ambient background filter data | B104: no negatives
A105: Proportional sampling | B105: yes with allowable deviations
A106: Leak check - pre-test leak check reported | B106: not reported
A107: Leak check - any filter change | B107: not reported
A108: Leak check - post leak check reported | B108: yes with allowable deviations
A109: Dilution tunnel schematic meets ASTM 2515 requirements | B109: not reported
A110: Firebox measurements confirmed with schematic | B110: not reported
A111: number of conditioning hours reported in summary | B111: 50
A112: number of conditioning hours with data | B112: not reported | I112: Weight for all fuel added not indicated
A113: number of hours at correct conditioning conditions | B113: cannot be determined
A114: used lowest air settings for low burn (ASTM 3053) or Cat 1(M28R)
A115: Air setting data | B115: Cat 1/Low | C115: Cat 2/Med | D115: Cat 3 | E115: Cat 4/High | F115: FC | G115: CV
I116: Air settings not provided
A117: Total number of runs | B117: 2
A118: run averaging done correctly
A119: which SU/H run used for calculating emissions
A120: Fuel data for all SU/H runs (ASTM 3053)
A121: Multiple fuel lengths used | B121: no
A122: Specific gravity of fuel used (ASTM 3053 only) | E122: Value
A123: M28 fuel loaded longest dimension | B123: yes | I123: As shown in line 52
A124: Calibration data | B124: yes | I124: Calibration frequency of 6 months
